{"text_format":"1","workbook":"xlsx","n_sheets":10,"sheets":["1. Narzędzie","2. Zestawienie danych z testów","3. Statystyki testów","4. Analiza części A testu","5. Analiza części B testu","Src","Dic","6. Typ osobowosci zawodowej","7. Rekomendowane rodzaje prac","10. Wybrane zawody"],"not_rendered":{"charts":6,"images":0,"macros":1,"external_links":0,"defined_names":4,"comments":0,"pivot_tables":2},"unopened":[],"bounds":{"document_bytes":16777216,"sheet_cells":100000,"rows_first":2000,"rows_last":500,"rows_between":2000,"halvings":0,"cell_chars":16384,"cell_head_chars":4096},"cells_cut":0,"cells_raw":0,"read":"whole","date_system":"1900"}

{"sheet":"1. Narzędzie","index":0,"n_rows":8,"n_cols":2,"rows_kept":8,"cut":false,"hidden":false,"merged":[[7,2,7,7]]}
[]
[]
[]
[]
[]
[]
[]
[null,"Nazwa pliku"]

{"sheet":"2. Zestawienie danych z testów","index":1,"n_rows":34,"n_cols":143,"rows_kept":34,"cut":false,"hidden":false,"merged":[]}
[]
[null,null,null,null,null,null,null,null,null,null,null,null,null,null,null,null,null,null,null,null,null,null,null,null,null,null,null,null,null,null,null,null,null,null,null,null,null,null,null,null,null,null,null,null,null,null,null,null,null,null,null,null,null,null,null,null,null,null,null,null,null,null,null,null,null,null,null,null,null,null,null,null,null,null,null,null,null,null,null,null,null,null,null,null,null,null,null,null,null,null,null,null,null,null,null,null,null,null,null,null,null,null,null,null,null,null,null,null,null,null,null,null,null,null,null,null,null,null,null,null,null,null,null,null,null,null,null,null,null,null,null,null,null,null,null,{"$f":"35+42","v":77}]
[null,null,null,null,null,null,null,null,null,null,null,null,null,null,null,null,null,null,null,null,null,null,null,null,null,null,null,null,null,null,null,null,null,null,null,null,null,null,null,null,null,null,null,null,null,null,null,null,null,null,null,null,null,null,null,null,null,null,null,null,null,null,null,null,null,null,null,null,null,null,null,null,null,null,null,null,null,null,null,null,null,null,null,null,null,null,null,null,null,null,null,null,null,null,null,null,null,null,null,null,null,null,null,null,null,null,null,null,null,null,null,null,null,null,null,null,null,null,null,null,null,null,null,null,null,null,null,null,null,null,null,null,null,null,null,{"$f":"EF2/2","v":38.5}]
[]
[]
["Imię","Nazwisko","Płeć","Wiek","Nazwa szkoły","Lokalizacja szkoły","Typ szkoły","Województwo szkoły","Wskazano adresata raportu","Kiedy pracuję nie przeszkadza mi, że zabrudzę sobie ręce.","Zanim zacznę cokolwiek robić, muszę najpierw wszystko uporządkować.","Chętnie wykonuję rzeczy praktyczne, w przyszłości chciałabym/chciałbym „pracować rękami”.","Zawsze doceniam piękne otoczenie.","Dużą satysfakcję daje mi nauka oraz poznawanie nowych teorii.","Ważna jest dla mnie dbałość o szczegóły.","Lubię pracować na świeżym powietrzu, mam wtedy więcej energii do działania.","To inni ludzie nadają sens mojemu życiu.","Lubię rywalizować.","Zajmowanie się innymi ludźmi sprawia mi przyjemność.","Nauka i zdobywanie wykształcenia są dla mnie ważne - rozwijają mój sposób myślenia.","Piękno każdego rodzaju (muzyka, kolory, formy, kształty itp.) wywierają na mnie duży wpływ.","Jestem wrażliwa/-y na nastroje i uczucia innych ludzi.","Zazwyczaj jestem zadowolona/-y z miejsca, w którym przebywam.","Jestem osobą samodzielną, zwykle sam/-a daję sobie radę.","Zdarza mi się siedzieć godzinami i pracować nad rozwiązaniem różnych problemów.","Wierzę w swoje możliwości i swój potencjał.","Drażnią mnie ludzie, którzy się spóźniają.","Gdy mam jakieś problemy czy kłopoty ważna jest dla mnie obecność innych ludzi.","Często poszukuję nowych sposobów, by wyrazić swoje twórcze zdolności.","Potrafię rozwiązywać spory między przyjaciółmi.","Rzetelna, fizyczna praca wszystkim służy.","Nie lubię ubierać się tradycyjnie, często eksperymentuję z nowymi kierunkami mody i z kolorami.","Najlepiej czuję się w prostym i praktycznym otoczeniu.","Posiadam dużą łatwość wyobrażania sobie różnych rzeczy.","Często zadaję pytanie „dlaczego”?","Powtarzające się, rutynowe działania pomagają mi szybciej ukończyć pracę.","Chętnie czytam książki o różnorodnej tematyce, zwłaszcza te, które mnie interesują.","Bardziej odpowiada mi, kiedy inni biorą odpowiedzialność na siebie, nie lubię być liderem.","Odczuwam silną potrzebę dzielenia moich osobistych spraw z innymi.","Zanim podejmę działanie, dogłębnie analizuję dany problem.","Mam zmysł estetyczny, aranżuję swoje otoczenie, by miało niepowtarzalny charakter.","Cieszy mnie, kiedy ludzie są zgodni i wzajemnie sobie pomagają.","Dobra kondycja i sprawność fizyczna jest dla mnie ważna.","Jestem zadowolona/-y, kiedy grupa liczy się z moim zdaniem i uważa je za najważniejsze.","W samochodzie najważniejszy jest dla mnie silnik i to jak działa.","„Dzielę włos na czworo”, dopóki nie znajdę odpowiedzi.","Jestem wrażliwa/-y na piękno natury.","Lubię, kiedy to co czytam zmusza do myślenia i poszerza moje horyzonty.","Interesują mnie losy innych ludzi.","Lubię, kiedy to, co robię jest wyrazem mojego nastroju, uczuć i wrażliwości.","Zawsze staram się być wobec innych życzliwa/-y i uczynna/-y.","Lubię wprowadzać w życie nowe pomysły.","Doceniam sytuacje, w których wiem, czego się ode mnie oczekuje i wiem, co mam robić.","Lubię organizować ludzi i mobilizować ich do pracy.","Nie lubię robić rzeczy, które nie są akceptowane.","Cenię jasno wytyczony kierunek działania.","Drażnią mnie ludzie, którzy powierzchownie podchodzą do różnych tematów.","Lubię, kiedy widać fizyczne efekty mojej pracy.","Chętnie oddaję się rozmyślaniu.","Lubię, kiedy mój dzień przebiega zgodnie z planem i wszystko jest dobrze zorganizowane.","Lubię odróżniać się od innych, nie chcę być taka/-i jak wszyscy.","Już jako dziecko potrafiłam/-em naprawiać różne rzeczy.","Lubię ćwiczenia grupowe i spotkania towarzyskie.","Dobra organizacja pracy i porządek to podstawa wszelkich efektywnych działań.","Sądzę, że ludzie są z natury dobrzy.","Nie wyobrażam sobie życia bez pięknych rzeczy wokół mnie.","Branie udziału w podejmowaniu ważnych decyzji jest niezmiernie ciekawe.","Posiadam dobre poczucie równowagi i lubię ruch fizyczny.","Wyzwania mobilizują mnie do działania.","Żeby coś w życiu osiągnąć, trzeba sobie stawiać ambitne cele.","Kiedy się do czegoś zobowiązuję, wykonuję to bardzo dokładnie.","Jeśli coś mnie interesuje, staram się wszystkiego o tym dowiedzieć.","Kiedy zaczynam coś robić, to lubię, kiedy wszystko jest jasno i precyzyjnie ustalone.","Cieszę się, kiedy inni obdarzają mnie zaufaniem i powierzają mi swoje problemy.","Nigdy nie jestem obojętna/-y wobec ludzi wyglądających na samotnych i potrzebujących pomocy.","Nie lubię narzucania ustalonego sposobu działania.","Nowe odkrycia są niezwykle ciekawe.","Narzucone formy czy zasady ograniczają mnie.","Nie mam żadnych problemów z podejmowaniem decyzji i braniem za nie odpowiedzialności.","Dokonuję szczegółowej analizy, by mieć pewność, że znajdę rozwiązanie.","Nie lubię nagłych zmian w ustalonym wcześniej programie czy harmonogramie.","Nie boję się podejmować ryzyka.","Kiedy się czymś zajmuję, mam tendencję do zapominania o całym świecie.","Zwykle znajduję wyjście w tzw. sytuacjach \"podbramkowych\".","Nie lubię tracenia czasu na niekończące się rozmowy czy dyskusje.","Nie znoszę prowizorki i improwizacji.","Jeśli nie daję sobie rady za pierwszym razem, zaczynam jeszcze raz z nową energią i entuzjazmem.","Czuję dużą satysfakcję, kiedy dobrze i starannie wywiązuję się z powierzonych mi obowiązków.","To, jak funkcjonuje świat i natura, zawsze budziło moją ciekawość.","Nie lubię bezczynności, lubię działać.","Nie denerwuję się, gdy trzeba przemyśleć sprawę jeszcze raz i ponownie zaplanować działanie.","Kiedy źle się czuję, lubię z kimś porozmawiać.","Zwykle nawiązuję kontakt z ludźmi, którzy mogą wskazać mi drogę do nowych możliwości.","Które z określeń najbardziej do Ciebie pasują bądź najlepiej Cię opisują?","Jako dziecko najchętniej bawiłaś/-eś się:","Na „Targach wiedzy o świecie” najchętniej odwiedzisz stoisko:","W firmie produkującej wyposażenie wnętrz najchętniej podejmiesz się:","Jak najchętniej spędzasz swój wolny czas?","Twoi bliscy i przyjaciele powiedzieliby o Tobie, że jesteś:","Czego nie lubisz w ludziach?","Szykujesz się do szkoły / pracy / na spotkanie. Jak to u Ciebie wygląda?","Twój pokój lub miejsce pracy można określić jako:","To, co jest dla Ciebie najważniejsze w życiu, to:","Masz przygotować prezentację na temat swoich zainteresowań bądź hobby przed większą grupą. Jaką będzie miała formę?","Twój kolega prosi Cię o pomoc w przygotowaniu prezentacji, co zrobisz?","Wyobraź sobie, że udział w wolontariacie otwiera Ci drogę do wymarzonej kariery zawodowej. Wskaż, jaki rodzaj aktywności wybierzesz:","Masz do zrealizowania zadanie, które wymaga pracy zespołowej. Jak będziesz je wykonywał? / Jak się do tego zabierzesz?","W jakich sytuacjach stresujesz się najbardziej? / Jakie sytuacje najbardziej Cię denerwują?","Co intuicyjnie najlepiej wyczuwasz i potrafisz zrozumieć?","Masz do wykonania ważną pracę. Czego najbardziej potrzebujesz?","Jak reagujesz na reguły, nakazy, zarządzenia?","Idealną pracę wyobrażam sobie jako:","Wybrany przeze mnie zawód powinien mi przede wszystkim dawać:","Czy odpowiada Tobie praca, której wykonywanie wiąże się z przebywaniem „pod gołym niebem” (na wolnym powietrzu)?","Czy odpowiada Tobie praca, której efekt będzie zależny od współpracy z innymi ludźmi?","Czy odpowiada Tobie praca, której pora wykonywania, ani jej czas nie są ściśle określone (np. praca na wezwanie, albo w trybie projektowym)?","Czy odpowiada Tobie praca, której wykonywanie wiąże się z przebywaniem w różnych miejscach (np. w terenie, u klienta w biurze lub domu)?","Czy odpowiada Tobie praca, której wykonywanie wiąże się z fizycznym kontaktem z innymi ludźmi (klientami, np. pomoc w poruszaniu, dotyk, masaż)?","Czy odpowiada Tobie praca, której wykonywanie wiąże się z kontaktem ze zwierzętami?","Czy odpowiada Tobie praca, która może być wykonywana w trybie zmianowym (np. zmiana dzienna, zmiana nocna)?","Czy odpowiada Tobie praca, której wykonywanie wiąże się z zagrożeniami dla zdrowia i życia (np. wysokie temperatury, wysokość, znaczne ciężary, duży hałas, substancje wybuchowe, wysokie napięcie)?","Czy odpowiada Tobie praca, której wykonywanie wiąże się koniecznością posiadania dużej sprawności fizycznej?","Czy odpowiada Tobie praca, której wykonywanie wymaga umiejętności manualnych (precyzyjnego posługiwania się prostymi narzędziami i \"pewnych\" rąk)?","Czy odpowiada Tobie praca, której wykonywanie wymaga stałego aktualizowania wiedzy i dokształcania się?","Czy odpowiada Tobie praca, której wykonywanie wymaga wypełniania i sprawdzania dużej liczby formularzy i dokumentów?","Czy odpowiada Tobie praca, której wykonywanie wiąże się z możliwością ubrudzenia się błotem, smarem, olejem silnikowym itp.?","Czy odpowiada Tobie praca, której wykonywanie wiąże się z kontaktem wydzielinami (ślina, krew, śluz, ropa itp.)?","Czy odpowiada Tobie praca, której wykonywanie wiąże się z przebywaniem w zapylonych pomieszczeniach?","Czy odpowiada Tobie praca, której wykonywanie wymaga kontaktu z chemikaliami?","Typ artystyczny","Typ badawczy","Typ konwencjonalny","Typ przedsiębiorczy","Typ realistyczny","Typ społeczny","Wybrany typ","Kolejność typów","Rodzaj pracy","Zawód","Przystąpiono","Grupa","Zaproszono","Zaprosił"]
["Studenciak","Kowalski","Kobieta","15 lat","Brak danych","miasto ponad 500 tys. mieszkańców","liceum ogólnokształcące","dolnośląskie","Nie","Tak","Tak","Nie","Nie","Tak","Nie","Nie","Tak","Tak","Nie","Tak","Tak","Nie","Tak","Nie","Tak","Tak","Nie","Tak","Tak","Nie","Tak","Tak","Nie","Tak","Tak","Nie","Nie","Nie","Nie","Nie","Tak","Tak","Tak","Tak","Nie","Nie","Tak","Nie","Nie","Nie","Tak","Tak","Tak","Tak","Nie","Nie","Tak","Tak","Tak","Nie","Nie","Nie","Tak","Tak","Nie","Tak","Nie","Tak","Tak","Tak","Nie","Nie","Nie","Tak","Nie","Tak","Tak","Tak","Nie","Nie","Nie","Tak","Nie","Nie","Tak","Tak","Tak","Nie","Tak","Tak","Nie","Tak","Tak","6) skrupulatny wykonawca","6) najchętniej bawiłam/-em się sam/-a","2) „Największe osiągnięcia współczesnej nauki”","4) przyjmowania nowych pracowników, pracy w dziale personalnym","4) porządkując swój pokój lub mieszkanie","6) niekonwencjonalna/-y, twórcza/-y","5) bezczynności i pozorowanych działań","2) zdarza się, że się spóźniam, ale bardzo rzadko - tylko wtedy, gdy jest jakaś obiektywna przyczyna","6) przypominający pracownię naukowca","2) w pełni cieszyć się życiem i zachwycać jego pięknem","3) pokażesz swoje prace w nieszablonowej, niekonwencjonalnej formie","1) pomożesz mu po zajęciach, a w razie trudności pozwalasz mu do Ciebie jeszcze zadzwonić","3) prace przy organizacji dni ulicy, przygotowanie programu artystycznego","4) zaangażuję się dopiero wtedy, kiedy to, co będziemy robić będzie naprawdę ciekawe","5) kiedy ludzie nie wiedzą czego konkretnie ode mnie chcą","3) praktyczne rozwiązania i sposoby wykonania konkretnych rzeczy","4) współpracy z innymi w dobrej, przyjacielskiej atmosferze","2) kieruję się głównie własnymi regułami i zasadami, które prowadzą mnie do celu","3) twórcze zadania w swobodnym środowisku","2) pieniądze i wysoki prestiż społeczny","Tak","Tak","Nie","Nie","Nie","Nie dotyczy","Tak","Tak","Nie dotyczy","Tak","Nie","Nie","Tak","Tak","Nie dotyczy","Nie dotyczy",0.47,0.32,0.15,0.35,0.35,0.28999999999999998,"artystyczny","A,R,P,B,S,K","usługowa","Operator maszyn leśnych","2015-07-10T02:31:43","Bez grupy","Nie","Przystąpienie samodzielne"]
["Studenciak","Kowalski","Kobieta","15 lat","Brak danych","miasto ponad 500 tys. mieszkańców","liceum ogólnokształcące","dolnośląskie","Nie","Nie","Tak","Nie","Tak","Tak","Tak","Nie","Nie","Tak","Tak","Nie","Nie","Nie","Nie","Tak","Nie","Tak","Tak","Tak","Tak","Tak","Nie","Nie","Nie","Tak","Nie","Nie","Tak","Tak","Tak","Nie","Tak","Tak","Nie","Tak","Nie","Tak","Nie","Nie","Tak","Nie","Nie","Nie","Tak","Tak","Tak","Nie","Nie","Nie","Tak","Nie","Tak","Nie","Nie","Nie","Tak","Tak","Tak","Nie","Tak","Nie","Nie","Nie","Tak","Tak","Nie","Nie","Tak","Nie","Tak","Tak","Tak","Tak","Nie","Nie","Tak","Nie","Nie","Tak","Tak","Nie","Tak","Nie","Nie","4) serce na dłoni / dusza człowiek","2) rysując lub malując","1) „Kultura i sztuka - dawniej i dziś”","1) projektowania nowych modeli, sprzętów, bibelotów itp.","2) pisząc, czytając, rozmyślając","5) uporządkowana/-y i dobrze zorganizowana/-y","6) braku wyobraźni i wrażliwości","3) praktycznie zawsze mam problem, żeby zdążyć - nie lubię, kiedy czas mnie ogranicza","1) twórczy nieporządek","6) dążyć do doskonałości i perfekcji","3) pokażesz swoje prace w nieszablonowej, niekonwencjonalnej formie","3) opowiesz mu jak mógłby przygotować nieszablonową prezentację","6) udział w projekcie mającym na celu wypromowanie regionu lub miasta, w którym mieszkasz","4) zaangażuję się dopiero wtedy, kiedy to, co będziemy robić będzie naprawdę ciekawe","5) kiedy ludzie nie wiedzą czego konkretnie ode mnie chcą","4) dane statystyczne, zestawienia liczbowe, określone procedury","2) możliwości samodzielnego znalezienia logicznego, racjonalnego rozwiązania","1) odpowiedzialnie wszystkich przestrzegam","4) grupową współpracę w przyjacielskiej atmosferze","3) uznanie, z racji posiadanej wiedzy i osiągnięć naukowych","Nie","Tak","Tak","Tak","Nie dotyczy","Nie","Nie dotyczy","Nie dotyczy","Nie dotyczy","Nie dotyczy","Nie dotyczy","Nie dotyczy","Tak","Nie dotyczy","Nie dotyczy","Nie",0.5,0.26,0.38,0.28999999999999998,0.06,0.28999999999999998,"konwencjonalny","A,K,S,P,B,R","organizacyjna","Technik logistyk","2015-07-10T02:48:28","Bez grupy","Nie","Przystąpienie samodzielne"]
["Studenciak","Kowalski","Kobieta","15 lat","Brak danych","miasto ponad 500 tys. mieszkańców","liceum ogólnokształcące","dolnośląskie","Nie","Nie","Nie","Tak","Tak","Tak","Tak","Nie","Nie","Tak","Nie","Tak","Nie","Tak","Tak","Nie","Nie","Tak","Tak","Nie","Nie","Tak","Tak","Tak","Tak","Nie","Nie","Tak","Tak","Nie","Nie","Tak","Tak","Tak","Nie","Tak","Tak","Nie","Tak","Nie","Nie","Tak","Tak","Tak","Nie","Tak","Nie","Tak","Nie","Nie","Tak","Tak","Tak","Tak","Nie","Nie","Nie","Tak","Tak","Tak","Nie","Tak","Tak","Nie","Tak","Nie","Tak","Tak","Tak","Nie","Tak","Nie","Nie","Nie","Tak","Nie","Tak","Tak","Nie","Tak","Nie","Tak","Nie","Tak","Nie","5) przywódca stada / inspirujący lider","3) w gry i zabawy z innymi","3) „Nowinki ze świata techniki”","6) badania i analizy rynku","2) pisząc, czytając, rozmyślając","6) niekonwencjonalna/-y, twórcza/-y","2) braku życzliwości w stosunku do innych ludzi i nieliczenia się z ich uczuciami","5) wszystko musi być tak, jak sobie wcześniej ustaliłam/-em - nie pozwolę sobie na spóźnienie, stracił/a/bym w oczach innych","4) reprezentacyjny, robiący wrażenie","2) w pełni cieszyć się życiem i zachwycać jego pięknem","1) przygotujesz dużo danych, informacji, materiałów","5) powiesz mu, że jak dobrze zaplanuje i zorganizuje prace, to sobie z tym poradzi","5) pomoc ofiarom powodzi / osobom niepełnosprawnym","5) będę się również starał pomagać innym, gdyby mieli problemy","2) kiedy nie mogę zrealizować swoich pomysłów, a wiem, że są najlepsze","2) ludzi, ich myśli i zachowanie","1) instrukcji na temat tego, co mam zrobić i możliwości spróbowania różnych rozwiązań","1) odpowiedzialnie wszystkich przestrzegam","5) realizację kreatywnych celów w zmotywowanym zespole","5) możliwość wyrażania siebie, wykorzystania swoich talentów","Nie dotyczy","Tak","Nie","Tak","Tak","Nie","Nie dotyczy","Nie dotyczy","Nie","Nie","Nie dotyczy","Nie dotyczy","Nie dotyczy","Nie dotyczy","Nie dotyczy","Tak",0.41,0.24,0.28999999999999998,0.38,0.32,0.32,"przedsiębiorczy","A,P,R,S,K,B","artystyczna","Fotograf","2015-07-10T02:53:03","Bez grupy","Nie","Przystąpienie samodzielne"]
["Studenciak","Kowalski","Kobieta","15 lat","Brak danych","miasto ponad 500 tys. mieszkańców","liceum ogólnokształcące","dolnośląskie","Nie","Nie","Nie","Nie","Nie","Nie","Nie","Tak","Tak","Tak","Tak","Tak","Nie","Tak","Nie","Tak","Nie","Nie","Tak","Tak","Tak","Nie","Nie","Nie","Tak","Tak","Nie","Nie","Tak","Nie","Nie","Nie","Tak","Tak","Tak","Tak","Tak","Tak","Tak","Tak","Nie","Tak","Nie","Tak","Tak","Tak","Nie","Nie","Tak","Tak","Tak","Tak","Tak","Tak","Tak","Tak","Nie","Nie","Tak","Nie","Nie","Nie","Nie","Nie","Tak","Nie","Nie","Nie","Tak","Nie","Nie","Nie","Nie","Tak","Tak","Nie","Tak","Tak","Nie","Nie","Tak","Tak","Tak","Nie","Nie","2) praktyczny realista","1) klockami - budując, majsterkując","5) „Wielka Orkiestra Świątecznej Pomocy” - wystawa fotografii, relacje wolontariuszy","3) pracy w biurze i porządkowania dokumentacji","2) pisząc, czytając, rozmyślając","1) inteligentna/-y, dociekliwa/-y, analityczna/-y","4) niezdecydowania i niezaradności","2) zdarza się, że się spóźniam, ale bardzo rzadko - tylko wtedy, gdy jest jakaś obiektywna przyczyna","5) przytulny, w którym każdy czuje się dobrze","2) w pełni cieszyć się życiem i zachwycać jego pięknem","5) przygotujesz inspirujące wystąpienie, pragnąc zarazić innych swoim \"bakcylem\"","2) pokażesz mu jakbyś to zrobił/-a, dając konkretny przykład","4) prace przy projekcie dotyczącym zagospodarowania terenów parku miejskiego (prace porządkowe, nasadzenia, prace elektryczne, mechaniczne itp.)","5) będę się również starał pomagać innym, gdyby mieli problemy","3) kiedy wiem, że moje relacje z innymi mogą się zepsuć lub ucierpieć","6) ukryte przesłania i symbole zawarte w dziełach sztuki","2) możliwości samodzielnego znalezienia logicznego, racjonalnego rozwiązania","2) kieruję się głównie własnymi regułami i zasadami, które prowadzą mnie do celu","6) systematyczne działania w uporządkowanym środowisku","4) sympatię i szacunek ze strony innych ludzi","Tak","Tak","Tak","Tak","Tak","Tak","Tak","Tak","Tak","Tak","Tak","Nie dotyczy","Tak","Tak","Tak","Tak",0.32,0.28999999999999998,0.24,0.28999999999999998,0.38,0.32,"realistyczny","R,A,S,B,P,K","produkcyjna","Technik budowy fortepianów i pianin","2015-07-10T02:55:22","Bez grupy","Nie","Przystąpienie samodzielne"]
["Studenciak","Kowalski","Kobieta","15 lat","Brak danych","miasto ponad 500 tys. mieszkańców","liceum ogólnokształcące","dolnośląskie","Nie","Tak","Tak","Nie","Nie","Tak","Tak","Nie","Tak","Tak","Tak","Tak","Tak","Nie","Tak","Nie","Tak","Tak","Tak","Nie","Tak","Nie","Tak","Tak","Nie","Nie","Nie","Tak","Nie","Nie","Tak","Nie","Tak","Tak","Tak","Nie","Tak","Nie","Nie","Tak","Tak","Tak","Nie","Nie","Tak","Nie","Tak","Tak","Tak","Tak","Nie","Tak","Nie","Tak","Tak","Nie","Nie","Tak","Nie","Nie","Tak","Tak","Tak","Nie","Tak","Nie","Tak","Nie","Tak","Nie","Tak","Nie","Tak","Tak","Nie","Tak","Nie","Nie","Nie","Tak","Tak","Tak","Tak","Nie","Tak","1) artystyczna dusza","1) klockami - budując, majsterkując","3) „Nowinki ze świata techniki”","1) projektowania nowych modeli, sprzętów, bibelotów itp.","1) na spotkaniach z przyjaciółmi","1) inteligentna/-y, dociekliwa/-y, analityczna/-y","3) chaotyczności i braku zorganizowania","2) zdarza się, że się spóźniam, ale bardzo rzadko - tylko wtedy, gdy jest jakaś obiektywna przyczyna","5) przytulny, w którym każdy czuje się dobrze","3) być pożytecznym i pomocnym dla innych","2) zaprezentujesz realny przedmiot swoich zainteresowań i dasz spróbować innym","2) pokażesz mu jakbyś to zrobił/-a, dając konkretny przykład","3) prace przy organizacji dni ulicy, przygotowanie programu artystycznego","2) w zespole wykonuję swoją precyzyjnie określoną część pracy, tak jak pozostali","2) kiedy nie mogę zrealizować swoich pomysłów, a wiem, że są najlepsze","5) naturalne talenty, możliwości i umiejętności innych","4) współpracy z innymi w dobrej, przyjacielskiej atmosferze","5) staram się je przestrzegać, wierzę że ustalono je dla dobra wszystkich","6) systematyczne działania w uporządkowanym środowisku","4) sympatię i szacunek ze strony innych ludzi","Nie dotyczy","Tak","Tak","Tak","Tak","Tak","Nie dotyczy","Nie dotyczy","Tak","Tak","Nie dotyczy","Nie dotyczy","Nie dotyczy","Nie dotyczy","Nie dotyczy","Tak",0.26,0.24,0.41,0.28999999999999998,0.44,0.38,"realistyczny","R,K,S,P,A,B","artystyczna","Aktor scen muzycznych","2015-07-10T02:56:24","Bez grupy","Nie","Przystąpienie samodzielne"]
["Studenciak","Kowalski","Kobieta","15 lat","Brak danych","miasto ponad 500 tys. mieszkańców","liceum ogólnokształcące","dolnośląskie","Nie","Nie","Tak","Tak","Nie","Nie","Tak","Tak","Nie","Tak","Nie","Tak","Tak","Tak","Nie","Nie","Tak","Nie","Nie","Nie","Nie","Nie","Tak","Tak","Nie","Tak","Nie","Nie","Tak","Tak","Nie","Tak","Nie","Tak","Tak","Nie","Nie","Tak","Tak","Tak","Nie","Tak","Nie","Nie","Nie","Tak","Tak","Tak","Nie","Nie","Nie","Tak","Nie","Tak","Nie","Tak","Nie","Nie","Nie","Nie","Tak","Tak","Tak","Nie","Nie","Nie","Tak","Tak","Tak","Nie","Tak","Tak","Tak","Nie","Nie","Nie","Nie","Nie","Nie","Nie","Tak","Tak","Nie","Tak","Tak","1) artystyczna dusza","1) klockami - budując, majsterkując","3) „Nowinki ze świata techniki”","6) badania i analizy rynku","2) pisząc, czytając, rozmyślając","5) uporządkowana/-y i dobrze zorganizowana/-y","1) powierzchowności, braku wiedzy bądź głupoty","1) zawsze jestem na czas - nie wyobrażam sobie spóźniania","1) twórczy nieporządek","4) być uznanym specjalistą / ekspertem w danej dziedzinie wiedzy czy środowisku zawodowym","4) opowiesz o swojej pasji, będziesz odwoływał/-a się do przykładów, doświadczeń, emocji","1) pomożesz mu po zajęciach, a w razie trudności pozwalasz mu do Ciebie jeszcze zadzwonić","4) prace przy projekcie dotyczącym zagospodarowania terenów parku miejskiego (prace porządkowe, nasadzenia, prace elektryczne, mechaniczne itp.)","1) najchętniej sam/-a wszystko zrobię, ponieważ najlepiej pracuje mi się niezależnie od innych","1) kiedy nie wiem co mam robić lub nagle zmieniają się reguły i wszędzie panuje nieporządek i chaos","5) naturalne talenty, możliwości i umiejętności innych","3) swobody i nieustalonych norm, chcę działać intuicyjnie","6) przestrzegam reguł i zasad, przecież czemuś służą","5) realizację kreatywnych celów w zmotywowanym zespole","1) poczucie bezpieczeństwa wynikające z jasno określonych reguł i stałych przychodów","Tak","Tak","Tak","Tak","Tak","Nie dotyczy","Tak","Tak","Tak","Nie dotyczy","Tak","Nie dotyczy","Nie dotyczy","Nie dotyczy","Nie dotyczy","Tak",0.28999999999999998,0.38,0.35,0.24,0.32,0.18,"badawczy","B,K,R,A,P,S","wychowawcza","Technik bezpieczeństwa i higieny pracy","2015-07-10T03:01:42","Bez grupy","Nie","Przystąpienie samodzielne"]
["Studenciak","Kowalski","Kobieta","15 lat","Brak danych","miasto ponad 500 tys. mieszkańców","liceum ogólnokształcące","dolnośląskie","Nie","Tak","Tak","Nie","Nie","Nie","Nie","Tak","Nie","Tak","Nie","Tak","Tak","Tak","Tak","Tak","Tak","Tak","Tak","Nie","Nie","Nie","Tak","Tak","Tak","Nie","Nie","Nie","Nie","Tak","Tak","Tak","Nie","Tak","Nie","Tak","Tak","Tak","Tak","Tak","Nie","Tak","Tak","Tak","Nie","Tak","Nie","Tak","Tak","Nie","Nie","Nie","Nie","Nie","Nie","Nie","Tak","Tak","Tak","Tak","Nie","Nie","Tak","Nie","Nie","Tak","Nie","Nie","Nie","Nie","Tak","Nie","Nie","Tak","Tak","Nie","Tak","Tak","Nie","Tak","Nie","Nie","Nie","Tak","Nie","4) serce na dłoni / dusza człowiek","6) najchętniej bawiłam/-em się sam/-a","4) „Od Zera do Milionera - trendy w świecie biznesu”","6) badania i analizy rynku","5) organizując różne ciekawe przedsięwzięcia","1) inteligentna/-y, dociekliwa/-y, analityczna/-y","5) bezczynności i pozorowanych działań","5) wszystko musi być tak, jak sobie wcześniej ustaliłam/-em - nie pozwolę sobie na spóźnienie, stracił/a/bym w oczach innych","4) reprezentacyjny, robiący wrażenie","6) dążyć do doskonałości i perfekcji","2) zaprezentujesz realny przedmiot swoich zainteresowań i dasz spróbować innym","5) powiesz mu, że jak dobrze zaplanuje i zorganizuje prace, to sobie z tym poradzi","6) udział w projekcie mającym na celu wypromowanie regionu lub miasta, w którym mieszkasz","3) tak podzielę pracę, aby każdy robił to, do czego najlepiej się nadaje","1) kiedy nie wiem co mam robić lub nagle zmieniają się reguły i wszędzie panuje nieporządek i chaos","4) dane statystyczne, zestawienia liczbowe, określone procedury","3) swobody i nieustalonych norm, chcę działać intuicyjnie","2) kieruję się głównie własnymi regułami i zasadami, które prowadzą mnie do celu","4) grupową współpracę w przyjacielskiej atmosferze","3) uznanie, z racji posiadanej wiedzy i osiągnięć naukowych","Tak","Tak","Tak","Tak","Tak","Nie dotyczy","Tak","Tak","Nie dotyczy","Nie dotyczy","Tak","Tak","Tak","Tak","Nie dotyczy","Nie dotyczy",0.21,0.32,0.28999999999999998,0.47,0.28999999999999998,0.26,"przedsiębiorczy","P,B,R,K,S,A","porządkowa","Technik transportu kolejowego","2015-07-10T03:16:26","Bez grupy","Nie","Przystąpienie samodzielne"]
["Studenciak","Kowalski","Kobieta","15 lat","Brak danych","miasto ponad 500 tys. mieszkańców","liceum ogólnokształcące","dolnośląskie","Tak","Tak","Nie","Nie","Nie","Nie","Nie","Nie","Nie","Nie","Nie","Nie","Nie","Nie","Nie","Tak","Nie","Nie","Nie","Nie","Nie","Nie","Nie","Nie","Nie","Nie","Nie","Nie","Nie","Nie","Tak","Nie","Nie","Nie","Nie","Nie","Nie","Nie","Nie","Nie","Nie","Nie","Nie","Nie","Nie","Tak","Nie","Nie","Nie","Nie","Nie","Nie","Nie","Nie","Nie","Nie","Nie","Nie","Nie","Nie","Nie","Tak","Nie","Nie","Nie","Nie","Nie","Nie","Nie","Nie","Nie","Nie","Nie","Nie","Nie","Nie","Nie","Nie","Nie","Nie","Tak","Nie","Nie","Nie","Nie","6) skrupulatny wykonawca","5) z innymi dziećmi, wymyślając i organizując zabawy","6) „Prezentacja skutecznych metod organizacji pracy”","6) badania i analizy rynku","5) organizując różne ciekawe przedsięwzięcia","5) uporządkowana/-y i dobrze zorganizowana/-y","6) braku wyobraźni i wrażliwości","5) wszystko musi być tak, jak sobie wcześniej ustaliłam/-em - nie pozwolę sobie na spóźnienie, stracił/a/bym w oczach innych","5) przytulny, w którym każdy czuje się dobrze","5) żyć z pracy rąk i dobrze sobie radzić w każdej sytuacji","4) opowiesz o swojej pasji, będziesz odwoływał/-a się do przykładów, doświadczeń, emocji","4) polecisz mu książki, strony internetowe, wskażesz materiały źródłowe","5) pomoc ofiarom powodzi / osobom niepełnosprawnym","6) skoncentruję się głównie na działaniu i konkretach","5) kiedy ludzie nie wiedzą czego konkretnie ode mnie chcą","5) naturalne talenty, możliwości i umiejętności innych","5) zgranego efektywnego zespołu, który z entuzjazmem zrealizuje mój pomysł","6) przestrzegam reguł i zasad, przecież czemuś służą","6) systematyczne działania w uporządkowanym środowisku","6) poczucie, że to, co robię jest przydatne i praktyczne","Nie","Nie","Tak","Tak","Tak","Tak","Nie","Nie","Nie","Nie","Nie","Nie dotyczy","Nie","Nie","Nie","Nie",0.03,0.09,0.12,0.24,0.18,0.12,"realistyczny","P,R,K,S,B,A","produkcyjna","Kucharz","2015-07-10T04:11:29","Bez grupy","Nie","Przystąpienie samodzielne"]
["Studenciak","Kowalski","Kobieta","15 lat","Brak danych","miasto ponad 500 tys. mieszkańców","liceum ogólnokształcące","dolnośląskie","Tak","Nie","Nie","Nie","Nie","Nie","Nie","Nie","Nie","Nie","Nie","Nie","Nie","Nie","Tak","Nie","Nie","Nie","Nie","Nie","Nie","Nie","Nie","Nie","Nie","Nie","Tak","Nie","Nie","Nie","Nie","Nie","Nie","Nie","Nie","Nie","Nie","Nie","Nie","Nie","Nie","Tak","Nie","Nie","Nie","Nie","Nie","Nie","Nie","Nie","Nie","Nie","Nie","Nie","Nie","Tak","Nie","Nie","Nie","Nie","Nie","Nie","Nie","Nie","Nie","Nie","Nie","Nie","Nie","Tak","Nie","Nie","Nie","Nie","Nie","Nie","Nie","Nie","Nie","Nie","Nie","Nie","Nie","Tak","Nie","6) skrupulatny wykonawca","6) najchętniej bawiłam/-em się sam/-a","6) „Prezentacja skutecznych metod organizacji pracy”","5) wykonywania zaprojektowanych przedmiotów","5) organizując różne ciekawe przedsięwzięcia","6) niekonwencjonalna/-y, twórcza/-y","5) bezczynności i pozorowanych działań","5) wszystko musi być tak, jak sobie wcześniej ustaliłam/-em - nie pozwolę sobie na spóźnienie, stracił/a/bym w oczach innych","6) przypominający pracownię naukowca","6) dążyć do doskonałości i perfekcji","6) rzetelnie przygotujesz uporządkowaną prezentację, przedstawiającą Twoje hobby","5) powiesz mu, że jak dobrze zaplanuje i zorganizuje prace, to sobie z tym poradzi","4) prace przy projekcie dotyczącym zagospodarowania terenów parku miejskiego (prace porządkowe, nasadzenia, prace elektryczne, mechaniczne itp.)","6) skoncentruję się głównie na działaniu i konkretach","6) kiedy nie mam dostępu do informacji i wiedzy, której w danym momencie potrzebuję","6) ukryte przesłania i symbole zawarte w dziełach sztuki","4) współpracy z innymi w dobrej, przyjacielskiej atmosferze","4) przestrzegam przede wszystkim tych, które rozumiem i wydaje mi się, że są logiczne i uzasadnione","5) realizację kreatywnych celów w zmotywowanym zespole","6) poczucie, że to, co robię jest przydatne i praktyczne","Nie","Nie","Tak","Tak","Nie dotyczy","Nie","Nie dotyczy","Nie dotyczy","Nie dotyczy","Nie dotyczy","Nie dotyczy","Nie dotyczy","Nie","Nie dotyczy","Nie dotyczy","Nie",0.12,0.15,0.18,0.09,0.18,0.06,"konwencjonalny","R,K,B,A,P,S","organizacyjna","Technik realizacji dźwięku","2015-07-10T04:15:37","Bez grupy","Nie","Przystąpienie samodzielne"]
["Studenciak","Kowalski","Kobieta","15 lat","Brak danych","miasto ponad 500 tys. mieszkańców","liceum ogólnokształcące","dolnośląskie","Tak","Tak","Nie","Tak","Tak","Tak","Tak","Nie","Tak","Tak","Tak","Nie","Tak","Tak","Tak","Nie","Tak","Nie","Nie","Nie","Nie","Tak","Tak","Nie","Nie","Nie","Nie","Tak","Tak","Nie","Tak","Tak","Nie","Tak","Nie","Tak","Nie","Nie","Nie","Nie","Nie","Tak","Nie","Tak","Nie","Tak","Nie","Tak","Tak","Nie","Tak","Nie","Tak","Nie","Tak","Tak","Tak","Tak","Nie","Tak","Tak","Nie","Nie","Nie","Tak","Nie","Nie","Nie","Tak","Nie","Tak","Nie","Tak","Nie","Tak","Tak","Nie","Nie","Tak","Tak","Nie","Tak","Tak","Tak","Tak","4) serce na dłoni / dusza człowiek","1) klockami - budując, majsterkując","3) „Nowinki ze świata techniki”","6) badania i analizy rynku","5) organizując różne ciekawe przedsięwzięcia","3) zaradna/-y i przebojowa/-y","6) braku wyobraźni i wrażliwości","1) zawsze jestem na czas - nie wyobrażam sobie spóźniania","2) pokój, w którym jest tylko to, co jest Ci naprawdę potrzebne","3) być pożytecznym i pomocnym dla innych","4) opowiesz o swojej pasji, będziesz odwoływał/-a się do przykładów, doświadczeń, emocji","4) polecisz mu książki, strony internetowe, wskażesz materiały źródłowe","6) udział w projekcie mającym na celu wypromowanie regionu lub miasta, w którym mieszkasz","5) będę się również starał pomagać innym, gdyby mieli problemy","4) nie mam swobody wyrażania siebie i swoich myśli","6) ukryte przesłania i symbole zawarte w dziełach sztuki","6) ściśle określonych reguł, zasad bądź procedur","6) przestrzegam reguł i zasad, przecież czemuś służą","1) praktyczne zadania w nieformalnym środowisku","4) sympatię i szacunek ze strony innych ludzi","Nie","Nie","Tak","Nie","Nie","Nie dotyczy","Nie","Tak","Nie dotyczy","Tak","Nie","Tak","Tak","Nie","Nie dotyczy","Nie dotyczy",0.28999999999999998,0.24,0.26,0.35,0.35,0.41,"społeczny","S,R,P,A,K,B","usługowa","Technik księgarstwa","2015-07-10T04:20:52","Bez grupy","Nie","Przystąpienie samodzielne"]
["Studenciak","Kowalski","Kobieta","15 lat","Brak danych","miasto ponad 500 tys. mieszkańców","liceum ogólnokształcące","dolnośląskie","Tak","Nie","Tak","Nie","Nie","Nie","Nie","Nie","Nie","Nie","Nie","Tak","Nie","Tak","Tak","Nie","Nie","Nie","Tak","Nie","Nie","Tak","Nie","Nie","Nie","Nie","Nie","Nie","Tak","Nie","Nie","Tak","Nie","Tak","Nie","Nie","Nie","Nie","Nie","Nie","Tak","Nie","Tak","Tak","Nie","Tak","Tak","Nie","Tak","Nie","Tak","Tak","Tak","Nie","Nie","Tak","Tak","Tak","Nie","Tak","Nie","Nie","Nie","Nie","Nie","Nie","Nie","Nie","Nie","Tak","Tak","Tak","Tak","Nie","Nie","Nie","Nie","Nie","Nie","Nie","Tak","Nie","Nie","Nie","Tak","4) serce na dłoni / dusza człowiek","6) najchętniej bawiłam/-em się sam/-a","6) „Prezentacja skutecznych metod organizacji pracy”","2) zarządzania działem sprzedaży lub sprzedażą","6) rozwiązując łamigłówki i problemy logiczne","3) zaradna/-y i przebojowa/-y","5) bezczynności i pozorowanych działań","1) zawsze jestem na czas - nie wyobrażam sobie spóźniania","6) przypominający pracownię naukowca","3) być pożytecznym i pomocnym dla innych","3) pokażesz swoje prace w nieszablonowej, niekonwencjonalnej formie","3) opowiesz mu jak mógłby przygotować nieszablonową prezentację","1) prace przy projekcie polegającym na zbieraniu i analizowaniu wielu danych, wyciąganiu logicznych wniosków","2) w zespole wykonuję swoją precyzyjnie określoną część pracy, tak jak pozostali","1) kiedy nie wiem co mam robić lub nagle zmieniają się reguły i wszędzie panuje nieporządek i chaos","1) różnorodne zagadnienia naukowe i techniczne","1) instrukcji na temat tego, co mam zrobić i możliwości spróbowania różnych rozwiązań","6) przestrzegam reguł i zasad, przecież czemuś służą","3) twórcze zadania w swobodnym środowisku","1) poczucie bezpieczeństwa wynikające z jasno określonych reguł i stałych przychodów","Nie dotyczy","Nie","Tak","Tak","Nie","Tak","Nie dotyczy","Nie dotyczy","Nie","Tak","Nie dotyczy","Nie dotyczy","Nie dotyczy","Nie dotyczy","Nie dotyczy","Tak",0.21,0.32,0.32,0.18,0.15,0.24,"konwencjonalny","K,B,S,A,P,R","artystyczna","Muzyk","2015-07-10T04:22:37","Bez grupy","Nie","Przystąpienie samodzielne"]
["Studenciak","Kowalski","Kobieta","15 lat","Brak danych","miasto ponad 500 tys. mieszkańców","liceum ogólnokształcące","dolnośląskie","Tak","Nie","Tak","Nie","Nie","Nie","Nie","Nie","Nie","Nie","Nie","Tak","Nie","Tak","Tak","Nie","Nie","Nie","Tak","Nie","Nie","Tak","Nie","Nie","Nie","Nie","Nie","Nie","Tak","Nie","Nie","Tak","Nie","Tak","Nie","Nie","Nie","Nie","Nie","Nie","Tak","Nie","Tak","Tak","Nie","Tak","Tak","Nie","Tak","Nie","Tak","Tak","Tak","Nie","Nie","Tak","Tak","Tak","Nie","Tak","Nie","Nie","Nie","Nie","Nie","Nie","Nie","Nie","Nie","Tak","Tak","Tak","Tak","Nie","Nie","Nie","Nie","Nie","Nie","Nie","Tak","Nie","Nie","Nie","Tak","4) serce na dłoni / dusza człowiek","6) najchętniej bawiłam/-em się sam/-a","6) „Prezentacja skutecznych metod organizacji pracy”","2) zarządzania działem sprzedaży lub sprzedażą","6) rozwiązując łamigłówki i problemy logiczne","3) zaradna/-y i przebojowa/-y","5) bezczynności i pozorowanych działań","1) zawsze jestem na czas - nie wyobrażam sobie spóźniania","6) przypominający pracownię naukowca","3) być pożytecznym i pomocnym dla innych","3) pokażesz swoje prace w nieszablonowej, niekonwencjonalnej formie","3) opowiesz mu jak mógłby przygotować nieszablonową prezentację","1) prace przy projekcie polegającym na zbieraniu i analizowaniu wielu danych, wyciąganiu logicznych wniosków","2) w zespole wykonuję swoją precyzyjnie określoną część pracy, tak jak pozostali","1) kiedy nie wiem co mam robić lub nagle zmieniają się reguły i wszędzie panuje nieporządek i chaos","1) różnorodne zagadnienia naukowe i techniczne","1) instrukcji na temat tego, co mam zrobić i możliwości spróbowania różnych rozwiązań","6) przestrzegam reguł i zasad, przecież czemuś służą","3) twórcze zadania w swobodnym środowisku","1) poczucie bezpieczeństwa wynikające z jasno określonych reguł i stałych przychodów","Nie dotyczy","Nie","Tak","Tak","Nie","Tak","Nie dotyczy","Nie dotyczy","Nie","Tak","Nie dotyczy","Nie dotyczy","Nie dotyczy","Nie dotyczy","Nie dotyczy","Tak",0.21,0.32,0.32,0.18,0.15,0.24,"konwencjonalny","K,B,S,A,P,R","artystyczna","Fotograf","2015-07-10T04:23:44","Bez grupy","Nie","Przystąpienie samodzielne"]
["Studenciak","Kowalski","Kobieta","15 lat","Brak danych","miasto ponad 500 tys. mieszkańców","liceum ogólnokształcące","dolnośląskie","Tak","Tak","Tak","Nie","Nie","Nie","Nie","Nie","Tak","Nie","Nie","Nie","Tak","Tak","Tak","Nie","Nie","Nie","Tak","Tak","Nie","Tak","Tak","Nie","Nie","Tak","Tak","Nie","Nie","Tak","Nie","Tak","Nie","Nie","Tak","Nie","Tak","Nie","Nie","Tak","Tak","Nie","Nie","Tak","Tak","Tak","Nie","Tak","Tak","Tak","Nie","Tak","Nie","Nie","Nie","Tak","Tak","Nie","Nie","Nie","Tak","Tak","Nie","Tak","Nie","Tak","Nie","Nie","Nie","Tak","Tak","Nie","Tak","Tak","Nie","Nie","Nie","Nie","Nie","Nie","Nie","Tak","Tak","Nie","Nie","5) przywódca stada / inspirujący lider","2) rysując lub malując","3) „Nowinki ze świata techniki”","4) przyjmowania nowych pracowników, pracy w dziale personalnym","3) pracując w ogrodzie lub na działce","3) zaradna/-y i przebojowa/-y","5) bezczynności i pozorowanych działań","1) zawsze jestem na czas - nie wyobrażam sobie spóźniania","6) przypominający pracownię naukowca","6) dążyć do doskonałości i perfekcji","2) zaprezentujesz realny przedmiot swoich zainteresowań i dasz spróbować innym","1) pomożesz mu po zajęciach, a w razie trudności pozwalasz mu do Ciebie jeszcze zadzwonić","1) prace przy projekcie polegającym na zbieraniu i analizowaniu wielu danych, wyciąganiu logicznych wniosków","4) zaangażuję się dopiero wtedy, kiedy to, co będziemy robić będzie naprawdę ciekawe","5) kiedy ludzie nie wiedzą czego konkretnie ode mnie chcą","2) ludzi, ich myśli i zachowanie","1) instrukcji na temat tego, co mam zrobić i możliwości spróbowania różnych rozwiązań","4) przestrzegam przede wszystkim tych, które rozumiem i wydaje mi się, że są logiczne i uzasadnione","2) rozwiązywanie naukowych i technicznych problemów w niezależnym środowisku","4) sympatię i szacunek ze strony innych ludzi","Nie","Nie","Tak","Tak","Tak","Nie dotyczy","Tak","Nie","Tak","Nie dotyczy","Nie","Nie dotyczy","Nie dotyczy","Nie dotyczy","Nie dotyczy","Nie",0.15,0.26,0.26,0.24,0.44,0.32,"realistyczny","R,S,K,B,P,A","wychowawcza","Opiekunka środowiskowa","2015-07-10T04:25:36","Bez grupy","Nie","Przystąpienie samodzielne"]
["Studenciak","Kowalski","Kobieta","15 lat","Brak danych","miasto ponad 500 tys. mieszkańców","liceum ogólnokształcące","dolnośląskie","Tak","Tak","Tak","Tak","Nie","Tak","Tak","Nie","Tak","Nie","Nie","Tak","Nie","Nie","Nie","Nie","Tak","Tak","Nie","Nie","Nie","Tak","Nie","Tak","Tak","Nie","Tak","Nie","Tak","Nie","Nie","Nie","Tak","Nie","Tak","Nie","Nie","Tak","Tak","Nie","Tak","Nie","Tak","Nie","Tak","Tak","Nie","Tak","Tak","Tak","Tak","Nie","Nie","Nie","Tak","Tak","Tak","Tak","Nie","Tak","Tak","Tak","Tak","Nie","Tak","Tak","Tak","Tak","Nie","Tak","Nie","Tak","Nie","Tak","Tak","Tak","Nie","Tak","Nie","Nie","Tak","Nie","Nie","Nie","Nie","5) przywódca stada / inspirujący lider","1) klockami - budując, majsterkując","5) „Wielka Orkiestra Świątecznej Pomocy” - wystawa fotografii, relacje wolontariuszy","5) wykonywania zaprojektowanych przedmiotów","3) pracując w ogrodzie lub na działce","5) uporządkowana/-y i dobrze zorganizowana/-y","5) bezczynności i pozorowanych działań","6) staram się zawsze zdążyć - nie chcę, żeby inni musieli na mnie czekać","6) przypominający pracownię naukowca","5) żyć z pracy rąk i dobrze sobie radzić w każdej sytuacji","1) przygotujesz dużo danych, informacji, materiałów","2) pokażesz mu jakbyś to zrobił/-a, dając konkretny przykład","6) udział w projekcie mającym na celu wypromowanie regionu lub miasta, w którym mieszkasz","4) zaangażuję się dopiero wtedy, kiedy to, co będziemy robić będzie naprawdę ciekawe","6) kiedy nie mam dostępu do informacji i wiedzy, której w danym momencie potrzebuję","1) różnorodne zagadnienia naukowe i techniczne","4) współpracy z innymi w dobrej, przyjacielskiej atmosferze","3) nie lubię ściśle określonych reguł, to mnie ogranicza","5) realizację kreatywnych celów w zmotywowanym zespole","4) sympatię i szacunek ze strony innych ludzi","Tak","Tak","Tak","Tak","Nie dotyczy","Nie","Nie dotyczy","Nie dotyczy","Nie dotyczy","Nie dotyczy","Nie dotyczy","Nie dotyczy","Tak","Nie dotyczy","Nie dotyczy","Nie",0.28999999999999998,0.38,0.21,0.26,0.41,0.35,"realistyczny","R,B,S,A,P,K","organizacyjna","Technik żeglugi śródlądowej","2015-07-10T04:26:48","Grupa A","2015-07-06T09:00:15","Teodor Kowalski"]
["Student","Kowalski lub brak","Kobieta","15 lat","Brak danych","miasto ponad 500 tys. mieszkańców","liceum ogólnokształcące","dolnośląskie","Tak","Tak","Nie","Nie","Nie","Tak","Nie","Tak","Nie","Nie","Tak","Nie","Nie","Nie","Nie","Nie","Nie","Nie","Nie","Nie","Nie","Nie","Tak","Tak","Nie","Tak","Nie","Nie","Nie","Nie","Tak","Nie","Nie","Tak","Nie","Nie","Nie","Nie","Nie","Nie","Nie","Nie","Nie","Nie","Nie","Nie","Nie","Nie","Nie","Tak","Nie","Nie","Nie","Nie","Nie","Nie","Nie","Nie","Nie","Nie","Nie","Nie","Tak","Nie","Tak","Nie","Nie","Nie","Nie","Nie","Nie","Tak","Nie","Nie","Nie","Nie","Nie","Tak","Nie","Nie","Nie","Nie","Nie","Nie","Nie","4) serce na dłoni / dusza człowiek","3) w gry i zabawy z innymi","4) „Od Zera do Milionera - trendy w świecie biznesu”","4) przyjmowania nowych pracowników, pracy w dziale personalnym","3) pracując w ogrodzie lub na działce","4) konkretna/-y i praktyczna/-y","5) bezczynności i pozorowanych działań","3) praktycznie zawsze mam problem, żeby zdążyć - nie lubię, kiedy czas mnie ogranicza","4) reprezentacyjny, robiący wrażenie","5) żyć z pracy rąk i dobrze sobie radzić w każdej sytuacji","4) opowiesz o swojej pasji, będziesz odwoływał/-a się do przykładów, doświadczeń, emocji","5) powiesz mu, że jak dobrze zaplanuje i zorganizuje prace, to sobie z tym poradzi","6) udział w projekcie mającym na celu wypromowanie regionu lub miasta, w którym mieszkasz","6) skoncentruję się głównie na działaniu i konkretach","5) kiedy ludzie nie wiedzą czego konkretnie ode mnie chcą","5) naturalne talenty, możliwości i umiejętności innych","4) współpracy z innymi w dobrej, przyjacielskiej atmosferze","5) staram się je przestrzegać, wierzę że ustalono je dla dobra wszystkich","5) realizację kreatywnych celów w zmotywowanym zespole","2) pieniądze i wysoki prestiż społeczny","Tak","Tak","Tak","Tak","Nie dotyczy","Tak","Nie dotyczy","Nie dotyczy","Nie dotyczy","Nie dotyczy","Nie dotyczy","Nie dotyczy","Tak","Nie dotyczy","Nie dotyczy","Tak",0.09,0.06,0.12,0.18,0.28999999999999998,0.26,"przedsiębiorczy","R,S,P,K,A,B","organizacyjna","Technik drogownictwa","2015-07-10T20:54:32","Grupa A","2015-07-06T09:00:15","Teodor Kowalski"]
["Student","Kowalski lub brak","Kobieta","15 lat","Brak danych","miasto ponad 500 tys. mieszkańców","liceum ogólnokształcące","dolnośląskie","Tak","Tak","Nie","Nie","Nie","Tak","Nie","Tak","Nie","Nie","Tak","Nie","Nie","Nie","Nie","Nie","Nie","Nie","Nie","Nie","Nie","Nie","Tak","Tak","Nie","Tak","Nie","Nie","Nie","Nie","Tak","Nie","Nie","Tak","Nie","Nie","Nie","Nie","Nie","Nie","Nie","Nie","Nie","Nie","Nie","Nie","Nie","Nie","Nie","Tak","Nie","Nie","Nie","Nie","Nie","Nie","Nie","Nie","Nie","Nie","Nie","Nie","Tak","Nie","Tak","Nie","Nie","Nie","Nie","Nie","Nie","Tak","Nie","Nie","Nie","Nie","Nie","Tak","Nie","Nie","Nie","Nie","Nie","Nie","Nie","4) serce na dłoni / dusza człowiek","3) w gry i zabawy z innymi","4) „Od Zera do Milionera - trendy w świecie biznesu”","4) przyjmowania nowych pracowników, pracy w dziale personalnym","3) pracując w ogrodzie lub na działce","4) konkretna/-y i praktyczna/-y","5) bezczynności i pozorowanych działań","3) praktycznie zawsze mam problem, żeby zdążyć - nie lubię, kiedy czas mnie ogranicza","4) reprezentacyjny, robiący wrażenie","5) żyć z pracy rąk i dobrze sobie radzić w każdej sytuacji","4) opowiesz o swojej pasji, będziesz odwoływał/-a się do przykładów, doświadczeń, emocji","5) powiesz mu, że jak dobrze zaplanuje i zorganizuje prace, to sobie z tym poradzi","6) udział w projekcie mającym na celu wypromowanie regionu lub miasta, w którym mieszkasz","6) skoncentruję się głównie na działaniu i konkretach","5) kiedy ludzie nie wiedzą czego konkretnie ode mnie chcą","5) naturalne talenty, możliwości i umiejętności innych","4) współpracy z innymi w dobrej, przyjacielskiej atmosferze","5) staram się je przestrzegać, wierzę że ustalono je dla dobra wszystkich","5) realizację kreatywnych celów w zmotywowanym zespole","2) pieniądze i wysoki prestiż społeczny","Tak","Tak","Tak","Tak","Nie dotyczy","Tak","Nie dotyczy","Nie dotyczy","Nie dotyczy","Nie dotyczy","Nie dotyczy","Nie dotyczy","Tak","Nie dotyczy","Nie dotyczy","Tak",0.09,0.06,0.12,0.18,0.28999999999999998,0.26,"przedsiębiorczy","R,S,P,K,A,B","organizacyjna","Technik drogownictwa","2015-07-10T20:58:12","Grupa A","2015-07-06T09:00:15","Teodor Kowalski"]
["x","x","Kobieta","16 lat","Brak danych","miasto 50 - 100 tys. mieszkańców","technikum","łódzkie","Tak","Nie","Nie","Nie","Nie","Tak","Nie","Tak","Nie","Nie","Nie","Nie","Nie","Nie","Nie","Nie","Tak","Nie","Tak","Nie","Nie","Nie","Nie","Nie","Nie","Nie","Nie","Nie","Nie","Nie","Nie","Nie","Nie","Nie","Nie","Nie","Nie","Tak","Nie","Tak","Nie","Nie","Nie","Nie","Tak","Nie","Nie","Tak","Nie","Nie","Nie","Nie","Nie","Nie","Nie","Nie","Nie","Nie","Tak","Nie","Nie","Nie","Nie","Tak","Nie","Nie","Nie","Nie","Nie","Nie","Nie","Nie","Nie","Nie","Nie","Tak","Nie","Nie","Tak","Nie","Nie","Nie","Nie","Nie","Nie","3) dociekliwy badacz","3) w gry i zabawy z innymi","2) „Największe osiągnięcia współczesnej nauki”","2) zarządzania działem sprzedaży lub sprzedażą","4) porządkując swój pokój lub mieszkanie","2) przyjacielska/-i, uczynna/-y","1) powierzchowności, braku wiedzy bądź głupoty","1) zawsze jestem na czas - nie wyobrażam sobie spóźniania","3) uporządkowany, gdzie wszystko jest na swoim miejscu","4) być uznanym specjalistą / ekspertem w danej dziedzinie wiedzy czy środowisku zawodowym","2) zaprezentujesz realny przedmiot swoich zainteresowań i dasz spróbować innym","4) polecisz mu książki, strony internetowe, wskażesz materiały źródłowe","4) prace przy projekcie dotyczącym zagospodarowania terenów parku miejskiego (prace porządkowe, nasadzenia, prace elektryczne, mechaniczne itp.)","2) w zespole wykonuję swoją precyzyjnie określoną część pracy, tak jak pozostali","1) kiedy nie wiem co mam robić lub nagle zmieniają się reguły i wszędzie panuje nieporządek i chaos","3) praktyczne rozwiązania i sposoby wykonania konkretnych rzeczy","4) współpracy z innymi w dobrej, przyjacielskiej atmosferze","6) przestrzegam reguł i zasad, przecież czemuś służą","2) rozwiązywanie naukowych i technicznych problemów w niezależnym środowisku","2) pieniądze i wysoki prestiż społeczny","Tak","Nie","Nie dotyczy","Nie dotyczy","Nie dotyczy","Nie dotyczy","Nie dotyczy","Nie dotyczy","Nie dotyczy","Nie dotyczy","Nie dotyczy","Nie","Tak","Nie","Tak","Nie dotyczy",0,0.32,0.18,0.15,0.21,0.09,"badawczy","B,R,K,P,S,A","poznawcza","Technik teleinformatyk","2015-07-13T14:23:34","Bez grupy","Nie","Przystąpienie samodzielne"]
["Jan","Kowalski","Mężczyzna","20 lat","Brak danych","miasto ponad 500 tys. mieszkańców","gimnazjum","mazowieckie","Nie","Tak","Nie","Nie","Nie","Nie","Nie","Nie","Nie","Nie","Nie","Nie","Nie","Nie","Nie","Nie","Nie","Tak","Nie","Nie","Nie","Nie","Nie","Nie","Nie","Nie","Nie","Nie","Nie","Nie","Nie","Tak","Nie","Nie","Nie","Nie","Nie","Nie","Nie","Nie","Nie","Nie","Nie","Nie","Nie","Tak","Nie","Nie","Nie","Nie","Nie","Nie","Nie","Nie","Nie","Nie","Nie","Nie","Nie","Nie","Nie","Tak","Nie","Nie","Nie","Nie","Nie","Nie","Nie","Nie","Nie","Nie","Nie","Nie","Nie","Nie","Tak","Nie","Nie","Nie","Nie","Nie","Nie","Nie","Nie","3) dociekliwy badacz","3) w gry i zabawy z innymi","4) „Od Zera do Milionera - trendy w świecie biznesu”","4) przyjmowania nowych pracowników, pracy w dziale personalnym","3) pracując w ogrodzie lub na działce","5) uporządkowana/-y i dobrze zorganizowana/-y","5) bezczynności i pozorowanych działań","1) zawsze jestem na czas - nie wyobrażam sobie spóźniania","3) uporządkowany, gdzie wszystko jest na swoim miejscu","4) być uznanym specjalistą / ekspertem w danej dziedzinie wiedzy czy środowisku zawodowym","1) przygotujesz dużo danych, informacji, materiałów","3) opowiesz mu jak mógłby przygotować nieszablonową prezentację","4) prace przy projekcie dotyczącym zagospodarowania terenów parku miejskiego (prace porządkowe, nasadzenia, prace elektryczne, mechaniczne itp.)","5) będę się również starał pomagać innym, gdyby mieli problemy","6) kiedy nie mam dostępu do informacji i wiedzy, której w danym momencie potrzebuję","6) ukryte przesłania i symbole zawarte w dziełach sztuki","6) ściśle określonych reguł, zasad bądź procedur","6) przestrzegam reguł i zasad, przecież czemuś służą","6) systematyczne działania w uporządkowanym środowisku","5) możliwość wyrażania siebie, wykorzystania swoich talentów","Nie","Nie","Nie","Nie","Nie","Nie dotyczy","Nie","Tak","Nie dotyczy","Nie dotyczy","Nie","Nie","Nie","Nie","Nie dotyczy","Nie dotyczy",0.09,0.18,0.15,0.12,0.15,0.09,"konwencjonalny","B,R,K,P,A,S","porządkowa","Introligator","2015-07-17T23:53:44","Bez grupy","Nie","Przystąpienie samodzielne"]
["Jan","Kowalski","Mężczyzna","20 lat","Brak danych","miasto ponad 500 tys. mieszkańców","gimnazjum","mazowieckie","Nie","Tak","Nie","Nie","Nie","Nie","Nie","Nie","Nie","Nie","Nie","Nie","Nie","Nie","Nie","Nie","Nie","Tak","Nie","Nie","Nie","Nie","Nie","Nie","Nie","Nie","Nie","Nie","Nie","Nie","Nie","Tak","Nie","Nie","Nie","Nie","Nie","Nie","Nie","Nie","Nie","Nie","Nie","Nie","Nie","Tak","Nie","Nie","Nie","Nie","Nie","Nie","Nie","Nie","Nie","Nie","Nie","Nie","Nie","Nie","Nie","Tak","Nie","Nie","Nie","Nie","Nie","Nie","Nie","Nie","Nie","Nie","Nie","Nie","Nie","Nie","Tak","Nie","Nie","Nie","Nie","Nie","Nie","Nie","Nie","3) dociekliwy badacz","3) w gry i zabawy z innymi","4) „Od Zera do Milionera - trendy w świecie biznesu”","4) przyjmowania nowych pracowników, pracy w dziale personalnym","3) pracując w ogrodzie lub na działce","5) uporządkowana/-y i dobrze zorganizowana/-y","5) bezczynności i pozorowanych działań","1) zawsze jestem na czas - nie wyobrażam sobie spóźniania","3) uporządkowany, gdzie wszystko jest na swoim miejscu","4) być uznanym specjalistą / ekspertem w danej dziedzinie wiedzy czy środowisku zawodowym","1) przygotujesz dużo danych, informacji, materiałów","3) opowiesz mu jak mógłby przygotować nieszablonową prezentację","4) prace przy projekcie dotyczącym zagospodarowania terenów parku miejskiego (prace porządkowe, nasadzenia, prace elektryczne, mechaniczne itp.)","5) będę się również starał pomagać innym, gdyby mieli problemy","6) kiedy nie mam dostępu do informacji i wiedzy, której w danym momencie potrzebuję","6) ukryte przesłania i symbole zawarte w dziełach sztuki","6) ściśle określonych reguł, zasad bądź procedur","6) przestrzegam reguł i zasad, przecież czemuś służą","6) systematyczne działania w uporządkowanym środowisku","5) możliwość wyrażania siebie, wykorzystania swoich talentów","Nie","Nie","Nie","Nie","Nie","Nie dotyczy","Nie","Tak","Nie dotyczy","Nie dotyczy","Nie","Nie","Nie","Nie","Nie dotyczy","Nie dotyczy",0.09,0.18,0.15,0.12,0.15,0.09,"konwencjonalny","B,R,K,P,A,S","porządkowa","Introligator","2015-07-17T23:54:02","Bez grupy","Nie","Przystąpienie samodzielne"]
["Jan","Kowalski","Mężczyzna","20 lat","Brak danych","miasto ponad 500 tys. mieszkańców","gimnazjum","mazowieckie","Nie","Tak","Nie","Nie","Nie","Nie","Nie","Nie","Nie","Nie","Nie","Nie","Nie","Nie","Nie","Nie","Nie","Tak","Nie","Nie","Nie","Nie","Nie","Nie","Nie","Nie","Nie","Nie","Nie","Nie","Nie","Tak","Nie","Nie","Nie","Nie","Nie","Nie","Nie","Nie","Nie","Nie","Nie","Nie","Nie","Tak","Nie","Nie","Nie","Nie","Nie","Nie","Nie","Nie","Nie","Nie","Nie","Nie","Nie","Nie","Nie","Tak","Nie","Nie","Nie","Nie","Nie","Nie","Nie","Nie","Nie","Nie","Nie","Nie","Nie","Nie","Tak","Nie","Nie","Nie","Nie","Nie","Nie","Nie","Nie","3) dociekliwy badacz","3) w gry i zabawy z innymi","4) „Od Zera do Milionera - trendy w świecie biznesu”","4) przyjmowania nowych pracowników, pracy w dziale personalnym","3) pracując w ogrodzie lub na działce","5) uporządkowana/-y i dobrze zorganizowana/-y","5) bezczynności i pozorowanych działań","1) zawsze jestem na czas - nie wyobrażam sobie spóźniania","3) uporządkowany, gdzie wszystko jest na swoim miejscu","4) być uznanym specjalistą / ekspertem w danej dziedzinie wiedzy czy środowisku zawodowym","1) przygotujesz dużo danych, informacji, materiałów","3) opowiesz mu jak mógłby przygotować nieszablonową prezentację","4) prace przy projekcie dotyczącym zagospodarowania terenów parku miejskiego (prace porządkowe, nasadzenia, prace elektryczne, mechaniczne itp.)","5) będę się również starał pomagać innym, gdyby mieli problemy","6) kiedy nie mam dostępu do informacji i wiedzy, której w danym momencie potrzebuję","6) ukryte przesłania i symbole zawarte w dziełach sztuki","6) ściśle określonych reguł, zasad bądź procedur","6) przestrzegam reguł i zasad, przecież czemuś służą","6) systematyczne działania w uporządkowanym środowisku","5) możliwość wyrażania siebie, wykorzystania swoich talentów","Nie","Nie","Nie","Nie","Nie","Nie dotyczy","Nie","Nie","Nie dotyczy","Nie dotyczy","Nie","Nie","Nie","Nie","Nie dotyczy","Nie dotyczy",0.09,0.18,0.15,0.12,0.15,0.09,"konwencjonalny","B,R,K,P,A,S","porządkowa","Introligator","2015-07-18T00:01:33","Bez grupy","Nie","Przystąpienie samodzielne"]
["Student","Testowy 0","Mężczyzna","15 lat","Uniwersytet Mikołaja Kopernika w Toruniu","miasto 100 - 500 tys. mieszkańców","liceum ogólnokształcące","kujawsko-pomorskie","Tak","Nie","Tak","Nie","Tak","Tak","Tak","Nie","Tak","Tak","Tak","Tak","Nie","Nie","Nie","Nie","Nie","Nie","Nie","Tak","Nie","Nie","Nie","Nie","Tak","Tak","Tak","Nie","Tak","Tak","Nie","Nie","Tak","Tak","Nie","Tak","Nie","Tak","Tak","Tak","Tak","Nie","Nie","Nie","Nie","Tak","Tak","Tak","Nie","Nie","Nie","Nie","Nie","Tak","Nie","Tak","Tak","Tak","Tak","Nie","Tak","Tak","Tak","Tak","Tak","Tak","Nie","Nie","Nie","Tak","Tak","Nie","Tak","Tak","Nie","Nie","Tak","Tak","Nie","Nie","Nie","Nie","Tak","Nie","Nie","3) dociekliwy badacz","6) najchętniej bawiłam/-em się sam/-a","3) „Nowinki ze świata techniki”","3) pracy w biurze i porządkowania dokumentacji","4) porządkując swój pokój lub mieszkanie","2) przyjacielska/-i, uczynna/-y","5) bezczynności i pozorowanych działań","1) zawsze jestem na czas - nie wyobrażam sobie spóźniania","5) przytulny, w którym każdy czuje się dobrze","4) być uznanym specjalistą / ekspertem w danej dziedzinie wiedzy czy środowisku zawodowym","2) zaprezentujesz realny przedmiot swoich zainteresowań i dasz spróbować innym","4) polecisz mu książki, strony internetowe, wskażesz materiały źródłowe","3) prace przy organizacji dni ulicy, przygotowanie programu artystycznego","1) najchętniej sam/-a wszystko zrobię, ponieważ najlepiej pracuje mi się niezależnie od innych","6) kiedy nie mam dostępu do informacji i wiedzy, której w danym momencie potrzebuję","4) dane statystyczne, zestawienia liczbowe, określone procedury","4) współpracy z innymi w dobrej, przyjacielskiej atmosferze","4) przestrzegam przede wszystkim tych, które rozumiem i wydaje mi się, że są logiczne i uzasadnione","6) systematyczne działania w uporządkowanym środowisku","1) poczucie bezpieczeństwa wynikające z jasno określonych reguł i stałych przychodów","Nie","Tak","Nie","Nie","Nie","Nie dotyczy","Tak","Tak","Nie dotyczy","Nie dotyczy","Nie","Tak","Tak","Nie","Nie dotyczy","Nie dotyczy",0.21,0.44,0.47,0.24,0.18,0.28999999999999998,"konwencjonalny","K,B,S,P,A,R","porządkowa","Technik cyfrowych procesów graficznych","2015-07-19T02:57:53","Grupa A","2015-07-14T22:14:01","Teodor Kowalski"]
["Student","Testowy 54","Mężczyzna","30 lat","Akademia Muzyczna im. Feliksa Nowowiejskiego w Bydgoszczy","miasto ponad 500 tys. mieszkańców","szkoła policealna","kujawsko-pomorskie","Nie","Nie","Nie","Tak","Nie","Nie","Tak","Nie","Tak","Tak","Tak","Nie","Tak","Tak","Tak","Nie","Tak","Tak","Tak","Tak","Nie","Tak","Nie","Nie","Nie","Nie","Nie","Nie","Tak","Tak","Nie","Nie","Tak","Nie","Nie","Nie","Tak","Nie","Tak","Nie","Nie","Nie","Tak","Tak","Tak","Nie","Tak","Tak","Nie","Nie","Tak","Tak","Nie","Tak","Nie","Nie","Nie","Tak","Tak","Nie","Nie","Tak","Nie","Tak","Tak","Tak","Tak","Nie","Tak","Nie","Nie","Tak","Tak","Nie","Nie","Tak","Nie","Tak","Tak","Tak","Tak","Nie","Nie","Tak","Nie","2) praktyczny realista","6) najchętniej bawiłam/-em się sam/-a","3) „Nowinki ze świata techniki”","1) projektowania nowych modeli, sprzętów, bibelotów itp.","5) organizując różne ciekawe przedsięwzięcia","2) przyjacielska/-i, uczynna/-y","4) niezdecydowania i niezaradności","1) zawsze jestem na czas - nie wyobrażam sobie spóźniania","5) przytulny, w którym każdy czuje się dobrze","1) być samodzielnym i niezależnym, zarabiać dużo pieniędzy","6) rzetelnie przygotujesz uporządkowaną prezentację, przedstawiającą Twoje hobby","2) pokażesz mu jakbyś to zrobił/-a, dając konkretny przykład","3) prace przy organizacji dni ulicy, przygotowanie programu artystycznego","2) w zespole wykonuję swoją precyzyjnie określoną część pracy, tak jak pozostali","6) kiedy nie mam dostępu do informacji i wiedzy, której w danym momencie potrzebuję","1) różnorodne zagadnienia naukowe i techniczne","2) możliwości samodzielnego znalezienia logicznego, racjonalnego rozwiązania","5) staram się je przestrzegać, wierzę że ustalono je dla dobra wszystkich","2) rozwiązywanie naukowych i technicznych problemów w niezależnym środowisku","6) poczucie, że to, co robię jest przydatne i praktyczne","Nie dotyczy","Tak","Nie","Nie","Tak","Nie","Nie dotyczy","Nie dotyczy","Tak","Nie","Nie dotyczy","Nie dotyczy","Nie dotyczy","Nie dotyczy","Nie dotyczy","Tak",0.21,0.32,0.35,0.28999999999999998,0.28999999999999998,0.35,"konwencjonalny","K,S,B,R,P,A","artystyczna","Technik technologii odzieży","2015-07-19T04:00:42","Bez grupy","Nie","Przystąpienie samodzielne"]
["Student","Testowy 0","Mężczyzna","29 lat","Kolegium Jagiellońskie – Toruńska Szkoła Wyższa [do 2013-09-10 Toruńska Szkoła Wyższa]","miasto 100 - 500 tys. mieszkańców","szkoła policealna","kujawsko-pomorskie","Tak","Tak","Nie","Nie","Nie","Nie","Nie","Nie","Nie","Nie","Nie","Nie","Nie","Nie","Nie","Nie","Tak","Nie","Nie","Nie","Nie","Nie","Nie","Nie","Nie","Nie","Nie","Nie","Nie","Nie","Nie","Tak","Nie","Nie","Nie","Nie","Nie","Nie","Nie","Nie","Nie","Nie","Nie","Nie","Nie","Nie","Tak","Nie","Nie","Nie","Nie","Nie","Nie","Nie","Nie","Nie","Nie","Nie","Nie","Nie","Nie","Tak","Nie","Nie","Nie","Nie","Nie","Nie","Nie","Nie","Nie","Nie","Nie","Nie","Nie","Nie","Tak","Nie","Nie","Nie","Nie","Nie","Nie","Nie","Nie","5) przywódca stada / inspirujący lider","6) najchętniej bawiłam/-em się sam/-a","5) „Wielka Orkiestra Świątecznej Pomocy” - wystawa fotografii, relacje wolontariuszy","5) wykonywania zaprojektowanych przedmiotów","4) porządkując swój pokój lub mieszkanie","5) uporządkowana/-y i dobrze zorganizowana/-y","5) bezczynności i pozorowanych działań","5) wszystko musi być tak, jak sobie wcześniej ustaliłam/-em - nie pozwolę sobie na spóźnienie, stracił/a/bym w oczach innych","4) reprezentacyjny, robiący wrażenie","5) żyć z pracy rąk i dobrze sobie radzić w każdej sytuacji","6) rzetelnie przygotujesz uporządkowaną prezentację, przedstawiającą Twoje hobby","6) zapewnisz, że sam sobie świetnie da radę i trzymasz za niego kciuki, wzmocnisz jego wiarę w siebie","4) prace przy projekcie dotyczącym zagospodarowania terenów parku miejskiego (prace porządkowe, nasadzenia, prace elektryczne, mechaniczne itp.)","4) zaangażuję się dopiero wtedy, kiedy to, co będziemy robić będzie naprawdę ciekawe","4) nie mam swobody wyrażania siebie i swoich myśli","5) naturalne talenty, możliwości i umiejętności innych","5) zgranego efektywnego zespołu, który z entuzjazmem zrealizuje mój pomysł","6) przestrzegam reguł i zasad, przecież czemuś służą","5) realizację kreatywnych celów w zmotywowanym zespole","5) możliwość wyrażania siebie, wykorzystania swoich talentów","Tak","Tak","Tak","Nie","Nie","Nie dotyczy","Nie","Nie","Nie dotyczy","Nie","Nie","Nie","Nie","Nie","Nie dotyczy","Nie dotyczy",0.09,0.12,0.12,0.24,0.18,0.03,"przedsiębiorczy","P,R,B,K,A,S","usługowa","Technik telekomunikacji","2015-07-19T11:53:09","Grupa A","2015-07-19T10:29:43","Teodor Kowalski"]
["Marta","Szulc","Kobieta","20 lat","Katolicki Uniwersytet Lubelski Jana Pawła ii w Lublinie","miasto 50 - 100 tys. mieszkańców","liceum ogólnokształcące","lubelskie","Tak","Nie","Nie","Nie","Nie","Nie","Nie","Nie","Nie","Nie","Nie","Nie","Nie","Nie","Tak","Nie","Nie","Nie","Nie","Nie","Nie","Nie","Nie","Nie","Nie","Nie","Nie","Nie","Tak","Nie","Nie","Nie","Nie","Nie","Nie","Nie","Nie","Nie","Nie","Tak","Nie","Nie","Nie","Nie","Nie","Nie","Nie","Nie","Nie","Nie","Nie","Nie","Nie","Nie","Nie","Tak","Nie","Nie","Nie","Nie","Nie","Nie","Nie","Nie","Nie","Nie","Nie","Nie","Nie","Tak","Nie","Nie","Nie","Nie","Nie","Nie","Nie","Nie","Nie","Nie","Nie","Nie","Nie","Tak","Nie","6) skrupulatny wykonawca","6) najchętniej bawiłam/-em się sam/-a","6) „Prezentacja skutecznych metod organizacji pracy”","2) zarządzania działem sprzedaży lub sprzedażą","5) organizując różne ciekawe przedsięwzięcia","5) uporządkowana/-y i dobrze zorganizowana/-y","5) bezczynności i pozorowanych działań","5) wszystko musi być tak, jak sobie wcześniej ustaliłam/-em - nie pozwolę sobie na spóźnienie, stracił/a/bym w oczach innych","5) przytulny, w którym każdy czuje się dobrze","5) żyć z pracy rąk i dobrze sobie radzić w każdej sytuacji","5) przygotujesz inspirujące wystąpienie, pragnąc zarazić innych swoim \"bakcylem\"","5) powiesz mu, że jak dobrze zaplanuje i zorganizuje prace, to sobie z tym poradzi","5) pomoc ofiarom powodzi / osobom niepełnosprawnym","5) będę się również starał pomagać innym, gdyby mieli problemy","5) kiedy ludzie nie wiedzą czego konkretnie ode mnie chcą","5) naturalne talenty, możliwości i umiejętności innych","5) zgranego efektywnego zespołu, który z entuzjazmem zrealizuje mój pomysł","5) staram się je przestrzegać, wierzę że ustalono je dla dobra wszystkich","5) realizację kreatywnych celów w zmotywowanym zespole","5) możliwość wyrażania siebie, wykorzystania swoich talentów","Nie","Tak","Tak","Tak","Nie","Nie dotyczy","Nie","Nie","Nie dotyczy","Nie dotyczy","Nie","Nie","Nie","Nie","Nie dotyczy","Nie dotyczy",0.06,0.09,0.15,0.21,0.12,0.15,"konwencjonalny","R,K,A,B,S,P","porządkowa","Introligator","2015-07-20T13:44:58","Bez grupy","Nie","Przystąpienie samodzielne"]
["Marta","Szulc","Kobieta","20 lat","Katolicki Uniwersytet Lubelski Jana Pawła ii w Lublinie","miasto 50 - 100 tys. mieszkańców","liceum ogólnokształcące","lubelskie","Tak","Nie","Nie","Nie","Nie","Nie","Nie","Nie","Nie","Nie","Nie","Nie","Nie","Nie","Tak","Nie","Nie","Nie","Nie","Nie","Nie","Nie","Nie","Nie","Nie","Nie","Nie","Nie","Tak","Nie","Nie","Nie","Nie","Nie","Nie","Nie","Nie","Nie","Nie","Tak","Nie","Nie","Nie","Nie","Nie","Nie","Nie","Nie","Nie","Nie","Nie","Nie","Nie","Nie","Nie","Tak","Nie","Nie","Nie","Nie","Nie","Nie","Nie","Nie","Nie","Nie","Nie","Nie","Nie","Tak","Nie","Nie","Nie","Nie","Nie","Nie","Nie","Nie","Nie","Nie","Nie","Nie","Nie","Tak","Nie","6) skrupulatny wykonawca","6) najchętniej bawiłam/-em się sam/-a","6) „Prezentacja skutecznych metod organizacji pracy”","2) zarządzania działem sprzedaży lub sprzedażą","5) organizując różne ciekawe przedsięwzięcia","5) uporządkowana/-y i dobrze zorganizowana/-y","5) bezczynności i pozorowanych działań","5) wszystko musi być tak, jak sobie wcześniej ustaliłam/-em - nie pozwolę sobie na spóźnienie, stracił/a/bym w oczach innych","5) przytulny, w którym każdy czuje się dobrze","5) żyć z pracy rąk i dobrze sobie radzić w każdej sytuacji","5) przygotujesz inspirujące wystąpienie, pragnąc zarazić innych swoim \"bakcylem\"","5) powiesz mu, że jak dobrze zaplanuje i zorganizuje prace, to sobie z tym poradzi","5) pomoc ofiarom powodzi / osobom niepełnosprawnym","5) będę się również starał pomagać innym, gdyby mieli problemy","5) kiedy ludzie nie wiedzą czego konkretnie ode mnie chcą","5) naturalne talenty, możliwości i umiejętności innych","5) zgranego efektywnego zespołu, który z entuzjazmem zrealizuje mój pomysł","5) staram się je przestrzegać, wierzę że ustalono je dla dobra wszystkich","5) realizację kreatywnych celów w zmotywowanym zespole","5) możliwość wyrażania siebie, wykorzystania swoich talentów","Nie","Tak","Tak","Tak","Nie","Nie dotyczy","Nie","Nie","Nie dotyczy","Nie dotyczy","Nie","Nie","Nie","Nie","Nie dotyczy","Nie dotyczy",0.06,0.09,0.15,0.21,0.12,0.15,"konwencjonalny","R,K,A,B,S,P","porządkowa","Technik cyfrowych procesów graficznych","2015-07-20T13:45:24","Bez grupy","Nie","Przystąpienie samodzielne"]
["Katarzyna","Stokłosa","Kobieta","22 lat","Liceum Ogólnokształcące dla Dorosłych w Prywatnym Zespole Szkół Zawodowych, Zgorzelecka 18, Bolesławiec","miasto 50 - 100 tys. mieszkańców","liceum ogólnokształcące","dolnośląskie","Tak","Nie","Nie","Nie","Nie","Nie","Nie","Nie","Nie","Nie","Nie","Nie","Nie","Nie","Tak","Nie","Nie","Nie","Nie","Nie","Nie","Nie","Nie","Nie","Nie","Nie","Nie","Nie","Tak","Nie","Nie","Nie","Nie","Nie","Nie","Nie","Nie","Nie","Nie","Nie","Nie","Nie","Tak","Nie","Nie","Nie","Nie","Nie","Nie","Nie","Nie","Nie","Nie","Nie","Nie","Nie","Tak","Nie","Nie","Nie","Nie","Nie","Nie","Nie","Nie","Nie","Nie","Nie","Nie","Nie","Tak","Nie","Nie","Nie","Nie","Nie","Nie","Nie","Nie","Nie","Nie","Nie","Nie","Nie","Tak","6) skrupulatny wykonawca","6) najchętniej bawiłam/-em się sam/-a","6) „Prezentacja skutecznych metod organizacji pracy”","6) badania i analizy rynku","6) rozwiązując łamigłówki i problemy logiczne","6) niekonwencjonalna/-y, twórcza/-y","6) braku wyobraźni i wrażliwości","6) staram się zawsze zdążyć - nie chcę, żeby inni musieli na mnie czekać","6) przypominający pracownię naukowca","6) dążyć do doskonałości i perfekcji","6) rzetelnie przygotujesz uporządkowaną prezentację, przedstawiającą Twoje hobby","6) zapewnisz, że sam sobie świetnie da radę i trzymasz za niego kciuki, wzmocnisz jego wiarę w siebie","6) udział w projekcie mającym na celu wypromowanie regionu lub miasta, w którym mieszkasz","6) skoncentruję się głównie na działaniu i konkretach","6) kiedy nie mam dostępu do informacji i wiedzy, której w danym momencie potrzebuję","6) ukryte przesłania i symbole zawarte w dziełach sztuki","6) ściśle określonych reguł, zasad bądź procedur","6) przestrzegam reguł i zasad, przecież czemuś służą","6) systematyczne działania w uporządkowanym środowisku","6) poczucie, że to, co robię jest przydatne i praktyczne","Nie dotyczy","Nie dotyczy","Nie dotyczy","Nie dotyczy","Nie dotyczy","Nie dotyczy","Nie dotyczy","Nie dotyczy","Nie dotyczy","Nie dotyczy","Nie dotyczy","Nie dotyczy","Nie dotyczy","Nie dotyczy","Nie dotyczy","Nie dotyczy",0.09,0.18,0.18,0.12,0.12,0.09,"badawczy","K,B,R,P,A,S","informacyjna","Technik administracji","2015-07-21T07:54:09","Bez grupy","Nie","Przystąpienie samodzielne"]
["Katarzyna","Stokłosa","Kobieta","22 lat","Liceum Ogólnokształcące dla Dorosłych w Prywatnym Zespole Szkół Zawodowych, Zgorzelecka 18, Bolesławiec","miasto 50 - 100 tys. mieszkańców","liceum ogólnokształcące","dolnośląskie","Tak","Nie","Nie","Nie","Nie","Nie","Nie","Nie","Nie","Nie","Nie","Nie","Nie","Nie","Tak","Nie","Nie","Nie","Nie","Nie","Nie","Nie","Nie","Nie","Nie","Nie","Nie","Nie","Tak","Nie","Nie","Nie","Nie","Nie","Nie","Nie","Nie","Nie","Nie","Nie","Nie","Nie","Tak","Nie","Nie","Nie","Nie","Nie","Nie","Nie","Nie","Nie","Nie","Nie","Nie","Nie","Tak","Nie","Nie","Nie","Nie","Nie","Nie","Nie","Nie","Nie","Nie","Nie","Nie","Nie","Tak","Nie","Nie","Nie","Nie","Nie","Nie","Nie","Nie","Nie","Nie","Nie","Nie","Nie","Tak","6) skrupulatny wykonawca","6) najchętniej bawiłam/-em się sam/-a","6) „Prezentacja skutecznych metod organizacji pracy”","6) badania i analizy rynku","6) rozwiązując łamigłówki i problemy logiczne","6) niekonwencjonalna/-y, twórcza/-y","6) braku wyobraźni i wrażliwości","6) staram się zawsze zdążyć - nie chcę, żeby inni musieli na mnie czekać","6) przypominający pracownię naukowca","6) dążyć do doskonałości i perfekcji","6) rzetelnie przygotujesz uporządkowaną prezentację, przedstawiającą Twoje hobby","6) zapewnisz, że sam sobie świetnie da radę i trzymasz za niego kciuki, wzmocnisz jego wiarę w siebie","6) udział w projekcie mającym na celu wypromowanie regionu lub miasta, w którym mieszkasz","6) skoncentruję się głównie na działaniu i konkretach","6) kiedy nie mam dostępu do informacji i wiedzy, której w danym momencie potrzebuję","6) ukryte przesłania i symbole zawarte w dziełach sztuki","6) ściśle określonych reguł, zasad bądź procedur","6) przestrzegam reguł i zasad, przecież czemuś służą","6) systematyczne działania w uporządkowanym środowisku","6) poczucie, że to, co robię jest przydatne i praktyczne","Nie","Nie","Nie dotyczy","Nie dotyczy","Nie dotyczy","Nie dotyczy","Nie dotyczy","Nie dotyczy","Nie dotyczy","Nie dotyczy","Nie dotyczy","Nie","Tak","Tak","Nie","Nie dotyczy",0.09,0.18,0.18,0.12,0.12,0.09,"badawczy","K,B,R,P,A,S","poznawcza","Technik tyfloinformatyk","2015-07-21T07:55:08","Bez grupy","Nie","Przystąpienie samodzielne"]
["Teodor","Kowalski","Mężczyzna","15 lat","Zielona Nibylandia, Matejki 2, Bolesławiec","miasto ponad 500 tys. mieszkańców","szkoła policealna","dolnośląskie","Tak","Tak","Nie","Nie","Nie","Nie","Nie","Nie","Nie","Nie","Nie","Nie","Nie","Nie","Nie","Tak","Nie","Nie","Nie","Nie","Nie","Nie","Nie","Nie","Nie","Nie","Nie","Nie","Nie","Nie","Nie","Nie","Nie","Nie","Nie","Nie","Nie","Nie","Nie","Nie","Nie","Nie","Tak","Nie","Nie","Nie","Nie","Nie","Nie","Nie","Nie","Nie","Nie","Nie","Nie","Nie","Nie","Nie","Nie","Nie","Nie","Nie","Nie","Nie","Nie","Nie","Nie","Nie","Nie","Nie","Tak","Nie","Nie","Nie","Nie","Nie","Nie","Nie","Nie","Nie","Nie","Nie","Nie","Nie","Tak","6) skrupulatny wykonawca","6) najchętniej bawiłam/-em się sam/-a","6) „Prezentacja skutecznych metod organizacji pracy”","6) badania i analizy rynku","6) rozwiązując łamigłówki i problemy logiczne","6) niekonwencjonalna/-y, twórcza/-y","6) braku wyobraźni i wrażliwości","6) staram się zawsze zdążyć - nie chcę, żeby inni musieli na mnie czekać","6) przypominający pracownię naukowca","6) dążyć do doskonałości i perfekcji","6) rzetelnie przygotujesz uporządkowaną prezentację, przedstawiającą Twoje hobby","6) zapewnisz, że sam sobie świetnie da radę i trzymasz za niego kciuki, wzmocnisz jego wiarę w siebie","6) udział w projekcie mającym na celu wypromowanie regionu lub miasta, w którym mieszkasz","6) skoncentruję się głównie na działaniu i konkretach","6) kiedy nie mam dostępu do informacji i wiedzy, której w danym momencie potrzebuję","6) ukryte przesłania i symbole zawarte w dziełach sztuki","6) ściśle określonych reguł, zasad bądź procedur","6) przestrzegam reguł i zasad, przecież czemuś służą","6) systematyczne działania w uporządkowanym środowisku","6) poczucie, że to, co robię jest przydatne i praktyczne","Nie dotyczy","Nie dotyczy","Nie dotyczy","Nie dotyczy","Nie dotyczy","Nie dotyczy","Nie dotyczy","Nie dotyczy","Nie dotyczy","Nie dotyczy","Nie dotyczy","Nie dotyczy","Nie dotyczy","Nie dotyczy","Nie dotyczy","Nie dotyczy",0.09,0.15,0.18,0.15,0.12,0.06,"badawczy","K,B,P,R,A,S","informacyjna","Technik rachunkowości","2015-07-21T09:39:55","Bez grupy","Nie","Przystąpienie samodzielne"]

{"sheet":"3. Statystyki testów","index":2,"n_rows":10,"n_cols":7,"rows_kept":10,"cut":false,"hidden":false,"merged":[[4,0,4,1]]}
[]
[]
[]
[]
["Parametry raportu",null,null,null,null,"Opis","Ilość"]
["Data od",null,null,null,null,"liczba szkół/instytucji uczestniczących w badaniu",6]
["Data do",null,null,null,null,"liczba klas/grup uczestniczących w badaniu",1]
["Płeć",null,null,null,null,"liczba osób poddanych badaniu",{"$f":"G9+G10","v":28}]
["Grupa",null,null,null,null,"   kobiet",{"$f":"COUNTIF(Src!C:C,\"Kobieta\")","v":21}]
[null,null,null,null,null,"   mężczyzn",{"$f":"COUNTIF(Src!C:C,\"Mężczyzna\")","v":7}]

{"sheet":"4. Analiza części A testu","index":3,"n_rows":153,"n_cols":4,"rows_kept":153,"cut":false,"hidden":false,"merged":[]}
[]
[]
[]
[]
[]
[]
[]
[]
[]
[]
[]
[]
[]
[]
[]
[]
[]
[]
[]
[]
[]
[]
[]
[]
[]
[]
[]
[]
[]
[]
[]
[]
[]
[]
[]
[]
[]
[]
[]
[]
[]
[]
[]
[]
[]
[]
[]
[]
[]
[]
[]
[]
[]
[]
[]
[]
[]
[]
[]
[]
[]
[]
[]
[]
[]
[]
[]
[]
["lp","pytanie","ilość odpowiedzi \"tak\"","procent odpowiedzi \"tak\""]
[1,"Kiedy pracuję nie przeszkadza mi, że zabrudzę sobie ręce.",{"$f":"COUNTIF(Src!J:J,\"Tak\")","v":14},{"$f":"C70/(COUNTA(Src!J:J)-1)","v":0.5}]
[2,"Zanim zacznę cokolwiek robić, muszę najpierw wszystko uporządkować.",{"$f":"COUNTIF(Src!K:K,\"Tak\")","v":10},{"$f":"C71/(COUNTA(Src!K:K)-1)","v":0.35714285714285715}]
[3,"Chętnie wykonuję rzeczy praktyczne, w przyszłości chciałabym/chciałbym „pracować rękami”.",{"$f":"COUNTIF(Src!L:L,\"Tak\")","v":5},{"$f":"C72/(COUNTA(Src!L:L)-1)","v":0.17857142857142858}]
[4,"Zawsze doceniam piękne otoczenie.",{"$f":"COUNTIF(Src!M:M,\"Tak\")","v":4},{"$f":"C73/(COUNTA(Src!M:M)-1)","v":0.14285714285714285}]
[5,"Dużą satysfakcję daje mi nauka oraz poznawanie nowych teorii.",{"$f":"COUNTIF(Src!N:N,\"Tak\")","v":10},{"$f":"C74/(COUNTA(Src!N:N)-1)","v":0.35714285714285715}]
[6,"Ważna jest dla mnie dbałość o szczegóły.",{"$f":"COUNTIF(Src!O:O,\"Tak\")","v":8},{"$f":"C75/(COUNTA(Src!O:O)-1)","v":0.2857142857142857}]
[7,"Lubię pracować na świeżym powietrzu, mam wtedy więcej energii do działania.",{"$f":"COUNTIF(Src!P:P,\"Tak\")","v":6},{"$f":"C76/(COUNTA(Src!P:P)-1)","v":0.21428571428571427}]
[8,"To inni ludzie nadają sens mojemu życiu.",{"$f":"COUNTIF(Src!Q:Q,\"Tak\")","v":8},{"$f":"C77/(COUNTA(Src!Q:Q)-1)","v":0.2857142857142857}]
[9,"Lubię rywalizować.",{"$f":"COUNTIF(Src!R:R,\"Tak\")","v":10},{"$f":"C78/(COUNTA(Src!R:R)-1)","v":0.35714285714285715}]
[10,"Zajmowanie się innymi ludźmi sprawia mi przyjemność.",{"$f":"COUNTIF(Src!S:S,\"Tak\")","v":8},{"$f":"C79/(COUNTA(Src!S:S)-1)","v":0.2857142857142857}]
[11,"Nauka i zdobywanie wykształcenia są dla mnie ważne - rozwijają mój sposób myślenia.",{"$f":"COUNTIF(Src!T:T,\"Tak\")","v":10},{"$f":"C80/(COUNTA(Src!T:T)-1)","v":0.35714285714285715}]
[12,"Piękno każdego rodzaju (muzyka, kolory, formy, kształty itp.) wywierają na mnie duży wpływ.",{"$f":"COUNTIF(Src!U:U,\"Tak\")","v":7},{"$f":"C81/(COUNTA(Src!U:U)-1)","v":0.25}]
[13,"Jestem wrażliwa/-y na nastroje i uczucia innych ludzi.",{"$f":"COUNTIF(Src!V:V,\"Tak\")","v":9},{"$f":"C82/(COUNTA(Src!V:V)-1)","v":0.32142857142857145}]
[14,"Zazwyczaj jestem zadowolona/-y z miejsca, w którym przebywam.",{"$f":"COUNTIF(Src!W:W,\"Tak\")","v":14},{"$f":"C83/(COUNTA(Src!W:W)-1)","v":0.5}]
[15,"Jestem osobą samodzielną, zwykle sam/-a daję sobie radę.",{"$f":"COUNTIF(Src!X:X,\"Tak\")","v":5},{"$f":"C84/(COUNTA(Src!X:X)-1)","v":0.17857142857142858}]
[16,"Zdarza mi się siedzieć godzinami i pracować nad rozwiązaniem różnych problemów.",{"$f":"COUNTIF(Src!Y:Y,\"Tak\")","v":9},{"$f":"C85/(COUNTA(Src!Y:Y)-1)","v":0.32142857142857145}]
[17,"Wierzę w swoje możliwości i swój potencjał.",{"$f":"COUNTIF(Src!Z:Z,\"Tak\")","v":10},{"$f":"C86/(COUNTA(Src!Z:Z)-1)","v":0.35714285714285715}]
[18,"Drażnią mnie ludzie, którzy się spóźniają.",{"$f":"COUNTIF(Src!AA:AA,\"Tak\")","v":10},{"$f":"C87/(COUNTA(Src!AA:AA)-1)","v":0.35714285714285715}]
[19,"Gdy mam jakieś problemy czy kłopoty ważna jest dla mnie obecność innych ludzi.",{"$f":"COUNTIF(Src!AB:AB,\"Tak\")","v":6},{"$f":"C88/(COUNTA(Src!AB:AB)-1)","v":0.21428571428571427}]
[20,"Często poszukuję nowych sposobów, by wyrazić swoje twórcze zdolności.",{"$f":"COUNTIF(Src!AC:AC,\"Tak\")","v":4},{"$f":"C89/(COUNTA(Src!AC:AC)-1)","v":0.14285714285714285}]
[21,"Potrafię rozwiązywać spory między przyjaciółmi.",{"$f":"COUNTIF(Src!AD:AD,\"Tak\")","v":8},{"$f":"C90/(COUNTA(Src!AD:AD)-1)","v":0.2857142857142857}]
[22,"Rzetelna, fizyczna praca wszystkim służy.",{"$f":"COUNTIF(Src!AE:AE,\"Tak\")","v":9},{"$f":"C91/(COUNTA(Src!AE:AE)-1)","v":0.32142857142857145}]
[23,"Nie lubię ubierać się tradycyjnie, często eksperymentuję z nowymi kierunkami mody i z kolorami.",{"$f":"COUNTIF(Src!AF:AF,\"Tak\")","v":8},{"$f":"C92/(COUNTA(Src!AF:AF)-1)","v":0.2857142857142857}]
[24,"Najlepiej czuję się w prostym i praktycznym otoczeniu.",{"$f":"COUNTIF(Src!AG:AG,\"Tak\")","v":5},{"$f":"C93/(COUNTA(Src!AG:AG)-1)","v":0.17857142857142858}]
[25,"Posiadam dużą łatwość wyobrażania sobie różnych rzeczy.",{"$f":"COUNTIF(Src!AH:AH,\"Tak\")","v":8},{"$f":"C94/(COUNTA(Src!AH:AH)-1)","v":0.2857142857142857}]
[26,"Często zadaję pytanie „dlaczego”?",{"$f":"COUNTIF(Src!AI:AI,\"Tak\")","v":5},{"$f":"C95/(COUNTA(Src!AI:AI)-1)","v":0.17857142857142858}]
[27,"Powtarzające się, rutynowe działania pomagają mi szybciej ukończyć pracę.",{"$f":"COUNTIF(Src!AJ:AJ,\"Tak\")","v":3},{"$f":"C96/(COUNTA(Src!AJ:AJ)-1)","v":0.10714285714285714}]
[28,"Chętnie czytam książki o różnorodnej tematyce, zwłaszcza te, które mnie interesują.",{"$f":"COUNTIF(Src!AK:AK,\"Tak\")","v":14},{"$f":"C97/(COUNTA(Src!AK:AK)-1)","v":0.5}]
[29,"Bardziej odpowiada mi, kiedy inni biorą odpowiedzialność na siebie, nie lubię być liderem.",{"$f":"COUNTIF(Src!AL:AL,\"Tak\")","v":6},{"$f":"C98/(COUNTA(Src!AL:AL)-1)","v":0.21428571428571427}]
[30,"Odczuwam silną potrzebę dzielenia moich osobistych spraw z innymi.",{"$f":"COUNTIF(Src!AM:AM,\"Tak\")","v":7},{"$f":"C99/(COUNTA(Src!AM:AM)-1)","v":0.25}]
[31,"Zanim podejmę działanie, dogłębnie analizuję dany problem.",{"$f":"COUNTIF(Src!AN:AN,\"Tak\")","v":11},{"$f":"C100/(COUNTA(Src!AN:AN)-1)","v":0.39285714285714285}]
[32,"Mam zmysł estetyczny, aranżuję swoje otoczenie, by miało niepowtarzalny charakter.",{"$f":"COUNTIF(Src!AO:AO,\"Tak\")","v":8},{"$f":"C101/(COUNTA(Src!AO:AO)-1)","v":0.2857142857142857}]
[33,"Cieszy mnie, kiedy ludzie są zgodni i wzajemnie sobie pomagają.",{"$f":"COUNTIF(Src!AP:AP,\"Tak\")","v":13},{"$f":"C102/(COUNTA(Src!AP:AP)-1)","v":0.4642857142857143}]
[34,"Dobra kondycja i sprawność fizyczna jest dla mnie ważna.",{"$f":"COUNTIF(Src!AQ:AQ,\"Tak\")","v":6},{"$f":"C103/(COUNTA(Src!AQ:AQ)-1)","v":0.21428571428571427}]
[35,"Jestem zadowolona/-y, kiedy grupa liczy się z moim zdaniem i uważa je za najważniejsze.",{"$f":"COUNTIF(Src!AR:AR,\"Tak\")","v":7},{"$f":"C104/(COUNTA(Src!AR:AR)-1)","v":0.25}]
[36,"W samochodzie najważniejszy jest dla mnie silnik i to jak działa.",{"$f":"COUNTIF(Src!AS:AS,\"Tak\")","v":6},{"$f":"C105/(COUNTA(Src!AS:AS)-1)","v":0.21428571428571427}]
[37,"„Dzielę włos na czworo”, dopóki nie znajdę odpowiedzi.",{"$f":"COUNTIF(Src!AT:AT,\"Tak\")","v":7},{"$f":"C106/(COUNTA(Src!AT:AT)-1)","v":0.25}]
[38,"Jestem wrażliwa/-y na piękno natury.",{"$f":"COUNTIF(Src!AU:AU,\"Tak\")","v":8},{"$f":"C107/(COUNTA(Src!AU:AU)-1)","v":0.2857142857142857}]
[39,"Lubię, kiedy to co czytam zmusza do myślenia i poszerza moje horyzonty.",{"$f":"COUNTIF(Src!AV:AV,\"Tak\")","v":9},{"$f":"C108/(COUNTA(Src!AV:AV)-1)","v":0.32142857142857145}]
[40,"Interesują mnie losy innych ludzi.",{"$f":"COUNTIF(Src!AW:AW,\"Tak\")","v":7},{"$f":"C109/(COUNTA(Src!AW:AW)-1)","v":0.25}]
[41,"Lubię, kiedy to, co robię jest wyrazem mojego nastroju, uczuć i wrażliwości.",{"$f":"COUNTIF(Src!AX:AX,\"Tak\")","v":7},{"$f":"C110/(COUNTA(Src!AX:AX)-1)","v":0.25}]
[42,"Zawsze staram się być wobec innych życzliwa/-y i uczynna/-y.",{"$f":"COUNTIF(Src!AY:AY,\"Tak\")","v":10},{"$f":"C111/(COUNTA(Src!AY:AY)-1)","v":0.35714285714285715}]
[43,"Lubię wprowadzać w życie nowe pomysły.",{"$f":"COUNTIF(Src!AZ:AZ,\"Tak\")","v":9},{"$f":"C112/(COUNTA(Src!AZ:AZ)-1)","v":0.32142857142857145}]
[44,"Doceniam sytuacje, w których wiem, czego się ode mnie oczekuje i wiem, co mam robić.",{"$f":"COUNTIF(Src!BA:BA,\"Tak\")","v":8},{"$f":"C113/(COUNTA(Src!BA:BA)-1)","v":0.2857142857142857}]
[45,"Lubię organizować ludzi i mobilizować ich do pracy.",{"$f":"COUNTIF(Src!BB:BB,\"Tak\")","v":16},{"$f":"C114/(COUNTA(Src!BB:BB)-1)","v":0.5714285714285714}]
[46,"Nie lubię robić rzeczy, które nie są akceptowane.",{"$f":"COUNTIF(Src!BC:BC,\"Tak\")","v":8},{"$f":"C115/(COUNTA(Src!BC:BC)-1)","v":0.2857142857142857}]
[47,"Cenię jasno wytyczony kierunek działania.",{"$f":"COUNTIF(Src!BD:BD,\"Tak\")","v":10},{"$f":"C116/(COUNTA(Src!BD:BD)-1)","v":0.35714285714285715}]
[48,"Drażnią mnie ludzie, którzy powierzchownie podchodzą do różnych tematów.",{"$f":"COUNTIF(Src!BE:BE,\"Tak\")","v":9},{"$f":"C117/(COUNTA(Src!BE:BE)-1)","v":0.32142857142857145}]
[49,"Lubię, kiedy widać fizyczne efekty mojej pracy.",{"$f":"COUNTIF(Src!BF:BF,\"Tak\")","v":7},{"$f":"C118/(COUNTA(Src!BF:BF)-1)","v":0.25}]
[50,"Chętnie oddaję się rozmyślaniu.",{"$f":"COUNTIF(Src!BG:BG,\"Tak\")","v":9},{"$f":"C119/(COUNTA(Src!BG:BG)-1)","v":0.32142857142857145}]
[51,"Lubię, kiedy mój dzień przebiega zgodnie z planem i wszystko jest dobrze zorganizowane.",{"$f":"COUNTIF(Src!BH:BH,\"Tak\")","v":8},{"$f":"C120/(COUNTA(Src!BH:BH)-1)","v":0.2857142857142857}]
[52,"Lubię odróżniać się od innych, nie chcę być taka/-i jak wszyscy.",{"$f":"COUNTIF(Src!BI:BI,\"Tak\")","v":6},{"$f":"C121/(COUNTA(Src!BI:BI)-1)","v":0.21428571428571427}]
[53,"Już jako dziecko potrafiłam/-em naprawiać różne rzeczy.",{"$f":"COUNTIF(Src!BJ:BJ,\"Tak\")","v":6},{"$f":"C122/(COUNTA(Src!BJ:BJ)-1)","v":0.21428571428571427}]
[54,"Lubię ćwiczenia grupowe i spotkania towarzyskie.",{"$f":"COUNTIF(Src!BK:BK,\"Tak\")","v":5},{"$f":"C123/(COUNTA(Src!BK:BK)-1)","v":0.17857142857142858}]
[55,"Dobra organizacja pracy i porządek to podstawa wszelkich efektywnych działań.",{"$f":"COUNTIF(Src!BL:BL,\"Tak\")","v":12},{"$f":"C124/(COUNTA(Src!BL:BL)-1)","v":0.42857142857142855}]
[56,"Sądzę, że ludzie są z natury dobrzy.",{"$f":"COUNTIF(Src!BM:BM,\"Tak\")","v":10},{"$f":"C125/(COUNTA(Src!BM:BM)-1)","v":0.35714285714285715}]
[57,"Nie wyobrażam sobie życia bez pięknych rzeczy wokół mnie.",{"$f":"COUNTIF(Src!BN:BN,\"Tak\")","v":11},{"$f":"C126/(COUNTA(Src!BN:BN)-1)","v":0.39285714285714285}]
[58,"Branie udziału w podejmowaniu ważnych decyzji jest niezmiernie ciekawe.",{"$f":"COUNTIF(Src!BO:BO,\"Tak\")","v":7},{"$f":"C127/(COUNTA(Src!BO:BO)-1)","v":0.25}]
[59,"Posiadam dobre poczucie równowagi i lubię ruch fizyczny.",{"$f":"COUNTIF(Src!BP:BP,\"Tak\")","v":7},{"$f":"C128/(COUNTA(Src!BP:BP)-1)","v":0.25}]
[60,"Wyzwania mobilizują mnie do działania.",{"$f":"COUNTIF(Src!BQ:BQ,\"Tak\")","v":8},{"$f":"C129/(COUNTA(Src!BQ:BQ)-1)","v":0.2857142857142857}]
[61,"Żeby coś w życiu osiągnąć, trzeba sobie stawiać ambitne cele.",{"$f":"COUNTIF(Src!BR:BR,\"Tak\")","v":13},{"$f":"C130/(COUNTA(Src!BR:BR)-1)","v":0.4642857142857143}]
[62,"Kiedy się do czegoś zobowiązuję, wykonuję to bardzo dokładnie.",{"$f":"COUNTIF(Src!BS:BS,\"Tak\")","v":8},{"$f":"C131/(COUNTA(Src!BS:BS)-1)","v":0.2857142857142857}]
[63,"Jeśli coś mnie interesuje, staram się wszystkiego o tym dowiedzieć.",{"$f":"COUNTIF(Src!BT:BT,\"Tak\")","v":4},{"$f":"C132/(COUNTA(Src!BT:BT)-1)","v":0.14285714285714285}]
[64,"Kiedy zaczynam coś robić, to lubię, kiedy wszystko jest jasno i precyzyjnie ustalone.",{"$f":"COUNTIF(Src!BU:BU,\"Tak\")","v":10},{"$f":"C133/(COUNTA(Src!BU:BU)-1)","v":0.35714285714285715}]
[65,"Cieszę się, kiedy inni obdarzają mnie zaufaniem i powierzają mi swoje problemy.",{"$f":"COUNTIF(Src!BV:BV,\"Tak\")","v":7},{"$f":"C134/(COUNTA(Src!BV:BV)-1)","v":0.25}]
[66,"Nigdy nie jestem obojętna/-y wobec ludzi wyglądających na samotnych i potrzebujących pomocy.",{"$f":"COUNTIF(Src!BW:BW,\"Tak\")","v":5},{"$f":"C135/(COUNTA(Src!BW:BW)-1)","v":0.17857142857142858}]
[67,"Nie lubię narzucania ustalonego sposobu działania.",{"$f":"COUNTIF(Src!BX:BX,\"Tak\")","v":4},{"$f":"C136/(COUNTA(Src!BX:BX)-1)","v":0.14285714285714285}]
[68,"Nowe odkrycia są niezwykle ciekawe.",{"$f":"COUNTIF(Src!BY:BY,\"Tak\")","v":8},{"$f":"C137/(COUNTA(Src!BY:BY)-1)","v":0.2857142857142857}]
[69,"Narzucone formy czy zasady ograniczają mnie.",{"$f":"COUNTIF(Src!BZ:BZ,\"Tak\")","v":9},{"$f":"C138/(COUNTA(Src!BZ:BZ)-1)","v":0.32142857142857145}]
[70,"Nie mam żadnych problemów z podejmowaniem decyzji i braniem za nie odpowiedzialności.",{"$f":"COUNTIF(Src!CA:CA,\"Tak\")","v":13},{"$f":"C139/(COUNTA(Src!CA:CA)-1)","v":0.4642857142857143}]
[71,"Dokonuję szczegółowej analizy, by mieć pewność, że znajdę rozwiązanie.",{"$f":"COUNTIF(Src!CB:CB,\"Tak\")","v":8},{"$f":"C140/(COUNTA(Src!CB:CB)-1)","v":0.2857142857142857}]
[72,"Nie lubię nagłych zmian w ustalonym wcześniej programie czy harmonogramie.",{"$f":"COUNTIF(Src!CC:CC,\"Tak\")","v":9},{"$f":"C141/(COUNTA(Src!CC:CC)-1)","v":0.32142857142857145}]
[73,"Nie boję się podejmować ryzyka.",{"$f":"COUNTIF(Src!CD:CD,\"Tak\")","v":8},{"$f":"C142/(COUNTA(Src!CD:CD)-1)","v":0.2857142857142857}]
[74,"Kiedy się czymś zajmuję, mam tendencję do zapominania o całym świecie.",{"$f":"COUNTIF(Src!CE:CE,\"Tak\")","v":5},{"$f":"C143/(COUNTA(Src!CE:CE)-1)","v":0.17857142857142858}]
[75,"Zwykle znajduję wyjście w tzw. sytuacjach \"podbramkowych\".",{"$f":"COUNTIF(Src!CF:CF,\"Tak\")","v":5},{"$f":"C144/(COUNTA(Src!CF:CF)-1)","v":0.17857142857142858}]
[76,"Nie lubię tracenia czasu na niekończące się rozmowy czy dyskusje.",{"$f":"COUNTIF(Src!CG:CG,\"Tak\")","v":10},{"$f":"C145/(COUNTA(Src!CG:CG)-1)","v":0.35714285714285715}]
[77,"Nie znoszę prowizorki i improwizacji.",{"$f":"COUNTIF(Src!CH:CH,\"Tak\")","v":9},{"$f":"C146/(COUNTA(Src!CH:CH)-1)","v":0.32142857142857145}]
[78,"Jeśli nie daję sobie rady za pierwszym razem, zaczynam jeszcze raz z nową energią i entuzjazmem.",{"$f":"COUNTIF(Src!CI:CI,\"Tak\")","v":4},{"$f":"C147/(COUNTA(Src!CI:CI)-1)","v":0.14285714285714285}]
[79,"Czuję dużą satysfakcję, kiedy dobrze i starannie wywiązuję się z powierzonych mi obowiązków.",{"$f":"COUNTIF(Src!CJ:CJ,\"Tak\")","v":6},{"$f":"C148/(COUNTA(Src!CJ:CJ)-1)","v":0.21428571428571427}]
[80,"To, jak funkcjonuje świat i natura, zawsze budziło moją ciekawość.",{"$f":"COUNTIF(Src!CK:CK,\"Tak\")","v":10},{"$f":"C149/(COUNTA(Src!CK:CK)-1)","v":0.35714285714285715}]
[81,"Nie lubię bezczynności, lubię działać.",{"$f":"COUNTIF(Src!CL:CL,\"Tak\")","v":7},{"$f":"C150/(COUNTA(Src!CL:CL)-1)","v":0.25}]
[82,"Nie denerwuję się, gdy trzeba przemyśleć sprawę jeszcze raz i ponownie zaplanować działanie.",{"$f":"COUNTIF(Src!CM:CM,\"Tak\")","v":6},{"$f":"C151/(COUNTA(Src!CM:CM)-1)","v":0.21428571428571427}]
[83,"Kiedy źle się czuję, lubię z kimś porozmawiać.",{"$f":"COUNTIF(Src!CN:CN,\"Tak\")","v":9},{"$f":"C152/(COUNTA(Src!CN:CN)-1)","v":0.32142857142857145}]
[84,"Zwykle nawiązuję kontakt z ludźmi, którzy mogą wskazać mi drogę do nowych możliwości.",{"$f":"COUNTIF(Src!CO:CO,\"Tak\")","v":9},{"$f":"C153/(COUNTA(Src!CO:CO)-1)","v":0.32142857142857145}]

{"sheet":"5. Analiza części B testu","index":4,"n_rows":46,"n_cols":10,"rows_kept":46,"cut":false,"hidden":false,"merged":[]}
[]
[]
[]
[]
[]
[]
[]
[]
[]
[]
[]
[]
[]
[]
[]
[]
[]
[]
[]
[]
[]
[]
[]
[]
[]
["lp","opis","odp 1","odp 2","odp 3","odp 4","odp 5","odp 6"]
[1,"Które z określeń najbardziej do Ciebie pasują bądź najlepiej Cię opisują?",{"$f":"PoliczDlaOdp(2,J27,\"1\")","v":2},{"$f":"PoliczDlaOdp(2,J27,\"2\")","v":2},{"$f":"PoliczDlaOdp(2,J27,\"3\")","v":5},{"$f":"PoliczDlaOdp(2,J27,\"4\")","v":7},{"$f":"PoliczDlaOdp(2,J27,\"5\")","v":4},{"$f":"PoliczDlaOdp(2,J27,\"6\")","v":8},null,94]
[2,"Jako dziecko najchętniej bawiłaś/-eś się:",{"$f":"PoliczDlaOdp(2,J28,\"1\")","v":5},{"$f":"PoliczDlaOdp(2,J28,\"2\")","v":2},{"$f":"PoliczDlaOdp(2,J28,\"3\")","v":7},{"$f":"PoliczDlaOdp(2,J28,\"4\")","v":0},{"$f":"PoliczDlaOdp(2,J28,\"5\")","v":1},{"$f":"PoliczDlaOdp(2,J28,\"6\")","v":13},null,{"$f":"1+J27","v":95}]
[3,"Na „Targach wiedzy o świecie” najchętniej odwiedzisz stoisko:",1,2,7,6,3,9,null,{"$f":"1+J28","v":96}]
[4,"W firmie produkującej wyposażenie wnętrz najchętniej podejmiesz się:",3,5,2,7,3,8,null,97]
[5,"Jak najchętniej spędzasz swój wolny czas?",1,4,7,4,7,5,null,98]
[6,"Twoi bliscy i przyjaciele powiedzieliby o Tobie, że jesteś:",3,3,4,2,10,6,null,99]
[7,"Czego nie lubisz w ludziach?",2,1,1,2,16,6,null,100]
[8,"Szykujesz się do szkoły / pracy / na spotkanie. Jak to u Ciebie wygląda?",11,3,3,0,7,4,null,101]
[9,"Twój pokój lub miejsce pracy można określić jako:",2,1,4,5,7,9,null,102]
[10,"To, co jest dla Ciebie najważniejsze w życiu, to:",1,3,4,6,7,7,null,103]
[11,"Masz przygotować prezentację na temat swoich zainteresowań bądź hobby przed większą grupą. Jaką będzie miała formę?",5,5,4,5,3,6,null,104]
[12,"Twój kolega prosi Cię o pomoc w przygotowaniu prezentacji, co zrobisz?",3,4,6,4,7,4,null,105]
[13,"Wyobraź sobie, że udział w wolontariacie otwiera Ci drogę do wymarzonej kariery zawodowej. Wskaż, jaki rodzaj aktywności wybierzesz:",3,0,4,8,4,9,null,106]
[14,"Masz do zrealizowania zadanie, które wymaga pracy zespołowej. Jak będziesz je wykonywał? / Jak się do tego zabierzesz?",2,5,1,5,8,7,null,107]
[15,"W jakich sytuacjach stresujesz się najbardziej? / Jakie sytuacje najbardziej Cię denerwują?",5,2,1,2,8,10,null,108]
[16,"Co intuicyjnie najlepiej wyczuwasz i potrafisz zrozumieć?",4,2,2,3,8,9,null,109]
[17,"Masz do wykonania ważną pracę. Czego najbardziej potrzebujesz?",4,3,2,8,4,7,null,110]
[18,"Jak reagujesz na reguły, nakazy, zarządzenia?",2,3,1,3,6,13,null,111]
[19,"Idealną pracę wyobrażam sobie jako:",1,3,3,2,9,10,null,112]
[20,"Wybrany przeze mnie zawód powinien mi przede wszystkim dawać:",{"$f":"PoliczDlaOdp(2,J46,\"1\")","v":4},4,2,5,7,6,null,113]

{"sheet":"Src","index":5,"n_rows":29,"n_cols":143,"rows_kept":29,"cut":false,"hidden":true,"merged":[]}
["Imię","Nazwisko","Płeć","Wiek","Nazwa szkoły","Lokalizacja szkoły","Typ szkoły","Województwo szkoły","Wskazano adresata raportu","Kiedy pracuję nie przeszkadza mi, że zabrudzę sobie ręce.","Zanim zacznę cokolwiek robić, muszę najpierw wszystko uporządkować.","Chętnie wykonuję rzeczy praktyczne, w przyszłości chciałabym/chciałbym „pracować rękami”.","Zawsze doceniam piękne otoczenie.","Dużą satysfakcję daje mi nauka oraz poznawanie nowych teorii.","Ważna jest dla mnie dbałość o szczegóły.","Lubię pracować na świeżym powietrzu, mam wtedy więcej energii do działania.","To inni ludzie nadają sens mojemu życiu.","Lubię rywalizować.","Zajmowanie się innymi ludźmi sprawia mi przyjemność.","Nauka i zdobywanie wykształcenia są dla mnie ważne - rozwijają mój sposób myślenia.","Piękno każdego rodzaju (muzyka, kolory, formy, kształty itp.) wywierają na mnie duży wpływ.","Jestem wrażliwa/-y na nastroje i uczucia innych ludzi.","Zazwyczaj jestem zadowolona/-y z miejsca, w którym przebywam.","Jestem osobą samodzielną, zwykle sam/-a daję sobie radę.","Zdarza mi się siedzieć godzinami i pracować nad rozwiązaniem różnych problemów.","Wierzę w swoje możliwości i swój potencjał.","Drażnią mnie ludzie, którzy się spóźniają.","Gdy mam jakieś problemy czy kłopoty ważna jest dla mnie obecność innych ludzi.","Często poszukuję nowych sposobów, by wyrazić swoje twórcze zdolności.","Potrafię rozwiązywać spory między przyjaciółmi.","Rzetelna, fizyczna praca wszystkim służy.","Nie lubię ubierać się tradycyjnie, często eksperymentuję z nowymi kierunkami mody i z kolorami.","Najlepiej czuję się w prostym i praktycznym otoczeniu.","Posiadam dużą łatwość wyobrażania sobie różnych rzeczy.","Często zadaję pytanie „dlaczego”?","Powtarzające się, rutynowe działania pomagają mi szybciej ukończyć pracę.","Chętnie czytam książki o różnorodnej tematyce, zwłaszcza te, które mnie interesują.","Bardziej odpowiada mi, kiedy inni biorą odpowiedzialność na siebie, nie lubię być liderem.","Odczuwam silną potrzebę dzielenia moich osobistych spraw z innymi.","Zanim podejmę działanie, dogłębnie analizuję dany problem.","Mam zmysł estetyczny, aranżuję swoje otoczenie, by miało niepowtarzalny charakter.","Cieszy mnie, kiedy ludzie są zgodni i wzajemnie sobie pomagają.","Dobra kondycja i sprawność fizyczna jest dla mnie ważna.","Jestem zadowolona/-y, kiedy grupa liczy się z moim zdaniem i uważa je za najważniejsze.","W samochodzie najważniejszy jest dla mnie silnik i to jak działa.","„Dzielę włos na czworo”, dopóki nie znajdę odpowiedzi.","Jestem wrażliwa/-y na piękno natury.","Lubię, kiedy to co czytam zmusza do myślenia i poszerza moje horyzonty.","Interesują mnie losy innych ludzi.","Lubię, kiedy to, co robię jest wyrazem mojego nastroju, uczuć i wrażliwości.","Zawsze staram się być wobec innych życzliwa/-y i uczynna/-y.","Lubię wprowadzać w życie nowe pomysły.","Doceniam sytuacje, w których wiem, czego się ode mnie oczekuje i wiem, co mam robić.","Lubię organizować ludzi i mobilizować ich do pracy.","Nie lubię robić rzeczy, które nie są akceptowane.","Cenię jasno wytyczony kierunek działania.","Drażnią mnie ludzie, którzy powierzchownie podchodzą do różnych tematów.","Lubię, kiedy widać fizyczne efekty mojej pracy.","Chętnie oddaję się rozmyślaniu.","Lubię, kiedy mój dzień przebiega zgodnie z planem i wszystko jest dobrze zorganizowane.","Lubię odróżniać się od innych, nie chcę być taka/-i jak wszyscy.","Już jako dziecko potrafiłam/-em naprawiać różne rzeczy.","Lubię ćwiczenia grupowe i spotkania towarzyskie.","Dobra organizacja pracy i porządek to podstawa wszelkich efektywnych działań.","Sądzę, że ludzie są z natury dobrzy.","Nie wyobrażam sobie życia bez pięknych rzeczy wokół mnie.","Branie udziału w podejmowaniu ważnych decyzji jest niezmiernie ciekawe.","Posiadam dobre poczucie równowagi i lubię ruch fizyczny.","Wyzwania mobilizują mnie do działania.","Żeby coś w życiu osiągnąć, trzeba sobie stawiać ambitne cele.","Kiedy się do czegoś zobowiązuję, wykonuję to bardzo dokładnie.","Jeśli coś mnie interesuje, staram się wszystkiego o tym dowiedzieć.","Kiedy zaczynam coś robić, to lubię, kiedy wszystko jest jasno i precyzyjnie ustalone.","Cieszę się, kiedy inni obdarzają mnie zaufaniem i powierzają mi swoje problemy.","Nigdy nie jestem obojętna/-y wobec ludzi wyglądających na samotnych i potrzebujących pomocy.","Nie lubię narzucania ustalonego sposobu działania.","Nowe odkrycia są niezwykle ciekawe.","Narzucone formy czy zasady ograniczają mnie.","Nie mam żadnych problemów z podejmowaniem decyzji i braniem za nie odpowiedzialności.","Dokonuję szczegółowej analizy, by mieć pewność, że znajdę rozwiązanie.","Nie lubię nagłych zmian w ustalonym wcześniej programie czy harmonogramie.","Nie boję się podejmować ryzyka.","Kiedy się czymś zajmuję, mam tendencję do zapominania o całym świecie.","Zwykle znajduję wyjście w tzw. sytuacjach \"podbramkowych\".","Nie lubię tracenia czasu na niekończące się rozmowy czy dyskusje.","Nie znoszę prowizorki i improwizacji.","Jeśli nie daję sobie rady za pierwszym razem, zaczynam jeszcze raz z nową energią i entuzjazmem.","Czuję dużą satysfakcję, kiedy dobrze i starannie wywiązuję się z powierzonych mi obowiązków.","To, jak funkcjonuje świat i natura, zawsze budziło moją ciekawość.","Nie lubię bezczynności, lubię działać.","Nie denerwuję się, gdy trzeba przemyśleć sprawę jeszcze raz i ponownie zaplanować działanie.","Kiedy źle się czuję, lubię z kimś porozmawiać.","Zwykle nawiązuję kontakt z ludźmi, którzy mogą wskazać mi drogę do nowych możliwości.","Które z określeń najbardziej do Ciebie pasują bądź najlepiej Cię opisują?","Jako dziecko najchętniej bawiłaś/-eś się:","Na „Targach wiedzy o świecie” najchętniej odwiedzisz stoisko:","W firmie produkującej wyposażenie wnętrz najchętniej podejmiesz się:","Jak najchętniej spędzasz swój wolny czas?","Twoi bliscy i przyjaciele powiedzieliby o Tobie, że jesteś:","Czego nie lubisz w ludziach?","Szykujesz się do szkoły / pracy / na spotkanie. Jak to u Ciebie wygląda?","Twój pokój lub miejsce pracy można określić jako:","To, co jest dla Ciebie najważniejsze w życiu, to:","Masz przygotować prezentację na temat swoich zainteresowań bądź hobby przed większą grupą. Jaką będzie miała formę?","Twój kolega prosi Cię o pomoc w przygotowaniu prezentacji, co zrobisz?","Wyobraź sobie, że udział w wolontariacie otwiera Ci drogę do wymarzonej kariery zawodowej. Wskaż, jaki rodzaj aktywności wybierzesz:","Masz do zrealizowania zadanie, które wymaga pracy zespołowej. Jak będziesz je wykonywał? / Jak się do tego zabierzesz?","W jakich sytuacjach stresujesz się najbardziej? / Jakie sytuacje najbardziej Cię denerwują?","Co intuicyjnie najlepiej wyczuwasz i potrafisz zrozumieć?","Masz do wykonania ważną pracę. Czego najbardziej potrzebujesz?","Jak reagujesz na reguły, nakazy, zarządzenia?","Idealną pracę wyobrażam sobie jako:","Wybrany przeze mnie zawód powinien mi przede wszystkim dawać:","Czy odpowiada Tobie praca, której wykonywanie wiąże się z przebywaniem „pod gołym niebem” (na wolnym powietrzu)?","Czy odpowiada Tobie praca, której efekt będzie zależny od współpracy z innymi ludźmi?","Czy odpowiada Tobie praca, której pora wykonywania, ani jej czas nie są ściśle określone (np. praca na wezwanie, albo w trybie projektowym)?","Czy odpowiada Tobie praca, której wykonywanie wiąże się z przebywaniem w różnych miejscach (np. w terenie, u klienta w biurze lub domu)?","Czy odpowiada Tobie praca, której wykonywanie wiąże się z fizycznym kontaktem z innymi ludźmi (klientami, np. pomoc w poruszaniu, dotyk, masaż)?","Czy odpowiada Tobie praca, której wykonywanie wiąże się z kontaktem ze zwierzętami?","Czy odpowiada Tobie praca, która może być wykonywana w trybie zmianowym (np. zmiana dzienna, zmiana nocna)?","Czy odpowiada Tobie praca, której wykonywanie wiąże się z zagrożeniami dla zdrowia i życia (np. wysokie temperatury, wysokość, znaczne ciężary, duży hałas, substancje wybuchowe, wysokie napięcie)?","Czy odpowiada Tobie praca, której wykonywanie wiąże się koniecznością posiadania dużej sprawności fizycznej?","Czy odpowiada Tobie praca, której wykonywanie wymaga umiejętności manualnych (precyzyjnego posługiwania się prostymi narzędziami i \"pewnych\" rąk)?","Czy odpowiada Tobie praca, której wykonywanie wymaga stałego aktualizowania wiedzy i dokształcania się?","Czy odpowiada Tobie praca, której wykonywanie wymaga wypełniania i sprawdzania dużej liczby formularzy i dokumentów?","Czy odpowiada Tobie praca, której wykonywanie wiąże się z możliwością ubrudzenia się błotem, smarem, olejem silnikowym itp.?","Czy odpowiada Tobie praca, której wykonywanie wiąże się z kontaktem wydzielinami (ślina, krew, śluz, ropa itp.)?","Czy odpowiada Tobie praca, której wykonywanie wiąże się z przebywaniem w zapylonych pomieszczeniach?","Czy odpowiada Tobie praca, której wykonywanie wymaga kontaktu z chemikaliami?","Typ artystyczny","Typ badawczy","Typ konwencjonalny","Typ przedsiębiorczy","Typ realistyczny","Typ społeczny","Wybrany typ","Kolejność typów","Rodzaj pracy","Zawód","Przystąpiono","Grupa","Zaproszono","Zaprosił"]
["Studenciak","Kowalski","Kobieta","15 lat","Brak danych","miasto ponad 500 tys. mieszkańców","liceum ogólnokształcące","dolnośląskie","Nie","Tak","Tak","Nie","Nie","Tak","Nie","Nie","Tak","Tak","Nie","Tak","Tak","Nie","Tak","Nie","Tak","Tak","Nie","Tak","Tak","Nie","Tak","Tak","Nie","Tak","Tak","Nie","Nie","Nie","Nie","Nie","Tak","Tak","Tak","Tak","Nie","Nie","Tak","Nie","Nie","Nie","Tak","Tak","Tak","Tak","Nie","Nie","Tak","Tak","Tak","Nie","Nie","Nie","Tak","Tak","Nie","Tak","Nie","Tak","Tak","Tak","Nie","Nie","Nie","Tak","Nie","Tak","Tak","Tak","Nie","Nie","Nie","Tak","Nie","Nie","Tak","Tak","Tak","Nie","Tak","Tak","Nie","Tak","Tak","6) skrupulatny wykonawca","6) najchętniej bawiłam/-em się sam/-a","2) „Największe osiągnięcia współczesnej nauki”","4) przyjmowania nowych pracowników, pracy w dziale personalnym","4) porządkując swój pokój lub mieszkanie","6) niekonwencjonalna/-y, twórcza/-y","5) bezczynności i pozorowanych działań","2) zdarza się, że się spóźniam, ale bardzo rzadko - tylko wtedy, gdy jest jakaś obiektywna przyczyna","6) przypominający pracownię naukowca","2) w pełni cieszyć się życiem i zachwycać jego pięknem","3) pokażesz swoje prace w nieszablonowej, niekonwencjonalnej formie","1) pomożesz mu po zajęciach, a w razie trudności pozwalasz mu do Ciebie jeszcze zadzwonić","3) prace przy organizacji dni ulicy, przygotowanie programu artystycznego","4) zaangażuję się dopiero wtedy, kiedy to, co będziemy robić będzie naprawdę ciekawe","5) kiedy ludzie nie wiedzą czego konkretnie ode mnie chcą","3) praktyczne rozwiązania i sposoby wykonania konkretnych rzeczy","4) współpracy z innymi w dobrej, przyjacielskiej atmosferze","2) kieruję się głównie własnymi regułami i zasadami, które prowadzą mnie do celu","3) twórcze zadania w swobodnym środowisku","2) pieniądze i wysoki prestiż społeczny","Tak","Tak","Nie","Nie","Nie","Nie dotyczy","Tak","Tak","Nie dotyczy","Tak","Nie","Nie","Tak","Tak","Nie dotyczy","Nie dotyczy",0.47,0.32,0.15,0.35,0.35,0.28999999999999998,"artystyczny","A,R,P,B,S,K","usługowa","Operator maszyn leśnych","2015-07-10T02:31:43","Bez grupy","Nie","Przystąpienie samodzielne"]
["Studenciak","Kowalski","Kobieta","15 lat","Brak danych","miasto ponad 500 tys. mieszkańców","liceum ogólnokształcące","dolnośląskie","Nie","Nie","Tak","Nie","Tak","Tak","Tak","Nie","Nie","Tak","Tak","Nie","Nie","Nie","Nie","Tak","Nie","Tak","Tak","Tak","Tak","Tak","Nie","Nie","Nie","Tak","Nie","Nie","Tak","Tak","Tak","Nie","Tak","Tak","Nie","Tak","Nie","Tak","Nie","Nie","Tak","Nie","Nie","Nie","Tak","Tak","Tak","Nie","Nie","Nie","Tak","Nie","Tak","Nie","Nie","Nie","Tak","Tak","Tak","Nie","Tak","Nie","Nie","Nie","Tak","Tak","Nie","Nie","Tak","Nie","Tak","Tak","Tak","Tak","Nie","Nie","Tak","Nie","Nie","Tak","Tak","Nie","Tak","Nie","Nie","4) serce na dłoni / dusza człowiek","2) rysując lub malując","1) „Kultura i sztuka - dawniej i dziś”","1) projektowania nowych modeli, sprzętów, bibelotów itp.","2) pisząc, czytając, rozmyślając","5) uporządkowana/-y i dobrze zorganizowana/-y","6) braku wyobraźni i wrażliwości","3) praktycznie zawsze mam problem, żeby zdążyć - nie lubię, kiedy czas mnie ogranicza","1) twórczy nieporządek","6) dążyć do doskonałości i perfekcji","3) pokażesz swoje prace w nieszablonowej, niekonwencjonalnej formie","3) opowiesz mu jak mógłby przygotować nieszablonową prezentację","6) udział w projekcie mającym na celu wypromowanie regionu lub miasta, w którym mieszkasz","4) zaangażuję się dopiero wtedy, kiedy to, co będziemy robić będzie naprawdę ciekawe","5) kiedy ludzie nie wiedzą czego konkretnie ode mnie chcą","4) dane statystyczne, zestawienia liczbowe, określone procedury","2) możliwości samodzielnego znalezienia logicznego, racjonalnego rozwiązania","1) odpowiedzialnie wszystkich przestrzegam","4) grupową współpracę w przyjacielskiej atmosferze","3) uznanie, z racji posiadanej wiedzy i osiągnięć naukowych","Nie","Tak","Tak","Tak","Nie dotyczy","Nie","Nie dotyczy","Nie dotyczy","Nie dotyczy","Nie dotyczy","Nie dotyczy","Nie dotyczy","Tak","Nie dotyczy","Nie dotyczy","Nie",0.5,0.26,0.38,0.28999999999999998,0.06,0.28999999999999998,"konwencjonalny","A,K,S,P,B,R","organizacyjna","Technik logistyk","2015-07-10T02:48:28","Bez grupy","Nie","Przystąpienie samodzielne"]
["Studenciak","Kowalski","Kobieta","15 lat","Brak danych","miasto ponad 500 tys. mieszkańców","liceum ogólnokształcące","dolnośląskie","Nie","Nie","Nie","Tak","Tak","Tak","Tak","Nie","Nie","Tak","Nie","Tak","Nie","Tak","Tak","Nie","Nie","Tak","Tak","Nie","Nie","Tak","Tak","Tak","Tak","Nie","Nie","Tak","Tak","Nie","Nie","Tak","Tak","Tak","Nie","Tak","Tak","Nie","Tak","Nie","Nie","Tak","Tak","Tak","Nie","Tak","Nie","Tak","Nie","Nie","Tak","Tak","Tak","Tak","Nie","Nie","Nie","Tak","Tak","Tak","Nie","Tak","Tak","Nie","Tak","Nie","Tak","Tak","Tak","Nie","Tak","Nie","Nie","Nie","Tak","Nie","Tak","Tak","Nie","Tak","Nie","Tak","Nie","Tak","Nie","5) przywódca stada / inspirujący lider","3) w gry i zabawy z innymi","3) „Nowinki ze świata techniki”","6) badania i analizy rynku","2) pisząc, czytając, rozmyślając","6) niekonwencjonalna/-y, twórcza/-y","2) braku życzliwości w stosunku do innych ludzi i nieliczenia się z ich uczuciami","5) wszystko musi być tak, jak sobie wcześniej ustaliłam/-em - nie pozwolę sobie na spóźnienie, stracił/a/bym w oczach innych","4) reprezentacyjny, robiący wrażenie","2) w pełni cieszyć się życiem i zachwycać jego pięknem","1) przygotujesz dużo danych, informacji, materiałów","5) powiesz mu, że jak dobrze zaplanuje i zorganizuje prace, to sobie z tym poradzi","5) pomoc ofiarom powodzi / osobom niepełnosprawnym","5) będę się również starał pomagać innym, gdyby mieli problemy","2) kiedy nie mogę zrealizować swoich pomysłów, a wiem, że są najlepsze","2) ludzi, ich myśli i zachowanie","1) instrukcji na temat tego, co mam zrobić i możliwości spróbowania różnych rozwiązań","1) odpowiedzialnie wszystkich przestrzegam","5) realizację kreatywnych celów w zmotywowanym zespole","5) możliwość wyrażania siebie, wykorzystania swoich talentów","Nie dotyczy","Tak","Nie","Tak","Tak","Nie","Nie dotyczy","Nie dotyczy","Nie","Nie","Nie dotyczy","Nie dotyczy","Nie dotyczy","Nie dotyczy","Nie dotyczy","Tak",0.41,0.24,0.28999999999999998,0.38,0.32,0.32,"przedsiębiorczy","A,P,R,S,K,B","artystyczna","Fotograf","2015-07-10T02:53:03","Bez grupy","Nie","Przystąpienie samodzielne"]
["Studenciak","Kowalski","Kobieta","15 lat","Brak danych","miasto ponad 500 tys. mieszkańców","liceum ogólnokształcące","dolnośląskie","Nie","Nie","Nie","Nie","Nie","Nie","Nie","Tak","Tak","Tak","Tak","Tak","Nie","Tak","Nie","Tak","Nie","Nie","Tak","Tak","Tak","Nie","Nie","Nie","Tak","Tak","Nie","Nie","Tak","Nie","Nie","Nie","Tak","Tak","Tak","Tak","Tak","Tak","Tak","Tak","Nie","Tak","Nie","Tak","Tak","Tak","Nie","Nie","Tak","Tak","Tak","Tak","Tak","Tak","Tak","Tak","Nie","Nie","Tak","Nie","Nie","Nie","Nie","Nie","Tak","Nie","Nie","Nie","Tak","Nie","Nie","Nie","Nie","Tak","Tak","Nie","Tak","Tak","Nie","Nie","Tak","Tak","Tak","Nie","Nie","2) praktyczny realista","1) klockami - budując, majsterkując","5) „Wielka Orkiestra Świątecznej Pomocy” - wystawa fotografii, relacje wolontariuszy","3) pracy w biurze i porządkowania dokumentacji","2) pisząc, czytając, rozmyślając","1) inteligentna/-y, dociekliwa/-y, analityczna/-y","4) niezdecydowania i niezaradności","2) zdarza się, że się spóźniam, ale bardzo rzadko - tylko wtedy, gdy jest jakaś obiektywna przyczyna","5) przytulny, w którym każdy czuje się dobrze","2) w pełni cieszyć się życiem i zachwycać jego pięknem","5) przygotujesz inspirujące wystąpienie, pragnąc zarazić innych swoim \"bakcylem\"","2) pokażesz mu jakbyś to zrobił/-a, dając konkretny przykład","4) prace przy projekcie dotyczącym zagospodarowania terenów parku miejskiego (prace porządkowe, nasadzenia, prace elektryczne, mechaniczne itp.)","5) będę się również starał pomagać innym, gdyby mieli problemy","3) kiedy wiem, że moje relacje z innymi mogą się zepsuć lub ucierpieć","6) ukryte przesłania i symbole zawarte w dziełach sztuki","2) możliwości samodzielnego znalezienia logicznego, racjonalnego rozwiązania","2) kieruję się głównie własnymi regułami i zasadami, które prowadzą mnie do celu","6) systematyczne działania w uporządkowanym środowisku","4) sympatię i szacunek ze strony innych ludzi","Tak","Tak","Tak","Tak","Tak","Tak","Tak","Tak","Tak","Tak","Tak","Nie dotyczy","Tak","Tak","Tak","Tak",0.32,0.28999999999999998,0.24,0.28999999999999998,0.38,0.32,"realistyczny","R,A,S,B,P,K","produkcyjna","Technik budowy fortepianów i pianin","2015-07-10T02:55:22","Bez grupy","Nie","Przystąpienie samodzielne"]
["Studenciak","Kowalski","Kobieta","15 lat","Brak danych","miasto ponad 500 tys. mieszkańców","liceum ogólnokształcące","dolnośląskie","Nie","Tak","Tak","Nie","Nie","Tak","Tak","Nie","Tak","Tak","Tak","Tak","Tak","Nie","Tak","Nie","Tak","Tak","Tak","Nie","Tak","Nie","Tak","Tak","Nie","Nie","Nie","Tak","Nie","Nie","Tak","Nie","Tak","Tak","Tak","Nie","Tak","Nie","Nie","Tak","Tak","Tak","Nie","Nie","Tak","Nie","Tak","Tak","Tak","Tak","Nie","Tak","Nie","Tak","Tak","Nie","Nie","Tak","Nie","Nie","Tak","Tak","Tak","Nie","Tak","Nie","Tak","Nie","Tak","Nie","Tak","Nie","Tak","Tak","Nie","Tak","Nie","Nie","Nie","Tak","Tak","Tak","Tak","Nie","Tak","1) artystyczna dusza","1) klockami - budując, majsterkując","3) „Nowinki ze świata techniki”","1) projektowania nowych modeli, sprzętów, bibelotów itp.","1) na spotkaniach z przyjaciółmi","1) inteligentna/-y, dociekliwa/-y, analityczna/-y","3) chaotyczności i braku zorganizowania","2) zdarza się, że się spóźniam, ale bardzo rzadko - tylko wtedy, gdy jest jakaś obiektywna przyczyna","5) przytulny, w którym każdy czuje się dobrze","3) być pożytecznym i pomocnym dla innych","2) zaprezentujesz realny przedmiot swoich zainteresowań i dasz spróbować innym","2) pokażesz mu jakbyś to zrobił/-a, dając konkretny przykład","3) prace przy organizacji dni ulicy, przygotowanie programu artystycznego","2) w zespole wykonuję swoją precyzyjnie określoną część pracy, tak jak pozostali","2) kiedy nie mogę zrealizować swoich pomysłów, a wiem, że są najlepsze","5) naturalne talenty, możliwości i umiejętności innych","4) współpracy z innymi w dobrej, przyjacielskiej atmosferze","5) staram się je przestrzegać, wierzę że ustalono je dla dobra wszystkich","6) systematyczne działania w uporządkowanym środowisku","4) sympatię i szacunek ze strony innych ludzi","Nie dotyczy","Tak","Tak","Tak","Tak","Tak","Nie dotyczy","Nie dotyczy","Tak","Tak","Nie dotyczy","Nie dotyczy","Nie dotyczy","Nie dotyczy","Nie dotyczy","Tak",0.26,0.24,0.41,0.28999999999999998,0.44,0.38,"realistyczny","R,K,S,P,A,B","artystyczna","Aktor scen muzycznych","2015-07-10T02:56:24","Bez grupy","Nie","Przystąpienie samodzielne"]
["Studenciak","Kowalski","Kobieta","15 lat","Brak danych","miasto ponad 500 tys. mieszkańców","liceum ogólnokształcące","dolnośląskie","Nie","Nie","Tak","Tak","Nie","Nie","Tak","Tak","Nie","Tak","Nie","Tak","Tak","Tak","Nie","Nie","Tak","Nie","Nie","Nie","Nie","Nie","Tak","Tak","Nie","Tak","Nie","Nie","Tak","Tak","Nie","Tak","Nie","Tak","Tak","Nie","Nie","Tak","Tak","Tak","Nie","Tak","Nie","Nie","Nie","Tak","Tak","Tak","Nie","Nie","Nie","Tak","Nie","Tak","Nie","Tak","Nie","Nie","Nie","Nie","Tak","Tak","Tak","Nie","Nie","Nie","Tak","Tak","Tak","Nie","Tak","Tak","Tak","Nie","Nie","Nie","Nie","Nie","Nie","Nie","Tak","Tak","Nie","Tak","Tak","1) artystyczna dusza","1) klockami - budując, majsterkując","3) „Nowinki ze świata techniki”","6) badania i analizy rynku","2) pisząc, czytając, rozmyślając","5) uporządkowana/-y i dobrze zorganizowana/-y","1) powierzchowności, braku wiedzy bądź głupoty","1) zawsze jestem na czas - nie wyobrażam sobie spóźniania","1) twórczy nieporządek","4) być uznanym specjalistą / ekspertem w danej dziedzinie wiedzy czy środowisku zawodowym","4) opowiesz o swojej pasji, będziesz odwoływał/-a się do przykładów, doświadczeń, emocji","1) pomożesz mu po zajęciach, a w razie trudności pozwalasz mu do Ciebie jeszcze zadzwonić","4) prace przy projekcie dotyczącym zagospodarowania terenów parku miejskiego (prace porządkowe, nasadzenia, prace elektryczne, mechaniczne itp.)","1) najchętniej sam/-a wszystko zrobię, ponieważ najlepiej pracuje mi się niezależnie od innych","1) kiedy nie wiem co mam robić lub nagle zmieniają się reguły i wszędzie panuje nieporządek i chaos","5) naturalne talenty, możliwości i umiejętności innych","3) swobody i nieustalonych norm, chcę działać intuicyjnie","6) przestrzegam reguł i zasad, przecież czemuś służą","5) realizację kreatywnych celów w zmotywowanym zespole","1) poczucie bezpieczeństwa wynikające z jasno określonych reguł i stałych przychodów","Tak","Tak","Tak","Tak","Tak","Nie dotyczy","Tak","Tak","Tak","Nie dotyczy","Tak","Nie dotyczy","Nie dotyczy","Nie dotyczy","Nie dotyczy","Tak",0.28999999999999998,0.38,0.35,0.24,0.32,0.18,"badawczy","B,K,R,A,P,S","wychowawcza","Technik bezpieczeństwa i higieny pracy","2015-07-10T03:01:42","Bez grupy","Nie","Przystąpienie samodzielne"]
["Studenciak","Kowalski","Kobieta","15 lat","Brak danych","miasto ponad 500 tys. mieszkańców","liceum ogólnokształcące","dolnośląskie","Nie","Tak","Tak","Nie","Nie","Nie","Nie","Tak","Nie","Tak","Nie","Tak","Tak","Tak","Tak","Tak","Tak","Tak","Tak","Nie","Nie","Nie","Tak","Tak","Tak","Nie","Nie","Nie","Nie","Tak","Tak","Tak","Nie","Tak","Nie","Tak","Tak","Tak","Tak","Tak","Nie","Tak","Tak","Tak","Nie","Tak","Nie","Tak","Tak","Nie","Nie","Nie","Nie","Nie","Nie","Nie","Tak","Tak","Tak","Tak","Nie","Nie","Tak","Nie","Nie","Tak","Nie","Nie","Nie","Nie","Tak","Nie","Nie","Tak","Tak","Nie","Tak","Tak","Nie","Tak","Nie","Nie","Nie","Tak","Nie","4) serce na dłoni / dusza człowiek","6) najchętniej bawiłam/-em się sam/-a","4) „Od Zera do Milionera - trendy w świecie biznesu”","6) badania i analizy rynku","5) organizując różne ciekawe przedsięwzięcia","1) inteligentna/-y, dociekliwa/-y, analityczna/-y","5) bezczynności i pozorowanych działań","5) wszystko musi być tak, jak sobie wcześniej ustaliłam/-em - nie pozwolę sobie na spóźnienie, stracił/a/bym w oczach innych","4) reprezentacyjny, robiący wrażenie","6) dążyć do doskonałości i perfekcji","2) zaprezentujesz realny przedmiot swoich zainteresowań i dasz spróbować innym","5) powiesz mu, że jak dobrze zaplanuje i zorganizuje prace, to sobie z tym poradzi","6) udział w projekcie mającym na celu wypromowanie regionu lub miasta, w którym mieszkasz","3) tak podzielę pracę, aby każdy robił to, do czego najlepiej się nadaje","1) kiedy nie wiem co mam robić lub nagle zmieniają się reguły i wszędzie panuje nieporządek i chaos","4) dane statystyczne, zestawienia liczbowe, określone procedury","3) swobody i nieustalonych norm, chcę działać intuicyjnie","2) kieruję się głównie własnymi regułami i zasadami, które prowadzą mnie do celu","4) grupową współpracę w przyjacielskiej atmosferze","3) uznanie, z racji posiadanej wiedzy i osiągnięć naukowych","Tak","Tak","Tak","Tak","Tak","Nie dotyczy","Tak","Tak","Nie dotyczy","Nie dotyczy","Tak","Tak","Tak","Tak","Nie dotyczy","Nie dotyczy",0.21,0.32,0.28999999999999998,0.47,0.28999999999999998,0.26,"przedsiębiorczy","P,B,R,K,S,A","porządkowa","Technik transportu kolejowego","2015-07-10T03:16:26","Bez grupy","Nie","Przystąpienie samodzielne"]
["Studenciak","Kowalski","Kobieta","15 lat","Brak danych","miasto ponad 500 tys. mieszkańców","liceum ogólnokształcące","dolnośląskie","Tak","Tak","Nie","Nie","Nie","Nie","Nie","Nie","Nie","Nie","Nie","Nie","Nie","Nie","Nie","Tak","Nie","Nie","Nie","Nie","Nie","Nie","Nie","Nie","Nie","Nie","Nie","Nie","Nie","Nie","Tak","Nie","Nie","Nie","Nie","Nie","Nie","Nie","Nie","Nie","Nie","Nie","Nie","Nie","Nie","Tak","Nie","Nie","Nie","Nie","Nie","Nie","Nie","Nie","Nie","Nie","Nie","Nie","Nie","Nie","Nie","Tak","Nie","Nie","Nie","Nie","Nie","Nie","Nie","Nie","Nie","Nie","Nie","Nie","Nie","Nie","Nie","Nie","Nie","Nie","Tak","Nie","Nie","Nie","Nie","6) skrupulatny wykonawca","5) z innymi dziećmi, wymyślając i organizując zabawy","6) „Prezentacja skutecznych metod organizacji pracy”","6) badania i analizy rynku","5) organizując różne ciekawe przedsięwzięcia","5) uporządkowana/-y i dobrze zorganizowana/-y","6) braku wyobraźni i wrażliwości","5) wszystko musi być tak, jak sobie wcześniej ustaliłam/-em - nie pozwolę sobie na spóźnienie, stracił/a/bym w oczach innych","5) przytulny, w którym każdy czuje się dobrze","5) żyć z pracy rąk i dobrze sobie radzić w każdej sytuacji","4) opowiesz o swojej pasji, będziesz odwoływał/-a się do przykładów, doświadczeń, emocji","4) polecisz mu książki, strony internetowe, wskażesz materiały źródłowe","5) pomoc ofiarom powodzi / osobom niepełnosprawnym","6) skoncentruję się głównie na działaniu i konkretach","5) kiedy ludzie nie wiedzą czego konkretnie ode mnie chcą","5) naturalne talenty, możliwości i umiejętności innych","5) zgranego efektywnego zespołu, który z entuzjazmem zrealizuje mój pomysł","6) przestrzegam reguł i zasad, przecież czemuś służą","6) systematyczne działania w uporządkowanym środowisku","6) poczucie, że to, co robię jest przydatne i praktyczne","Nie","Nie","Tak","Tak","Tak","Tak","Nie","Nie","Nie","Nie","Nie","Nie dotyczy","Nie","Nie","Nie","Nie",0.03,0.09,0.12,0.24,0.18,0.12,"realistyczny","P,R,K,S,B,A","produkcyjna","Kucharz","2015-07-10T04:11:29","Bez grupy","Nie","Przystąpienie samodzielne"]
["Studenciak","Kowalski","Kobieta","15 lat","Brak danych","miasto ponad 500 tys. mieszkańców","liceum ogólnokształcące","dolnośląskie","Tak","Nie","Nie","Nie","Nie","Nie","Nie","Nie","Nie","Nie","Nie","Nie","Nie","Nie","Tak","Nie","Nie","Nie","Nie","Nie","Nie","Nie","Nie","Nie","Nie","Nie","Tak","Nie","Nie","Nie","Nie","Nie","Nie","Nie","Nie","Nie","Nie","Nie","Nie","Nie","Nie","Tak","Nie","Nie","Nie","Nie","Nie","Nie","Nie","Nie","Nie","Nie","Nie","Nie","Nie","Tak","Nie","Nie","Nie","Nie","Nie","Nie","Nie","Nie","Nie","Nie","Nie","Nie","Nie","Tak","Nie","Nie","Nie","Nie","Nie","Nie","Nie","Nie","Nie","Nie","Nie","Nie","Nie","Tak","Nie","6) skrupulatny wykonawca","6) najchętniej bawiłam/-em się sam/-a","6) „Prezentacja skutecznych metod organizacji pracy”","5) wykonywania zaprojektowanych przedmiotów","5) organizując różne ciekawe przedsięwzięcia","6) niekonwencjonalna/-y, twórcza/-y","5) bezczynności i pozorowanych działań","5) wszystko musi być tak, jak sobie wcześniej ustaliłam/-em - nie pozwolę sobie na spóźnienie, stracił/a/bym w oczach innych","6) przypominający pracownię naukowca","6) dążyć do doskonałości i perfekcji","6) rzetelnie przygotujesz uporządkowaną prezentację, przedstawiającą Twoje hobby","5) powiesz mu, że jak dobrze zaplanuje i zorganizuje prace, to sobie z tym poradzi","4) prace przy projekcie dotyczącym zagospodarowania terenów parku miejskiego (prace porządkowe, nasadzenia, prace elektryczne, mechaniczne itp.)","6) skoncentruję się głównie na działaniu i konkretach","6) kiedy nie mam dostępu do informacji i wiedzy, której w danym momencie potrzebuję","6) ukryte przesłania i symbole zawarte w dziełach sztuki","4) współpracy z innymi w dobrej, przyjacielskiej atmosferze","4) przestrzegam przede wszystkim tych, które rozumiem i wydaje mi się, że są logiczne i uzasadnione","5) realizację kreatywnych celów w zmotywowanym zespole","6) poczucie, że to, co robię jest przydatne i praktyczne","Nie","Nie","Tak","Tak","Nie dotyczy","Nie","Nie dotyczy","Nie dotyczy","Nie dotyczy","Nie dotyczy","Nie dotyczy","Nie dotyczy","Nie","Nie dotyczy","Nie dotyczy","Nie",0.12,0.15,0.18,0.09,0.18,0.06,"konwencjonalny","R,K,B,A,P,S","organizacyjna","Technik realizacji dźwięku","2015-07-10T04:15:37","Bez grupy","Nie","Przystąpienie samodzielne"]
["Studenciak","Kowalski","Kobieta","15 lat","Brak danych","miasto ponad 500 tys. mieszkańców","liceum ogólnokształcące","dolnośląskie","Tak","Tak","Nie","Tak","Tak","Tak","Tak","Nie","Tak","Tak","Tak","Nie","Tak","Tak","Tak","Nie","Tak","Nie","Nie","Nie","Nie","Tak","Tak","Nie","Nie","Nie","Nie","Tak","Tak","Nie","Tak","Tak","Nie","Tak","Nie","Tak","Nie","Nie","Nie","Nie","Nie","Tak","Nie","Tak","Nie","Tak","Nie","Tak","Tak","Nie","Tak","Nie","Tak","Nie","Tak","Tak","Tak","Tak","Nie","Tak","Tak","Nie","Nie","Nie","Tak","Nie","Nie","Nie","Tak","Nie","Tak","Nie","Tak","Nie","Tak","Tak","Nie","Nie","Tak","Tak","Nie","Tak","Tak","Tak","Tak","4) serce na dłoni / dusza człowiek","1) klockami - budując, majsterkując","3) „Nowinki ze świata techniki”","6) badania i analizy rynku","5) organizując różne ciekawe przedsięwzięcia","3) zaradna/-y i przebojowa/-y","6) braku wyobraźni i wrażliwości","1) zawsze jestem na czas - nie wyobrażam sobie spóźniania","2) pokój, w którym jest tylko to, co jest Ci naprawdę potrzebne","3) być pożytecznym i pomocnym dla innych","4) opowiesz o swojej pasji, będziesz odwoływał/-a się do przykładów, doświadczeń, emocji","4) polecisz mu książki, strony internetowe, wskażesz materiały źródłowe","6) udział w projekcie mającym na celu wypromowanie regionu lub miasta, w którym mieszkasz","5) będę się również starał pomagać innym, gdyby mieli problemy","4) nie mam swobody wyrażania siebie i swoich myśli","6) ukryte przesłania i symbole zawarte w dziełach sztuki","6) ściśle określonych reguł, zasad bądź procedur","6) przestrzegam reguł i zasad, przecież czemuś służą","1) praktyczne zadania w nieformalnym środowisku","4) sympatię i szacunek ze strony innych ludzi","Nie","Nie","Tak","Nie","Nie","Nie dotyczy","Nie","Tak","Nie dotyczy","Tak","Nie","Tak","Tak","Nie","Nie dotyczy","Nie dotyczy",0.28999999999999998,0.24,0.26,0.35,0.35,0.41,"społeczny","S,R,P,A,K,B","usługowa","Technik księgarstwa","2015-07-10T04:20:52","Bez grupy","Nie","Przystąpienie samodzielne"]
["Studenciak","Kowalski","Kobieta","15 lat","Brak danych","miasto ponad 500 tys. mieszkańców","liceum ogólnokształcące","dolnośląskie","Tak","Nie","Tak","Nie","Nie","Nie","Nie","Nie","Nie","Nie","Nie","Tak","Nie","Tak","Tak","Nie","Nie","Nie","Tak","Nie","Nie","Tak","Nie","Nie","Nie","Nie","Nie","Nie","Tak","Nie","Nie","Tak","Nie","Tak","Nie","Nie","Nie","Nie","Nie","Nie","Tak","Nie","Tak","Tak","Nie","Tak","Tak","Nie","Tak","Nie","Tak","Tak","Tak","Nie","Nie","Tak","Tak","Tak","Nie","Tak","Nie","Nie","Nie","Nie","Nie","Nie","Nie","Nie","Nie","Tak","Tak","Tak","Tak","Nie","Nie","Nie","Nie","Nie","Nie","Nie","Tak","Nie","Nie","Nie","Tak","4) serce na dłoni / dusza człowiek","6) najchętniej bawiłam/-em się sam/-a","6) „Prezentacja skutecznych metod organizacji pracy”","2) zarządzania działem sprzedaży lub sprzedażą","6) rozwiązując łamigłówki i problemy logiczne","3) zaradna/-y i przebojowa/-y","5) bezczynności i pozorowanych działań","1) zawsze jestem na czas - nie wyobrażam sobie spóźniania","6) przypominający pracownię naukowca","3) być pożytecznym i pomocnym dla innych","3) pokażesz swoje prace w nieszablonowej, niekonwencjonalnej formie","3) opowiesz mu jak mógłby przygotować nieszablonową prezentację","1) prace przy projekcie polegającym na zbieraniu i analizowaniu wielu danych, wyciąganiu logicznych wniosków","2) w zespole wykonuję swoją precyzyjnie określoną część pracy, tak jak pozostali","1) kiedy nie wiem co mam robić lub nagle zmieniają się reguły i wszędzie panuje nieporządek i chaos","1) różnorodne zagadnienia naukowe i techniczne","1) instrukcji na temat tego, co mam zrobić i możliwości spróbowania różnych rozwiązań","6) przestrzegam reguł i zasad, przecież czemuś służą","3) twórcze zadania w swobodnym środowisku","1) poczucie bezpieczeństwa wynikające z jasno określonych reguł i stałych przychodów","Nie dotyczy","Nie","Tak","Tak","Nie","Tak","Nie dotyczy","Nie dotyczy","Nie","Tak","Nie dotyczy","Nie dotyczy","Nie dotyczy","Nie dotyczy","Nie dotyczy","Tak",0.21,0.32,0.32,0.18,0.15,0.24,"konwencjonalny","K,B,S,A,P,R","artystyczna","Muzyk","2015-07-10T04:22:37","Bez grupy","Nie","Przystąpienie samodzielne"]
["Studenciak","Kowalski","Kobieta","15 lat","Brak danych","miasto ponad 500 tys. mieszkańców","liceum ogólnokształcące","dolnośląskie","Tak","Nie","Tak","Nie","Nie","Nie","Nie","Nie","Nie","Nie","Nie","Tak","Nie","Tak","Tak","Nie","Nie","Nie","Tak","Nie","Nie","Tak","Nie","Nie","Nie","Nie","Nie","Nie","Tak","Nie","Nie","Tak","Nie","Tak","Nie","Nie","Nie","Nie","Nie","Nie","Tak","Nie","Tak","Tak","Nie","Tak","Tak","Nie","Tak","Nie","Tak","Tak","Tak","Nie","Nie","Tak","Tak","Tak","Nie","Tak","Nie","Nie","Nie","Nie","Nie","Nie","Nie","Nie","Nie","Tak","Tak","Tak","Tak","Nie","Nie","Nie","Nie","Nie","Nie","Nie","Tak","Nie","Nie","Nie","Tak","4) serce na dłoni / dusza człowiek","6) najchętniej bawiłam/-em się sam/-a","6) „Prezentacja skutecznych metod organizacji pracy”","2) zarządzania działem sprzedaży lub sprzedażą","6) rozwiązując łamigłówki i problemy logiczne","3) zaradna/-y i przebojowa/-y","5) bezczynności i pozorowanych działań","1) zawsze jestem na czas - nie wyobrażam sobie spóźniania","6) przypominający pracownię naukowca","3) być pożytecznym i pomocnym dla innych","3) pokażesz swoje prace w nieszablonowej, niekonwencjonalnej formie","3) opowiesz mu jak mógłby przygotować nieszablonową prezentację","1) prace przy projekcie polegającym na zbieraniu i analizowaniu wielu danych, wyciąganiu logicznych wniosków","2) w zespole wykonuję swoją precyzyjnie określoną część pracy, tak jak pozostali","1) kiedy nie wiem co mam robić lub nagle zmieniają się reguły i wszędzie panuje nieporządek i chaos","1) różnorodne zagadnienia naukowe i techniczne","1) instrukcji na temat tego, co mam zrobić i możliwości spróbowania różnych rozwiązań","6) przestrzegam reguł i zasad, przecież czemuś służą","3) twórcze zadania w swobodnym środowisku","1) poczucie bezpieczeństwa wynikające z jasno określonych reguł i stałych przychodów","Nie dotyczy","Nie","Tak","Tak","Nie","Tak","Nie dotyczy","Nie dotyczy","Nie","Tak","Nie dotyczy","Nie dotyczy","Nie dotyczy","Nie dotyczy","Nie dotyczy","Tak",0.21,0.32,0.32,0.18,0.15,0.24,"konwencjonalny","K,B,S,A,P,R","artystyczna","Fotograf","2015-07-10T04:23:44","Bez grupy","Nie","Przystąpienie samodzielne"]
["Studenciak","Kowalski","Kobieta","15 lat","Brak danych","miasto ponad 500 tys. mieszkańców","liceum ogólnokształcące","dolnośląskie","Tak","Tak","Tak","Nie","Nie","Nie","Nie","Nie","Tak","Nie","Nie","Nie","Tak","Tak","Tak","Nie","Nie","Nie","Tak","Tak","Nie","Tak","Tak","Nie","Nie","Tak","Tak","Nie","Nie","Tak","Nie","Tak","Nie","Nie","Tak","Nie","Tak","Nie","Nie","Tak","Tak","Nie","Nie","Tak","Tak","Tak","Nie","Tak","Tak","Tak","Nie","Tak","Nie","Nie","Nie","Tak","Tak","Nie","Nie","Nie","Tak","Tak","Nie","Tak","Nie","Tak","Nie","Nie","Nie","Tak","Tak","Nie","Tak","Tak","Nie","Nie","Nie","Nie","Nie","Nie","Nie","Tak","Tak","Nie","Nie","5) przywódca stada / inspirujący lider","2) rysując lub malując","3) „Nowinki ze świata techniki”","4) przyjmowania nowych pracowników, pracy w dziale personalnym","3) pracując w ogrodzie lub na działce","3) zaradna/-y i przebojowa/-y","5) bezczynności i pozorowanych działań","1) zawsze jestem na czas - nie wyobrażam sobie spóźniania","6) przypominający pracownię naukowca","6) dążyć do doskonałości i perfekcji","2) zaprezentujesz realny przedmiot swoich zainteresowań i dasz spróbować innym","1) pomożesz mu po zajęciach, a w razie trudności pozwalasz mu do Ciebie jeszcze zadzwonić","1) prace przy projekcie polegającym na zbieraniu i analizowaniu wielu danych, wyciąganiu logicznych wniosków","4) zaangażuję się dopiero wtedy, kiedy to, co będziemy robić będzie naprawdę ciekawe","5) kiedy ludzie nie wiedzą czego konkretnie ode mnie chcą","2) ludzi, ich myśli i zachowanie","1) instrukcji na temat tego, co mam zrobić i możliwości spróbowania różnych rozwiązań","4) przestrzegam przede wszystkim tych, które rozumiem i wydaje mi się, że są logiczne i uzasadnione","2) rozwiązywanie naukowych i technicznych problemów w niezależnym środowisku","4) sympatię i szacunek ze strony innych ludzi","Nie","Nie","Tak","Tak","Tak","Nie dotyczy","Tak","Nie","Tak","Nie dotyczy","Nie","Nie dotyczy","Nie dotyczy","Nie dotyczy","Nie dotyczy","Nie",0.15,0.26,0.26,0.24,0.44,0.32,"realistyczny","R,S,K,B,P,A","wychowawcza","Opiekunka środowiskowa","2015-07-10T04:25:36","Bez grupy","Nie","Przystąpienie samodzielne"]
["Studenciak","Kowalski","Kobieta","15 lat","Brak danych","miasto ponad 500 tys. mieszkańców","liceum ogólnokształcące","dolnośląskie","Tak","Tak","Tak","Tak","Nie","Tak","Tak","Nie","Tak","Nie","Nie","Tak","Nie","Nie","Nie","Nie","Tak","Tak","Nie","Nie","Nie","Tak","Nie","Tak","Tak","Nie","Tak","Nie","Tak","Nie","Nie","Nie","Tak","Nie","Tak","Nie","Nie","Tak","Tak","Nie","Tak","Nie","Tak","Nie","Tak","Tak","Nie","Tak","Tak","Tak","Tak","Nie","Nie","Nie","Tak","Tak","Tak","Tak","Nie","Tak","Tak","Tak","Tak","Nie","Tak","Tak","Tak","Tak","Nie","Tak","Nie","Tak","Nie","Tak","Tak","Tak","Nie","Tak","Nie","Nie","Tak","Nie","Nie","Nie","Nie","5) przywódca stada / inspirujący lider","1) klockami - budując, majsterkując","5) „Wielka Orkiestra Świątecznej Pomocy” - wystawa fotografii, relacje wolontariuszy","5) wykonywania zaprojektowanych przedmiotów","3) pracując w ogrodzie lub na działce","5) uporządkowana/-y i dobrze zorganizowana/-y","5) bezczynności i pozorowanych działań","6) staram się zawsze zdążyć - nie chcę, żeby inni musieli na mnie czekać","6) przypominający pracownię naukowca","5) żyć z pracy rąk i dobrze sobie radzić w każdej sytuacji","1) przygotujesz dużo danych, informacji, materiałów","2) pokażesz mu jakbyś to zrobił/-a, dając konkretny przykład","6) udział w projekcie mającym na celu wypromowanie regionu lub miasta, w którym mieszkasz","4) zaangażuję się dopiero wtedy, kiedy to, co będziemy robić będzie naprawdę ciekawe","6) kiedy nie mam dostępu do informacji i wiedzy, której w danym momencie potrzebuję","1) różnorodne zagadnienia naukowe i techniczne","4) współpracy z innymi w dobrej, przyjacielskiej atmosferze","3) nie lubię ściśle określonych reguł, to mnie ogranicza","5) realizację kreatywnych celów w zmotywowanym zespole","4) sympatię i szacunek ze strony innych ludzi","Tak","Tak","Tak","Tak","Nie dotyczy","Nie","Nie dotyczy","Nie dotyczy","Nie dotyczy","Nie dotyczy","Nie dotyczy","Nie dotyczy","Tak","Nie dotyczy","Nie dotyczy","Nie",0.28999999999999998,0.38,0.21,0.26,0.41,0.35,"realistyczny","R,B,S,A,P,K","organizacyjna","Technik żeglugi śródlądowej","2015-07-10T04:26:48","Grupa A","2015-07-06T09:00:15","Teodor Kowalski"]
["Student","Kowalski lub brak","Kobieta","15 lat","Brak danych","miasto ponad 500 tys. mieszkańców","liceum ogólnokształcące","dolnośląskie","Tak","Tak","Nie","Nie","Nie","Tak","Nie","Tak","Nie","Nie","Tak","Nie","Nie","Nie","Nie","Nie","Nie","Nie","Nie","Nie","Nie","Nie","Tak","Tak","Nie","Tak","Nie","Nie","Nie","Nie","Tak","Nie","Nie","Tak","Nie","Nie","Nie","Nie","Nie","Nie","Nie","Nie","Nie","Nie","Nie","Nie","Nie","Nie","Nie","Tak","Nie","Nie","Nie","Nie","Nie","Nie","Nie","Nie","Nie","Nie","Nie","Nie","Tak","Nie","Tak","Nie","Nie","Nie","Nie","Nie","Nie","Tak","Nie","Nie","Nie","Nie","Nie","Tak","Nie","Nie","Nie","Nie","Nie","Nie","Nie","4) serce na dłoni / dusza człowiek","3) w gry i zabawy z innymi","4) „Od Zera do Milionera - trendy w świecie biznesu”","4) przyjmowania nowych pracowników, pracy w dziale personalnym","3) pracując w ogrodzie lub na działce","4) konkretna/-y i praktyczna/-y","5) bezczynności i pozorowanych działań","3) praktycznie zawsze mam problem, żeby zdążyć - nie lubię, kiedy czas mnie ogranicza","4) reprezentacyjny, robiący wrażenie","5) żyć z pracy rąk i dobrze sobie radzić w każdej sytuacji","4) opowiesz o swojej pasji, będziesz odwoływał/-a się do przykładów, doświadczeń, emocji","5) powiesz mu, że jak dobrze zaplanuje i zorganizuje prace, to sobie z tym poradzi","6) udział w projekcie mającym na celu wypromowanie regionu lub miasta, w którym mieszkasz","6) skoncentruję się głównie na działaniu i konkretach","5) kiedy ludzie nie wiedzą czego konkretnie ode mnie chcą","5) naturalne talenty, możliwości i umiejętności innych","4) współpracy z innymi w dobrej, przyjacielskiej atmosferze","5) staram się je przestrzegać, wierzę że ustalono je dla dobra wszystkich","5) realizację kreatywnych celów w zmotywowanym zespole","2) pieniądze i wysoki prestiż społeczny","Tak","Tak","Tak","Tak","Nie dotyczy","Tak","Nie dotyczy","Nie dotyczy","Nie dotyczy","Nie dotyczy","Nie dotyczy","Nie dotyczy","Tak","Nie dotyczy","Nie dotyczy","Tak",0.09,0.06,0.12,0.18,0.28999999999999998,0.26,"przedsiębiorczy","R,S,P,K,A,B","organizacyjna","Technik drogownictwa","2015-07-10T20:54:32","Grupa A","2015-07-06T09:00:15","Teodor Kowalski"]
["Student","Kowalski lub brak","Kobieta","15 lat","Brak danych","miasto ponad 500 tys. mieszkańców","liceum ogólnokształcące","dolnośląskie","Tak","Tak","Nie","Nie","Nie","Tak","Nie","Tak","Nie","Nie","Tak","Nie","Nie","Nie","Nie","Nie","Nie","Nie","Nie","Nie","Nie","Nie","Tak","Tak","Nie","Tak","Nie","Nie","Nie","Nie","Tak","Nie","Nie","Tak","Nie","Nie","Nie","Nie","Nie","Nie","Nie","Nie","Nie","Nie","Nie","Nie","Nie","Nie","Nie","Tak","Nie","Nie","Nie","Nie","Nie","Nie","Nie","Nie","Nie","Nie","Nie","Nie","Tak","Nie","Tak","Nie","Nie","Nie","Nie","Nie","Nie","Tak","Nie","Nie","Nie","Nie","Nie","Tak","Nie","Nie","Nie","Nie","Nie","Nie","Nie","4) serce na dłoni / dusza człowiek","3) w gry i zabawy z innymi","4) „Od Zera do Milionera - trendy w świecie biznesu”","4) przyjmowania nowych pracowników, pracy w dziale personalnym","3) pracując w ogrodzie lub na działce","4) konkretna/-y i praktyczna/-y","5) bezczynności i pozorowanych działań","3) praktycznie zawsze mam problem, żeby zdążyć - nie lubię, kiedy czas mnie ogranicza","4) reprezentacyjny, robiący wrażenie","5) żyć z pracy rąk i dobrze sobie radzić w każdej sytuacji","4) opowiesz o swojej pasji, będziesz odwoływał/-a się do przykładów, doświadczeń, emocji","5) powiesz mu, że jak dobrze zaplanuje i zorganizuje prace, to sobie z tym poradzi","6) udział w projekcie mającym na celu wypromowanie regionu lub miasta, w którym mieszkasz","6) skoncentruję się głównie na działaniu i konkretach","5) kiedy ludzie nie wiedzą czego konkretnie ode mnie chcą","5) naturalne talenty, możliwości i umiejętności innych","4) współpracy z innymi w dobrej, przyjacielskiej atmosferze","5) staram się je przestrzegać, wierzę że ustalono je dla dobra wszystkich","5) realizację kreatywnych celów w zmotywowanym zespole","2) pieniądze i wysoki prestiż społeczny","Tak","Tak","Tak","Tak","Nie dotyczy","Tak","Nie dotyczy","Nie dotyczy","Nie dotyczy","Nie dotyczy","Nie dotyczy","Nie dotyczy","Tak","Nie dotyczy","Nie dotyczy","Tak",0.09,0.06,0.12,0.18,0.28999999999999998,0.26,"przedsiębiorczy","R,S,P,K,A,B","organizacyjna","Technik drogownictwa","2015-07-10T20:58:12","Grupa A","2015-07-06T09:00:15","Teodor Kowalski"]
["x","x","Kobieta","16 lat","Brak danych","miasto 50 - 100 tys. mieszkańców","technikum","łódzkie","Tak","Nie","Nie","Nie","Nie","Tak","Nie","Tak","Nie","Nie","Nie","Nie","Nie","Nie","Nie","Nie","Tak","Nie","Tak","Nie","Nie","Nie","Nie","Nie","Nie","Nie","Nie","Nie","Nie","Nie","Nie","Nie","Nie","Nie","Nie","Nie","Nie","Tak","Nie","Tak","Nie","Nie","Nie","Nie","Tak","Nie","Nie","Tak","Nie","Nie","Nie","Nie","Nie","Nie","Nie","Nie","Nie","Nie","Tak","Nie","Nie","Nie","Nie","Tak","Nie","Nie","Nie","Nie","Nie","Nie","Nie","Nie","Nie","Nie","Nie","Tak","Nie","Nie","Tak","Nie","Nie","Nie","Nie","Nie","Nie","3) dociekliwy badacz","3) w gry i zabawy z innymi","2) „Największe osiągnięcia współczesnej nauki”","2) zarządzania działem sprzedaży lub sprzedażą","4) porządkując swój pokój lub mieszkanie","2) przyjacielska/-i, uczynna/-y","1) powierzchowności, braku wiedzy bądź głupoty","1) zawsze jestem na czas - nie wyobrażam sobie spóźniania","3) uporządkowany, gdzie wszystko jest na swoim miejscu","4) być uznanym specjalistą / ekspertem w danej dziedzinie wiedzy czy środowisku zawodowym","2) zaprezentujesz realny przedmiot swoich zainteresowań i dasz spróbować innym","4) polecisz mu książki, strony internetowe, wskażesz materiały źródłowe","4) prace przy projekcie dotyczącym zagospodarowania terenów parku miejskiego (prace porządkowe, nasadzenia, prace elektryczne, mechaniczne itp.)","2) w zespole wykonuję swoją precyzyjnie określoną część pracy, tak jak pozostali","1) kiedy nie wiem co mam robić lub nagle zmieniają się reguły i wszędzie panuje nieporządek i chaos","3) praktyczne rozwiązania i sposoby wykonania konkretnych rzeczy","4) współpracy z innymi w dobrej, przyjacielskiej atmosferze","6) przestrzegam reguł i zasad, przecież czemuś służą","2) rozwiązywanie naukowych i technicznych problemów w niezależnym środowisku","2) pieniądze i wysoki prestiż społeczny","Tak","Nie","Nie dotyczy","Nie dotyczy","Nie dotyczy","Nie dotyczy","Nie dotyczy","Nie dotyczy","Nie dotyczy","Nie dotyczy","Nie dotyczy","Nie","Tak","Nie","Tak","Nie dotyczy",0,0.32,0.18,0.15,0.21,0.09,"badawczy","B,R,K,P,S,A","poznawcza","Technik teleinformatyk","2015-07-13T14:23:34","Bez grupy","Nie","Przystąpienie samodzielne"]
["Jan","Kowalski","Mężczyzna","20 lat","Brak danych","miasto ponad 500 tys. mieszkańców","gimnazjum","mazowieckie","Nie","Tak","Nie","Nie","Nie","Nie","Nie","Nie","Nie","Nie","Nie","Nie","Nie","Nie","Nie","Nie","Nie","Tak","Nie","Nie","Nie","Nie","Nie","Nie","Nie","Nie","Nie","Nie","Nie","Nie","Nie","Tak","Nie","Nie","Nie","Nie","Nie","Nie","Nie","Nie","Nie","Nie","Nie","Nie","Nie","Tak","Nie","Nie","Nie","Nie","Nie","Nie","Nie","Nie","Nie","Nie","Nie","Nie","Nie","Nie","Nie","Tak","Nie","Nie","Nie","Nie","Nie","Nie","Nie","Nie","Nie","Nie","Nie","Nie","Nie","Nie","Tak","Nie","Nie","Nie","Nie","Nie","Nie","Nie","Nie","3) dociekliwy badacz","3) w gry i zabawy z innymi","4) „Od Zera do Milionera - trendy w świecie biznesu”","4) przyjmowania nowych pracowników, pracy w dziale personalnym","3) pracując w ogrodzie lub na działce","5) uporządkowana/-y i dobrze zorganizowana/-y","5) bezczynności i pozorowanych działań","1) zawsze jestem na czas - nie wyobrażam sobie spóźniania","3) uporządkowany, gdzie wszystko jest na swoim miejscu","4) być uznanym specjalistą / ekspertem w danej dziedzinie wiedzy czy środowisku zawodowym","1) przygotujesz dużo danych, informacji, materiałów","3) opowiesz mu jak mógłby przygotować nieszablonową prezentację","4) prace przy projekcie dotyczącym zagospodarowania terenów parku miejskiego (prace porządkowe, nasadzenia, prace elektryczne, mechaniczne itp.)","5) będę się również starał pomagać innym, gdyby mieli problemy","6) kiedy nie mam dostępu do informacji i wiedzy, której w danym momencie potrzebuję","6) ukryte przesłania i symbole zawarte w dziełach sztuki","6) ściśle określonych reguł, zasad bądź procedur","6) przestrzegam reguł i zasad, przecież czemuś służą","6) systematyczne działania w uporządkowanym środowisku","5) możliwość wyrażania siebie, wykorzystania swoich talentów","Nie","Nie","Nie","Nie","Nie","Nie dotyczy","Nie","Tak","Nie dotyczy","Nie dotyczy","Nie","Nie","Nie","Nie","Nie dotyczy","Nie dotyczy",0.09,0.18,0.15,0.12,0.15,0.09,"konwencjonalny","B,R,K,P,A,S","porządkowa","Introligator","2015-07-17T23:53:44","Bez grupy","Nie","Przystąpienie samodzielne"]
["Jan","Kowalski","Mężczyzna","20 lat","Brak danych","miasto ponad 500 tys. mieszkańców","gimnazjum","mazowieckie","Nie","Tak","Nie","Nie","Nie","Nie","Nie","Nie","Nie","Nie","Nie","Nie","Nie","Nie","Nie","Nie","Nie","Tak","Nie","Nie","Nie","Nie","Nie","Nie","Nie","Nie","Nie","Nie","Nie","Nie","Nie","Tak","Nie","Nie","Nie","Nie","Nie","Nie","Nie","Nie","Nie","Nie","Nie","Nie","Nie","Tak","Nie","Nie","Nie","Nie","Nie","Nie","Nie","Nie","Nie","Nie","Nie","Nie","Nie","Nie","Nie","Tak","Nie","Nie","Nie","Nie","Nie","Nie","Nie","Nie","Nie","Nie","Nie","Nie","Nie","Nie","Tak","Nie","Nie","Nie","Nie","Nie","Nie","Nie","Nie","3) dociekliwy badacz","3) w gry i zabawy z innymi","4) „Od Zera do Milionera - trendy w świecie biznesu”","4) przyjmowania nowych pracowników, pracy w dziale personalnym","3) pracując w ogrodzie lub na działce","5) uporządkowana/-y i dobrze zorganizowana/-y","5) bezczynności i pozorowanych działań","1) zawsze jestem na czas - nie wyobrażam sobie spóźniania","3) uporządkowany, gdzie wszystko jest na swoim miejscu","4) być uznanym specjalistą / ekspertem w danej dziedzinie wiedzy czy środowisku zawodowym","1) przygotujesz dużo danych, informacji, materiałów","3) opowiesz mu jak mógłby przygotować nieszablonową prezentację","4) prace przy projekcie dotyczącym zagospodarowania terenów parku miejskiego (prace porządkowe, nasadzenia, prace elektryczne, mechaniczne itp.)","5) będę się również starał pomagać innym, gdyby mieli problemy","6) kiedy nie mam dostępu do informacji i wiedzy, której w danym momencie potrzebuję","6) ukryte przesłania i symbole zawarte w dziełach sztuki","6) ściśle określonych reguł, zasad bądź procedur","6) przestrzegam reguł i zasad, przecież czemuś służą","6) systematyczne działania w uporządkowanym środowisku","5) możliwość wyrażania siebie, wykorzystania swoich talentów","Nie","Nie","Nie","Nie","Nie","Nie dotyczy","Nie","Tak","Nie dotyczy","Nie dotyczy","Nie","Nie","Nie","Nie","Nie dotyczy","Nie dotyczy",0.09,0.18,0.15,0.12,0.15,0.09,"konwencjonalny","B,R,K,P,A,S","porządkowa","Introligator","2015-07-17T23:54:02","Bez grupy","Nie","Przystąpienie samodzielne"]
["Jan","Kowalski","Mężczyzna","20 lat","Brak danych","miasto ponad 500 tys. mieszkańców","gimnazjum","mazowieckie","Nie","Tak","Nie","Nie","Nie","Nie","Nie","Nie","Nie","Nie","Nie","Nie","Nie","Nie","Nie","Nie","Nie","Tak","Nie","Nie","Nie","Nie","Nie","Nie","Nie","Nie","Nie","Nie","Nie","Nie","Nie","Tak","Nie","Nie","Nie","Nie","Nie","Nie","Nie","Nie","Nie","Nie","Nie","Nie","Nie","Tak","Nie","Nie","Nie","Nie","Nie","Nie","Nie","Nie","Nie","Nie","Nie","Nie","Nie","Nie","Nie","Tak","Nie","Nie","Nie","Nie","Nie","Nie","Nie","Nie","Nie","Nie","Nie","Nie","Nie","Nie","Tak","Nie","Nie","Nie","Nie","Nie","Nie","Nie","Nie","3) dociekliwy badacz","3) w gry i zabawy z innymi","4) „Od Zera do Milionera - trendy w świecie biznesu”","4) przyjmowania nowych pracowników, pracy w dziale personalnym","3) pracując w ogrodzie lub na działce","5) uporządkowana/-y i dobrze zorganizowana/-y","5) bezczynności i pozorowanych działań","1) zawsze jestem na czas - nie wyobrażam sobie spóźniania","3) uporządkowany, gdzie wszystko jest na swoim miejscu","4) być uznanym specjalistą / ekspertem w danej dziedzinie wiedzy czy środowisku zawodowym","1) przygotujesz dużo danych, informacji, materiałów","3) opowiesz mu jak mógłby przygotować nieszablonową prezentację","4) prace przy projekcie dotyczącym zagospodarowania terenów parku miejskiego (prace porządkowe, nasadzenia, prace elektryczne, mechaniczne itp.)","5) będę się również starał pomagać innym, gdyby mieli problemy","6) kiedy nie mam dostępu do informacji i wiedzy, której w danym momencie potrzebuję","6) ukryte przesłania i symbole zawarte w dziełach sztuki","6) ściśle określonych reguł, zasad bądź procedur","6) przestrzegam reguł i zasad, przecież czemuś służą","6) systematyczne działania w uporządkowanym środowisku","5) możliwość wyrażania siebie, wykorzystania swoich talentów","Nie","Nie","Nie","Nie","Nie","Nie dotyczy","Nie","Nie","Nie dotyczy","Nie dotyczy","Nie","Nie","Nie","Nie","Nie dotyczy","Nie dotyczy",0.09,0.18,0.15,0.12,0.15,0.09,"konwencjonalny","B,R,K,P,A,S","porządkowa","Introligator","2015-07-18T00:01:33","Bez grupy","Nie","Przystąpienie samodzielne"]
["Student","Testowy 0","Mężczyzna","15 lat","Uniwersytet Mikołaja Kopernika w Toruniu","miasto 100 - 500 tys. mieszkańców","liceum ogólnokształcące","kujawsko-pomorskie","Tak","Nie","Tak","Nie","Tak","Tak","Tak","Nie","Tak","Tak","Tak","Tak","Nie","Nie","Nie","Nie","Nie","Nie","Nie","Tak","Nie","Nie","Nie","Nie","Tak","Tak","Tak","Nie","Tak","Tak","Nie","Nie","Tak","Tak","Nie","Tak","Nie","Tak","Tak","Tak","Tak","Nie","Nie","Nie","Nie","Tak","Tak","Tak","Nie","Nie","Nie","Nie","Nie","Tak","Nie","Tak","Tak","Tak","Tak","Nie","Tak","Tak","Tak","Tak","Tak","Tak","Nie","Nie","Nie","Tak","Tak","Nie","Tak","Tak","Nie","Nie","Tak","Tak","Nie","Nie","Nie","Nie","Tak","Nie","Nie","3) dociekliwy badacz","6) najchętniej bawiłam/-em się sam/-a","3) „Nowinki ze świata techniki”","3) pracy w biurze i porządkowania dokumentacji","4) porządkując swój pokój lub mieszkanie","2) przyjacielska/-i, uczynna/-y","5) bezczynności i pozorowanych działań","1) zawsze jestem na czas - nie wyobrażam sobie spóźniania","5) przytulny, w którym każdy czuje się dobrze","4) być uznanym specjalistą / ekspertem w danej dziedzinie wiedzy czy środowisku zawodowym","2) zaprezentujesz realny przedmiot swoich zainteresowań i dasz spróbować innym","4) polecisz mu książki, strony internetowe, wskażesz materiały źródłowe","3) prace przy organizacji dni ulicy, przygotowanie programu artystycznego","1) najchętniej sam/-a wszystko zrobię, ponieważ najlepiej pracuje mi się niezależnie od innych","6) kiedy nie mam dostępu do informacji i wiedzy, której w danym momencie potrzebuję","4) dane statystyczne, zestawienia liczbowe, określone procedury","4) współpracy z innymi w dobrej, przyjacielskiej atmosferze","4) przestrzegam przede wszystkim tych, które rozumiem i wydaje mi się, że są logiczne i uzasadnione","6) systematyczne działania w uporządkowanym środowisku","1) poczucie bezpieczeństwa wynikające z jasno określonych reguł i stałych przychodów","Nie","Tak","Nie","Nie","Nie","Nie dotyczy","Tak","Tak","Nie dotyczy","Nie dotyczy","Nie","Tak","Tak","Nie","Nie dotyczy","Nie dotyczy",0.21,0.44,0.47,0.24,0.18,0.28999999999999998,"konwencjonalny","K,B,S,P,A,R","porządkowa","Technik cyfrowych procesów graficznych","2015-07-19T02:57:53","Grupa A","2015-07-14T22:14:01","Teodor Kowalski"]
["Student","Testowy 54","Mężczyzna","30 lat","Akademia Muzyczna im. Feliksa Nowowiejskiego w Bydgoszczy","miasto ponad 500 tys. mieszkańców","szkoła policealna","kujawsko-pomorskie","Nie","Nie","Nie","Tak","Nie","Nie","Tak","Nie","Tak","Tak","Tak","Nie","Tak","Tak","Tak","Nie","Tak","Tak","Tak","Tak","Nie","Tak","Nie","Nie","Nie","Nie","Nie","Nie","Tak","Tak","Nie","Nie","Tak","Nie","Nie","Nie","Tak","Nie","Tak","Nie","Nie","Nie","Tak","Tak","Tak","Nie","Tak","Tak","Nie","Nie","Tak","Tak","Nie","Tak","Nie","Nie","Nie","Tak","Tak","Nie","Nie","Tak","Nie","Tak","Tak","Tak","Tak","Nie","Tak","Nie","Nie","Tak","Tak","Nie","Nie","Tak","Nie","Tak","Tak","Tak","Tak","Nie","Nie","Tak","Nie","2) praktyczny realista","6) najchętniej bawiłam/-em się sam/-a","3) „Nowinki ze świata techniki”","1) projektowania nowych modeli, sprzętów, bibelotów itp.","5) organizując różne ciekawe przedsięwzięcia","2) przyjacielska/-i, uczynna/-y","4) niezdecydowania i niezaradności","1) zawsze jestem na czas - nie wyobrażam sobie spóźniania","5) przytulny, w którym każdy czuje się dobrze","1) być samodzielnym i niezależnym, zarabiać dużo pieniędzy","6) rzetelnie przygotujesz uporządkowaną prezentację, przedstawiającą Twoje hobby","2) pokażesz mu jakbyś to zrobił/-a, dając konkretny przykład","3) prace przy organizacji dni ulicy, przygotowanie programu artystycznego","2) w zespole wykonuję swoją precyzyjnie określoną część pracy, tak jak pozostali","6) kiedy nie mam dostępu do informacji i wiedzy, której w danym momencie potrzebuję","1) różnorodne zagadnienia naukowe i techniczne","2) możliwości samodzielnego znalezienia logicznego, racjonalnego rozwiązania","5) staram się je przestrzegać, wierzę że ustalono je dla dobra wszystkich","2) rozwiązywanie naukowych i technicznych problemów w niezależnym środowisku","6) poczucie, że to, co robię jest przydatne i praktyczne","Nie dotyczy","Tak","Nie","Nie","Tak","Nie","Nie dotyczy","Nie dotyczy","Tak","Nie","Nie dotyczy","Nie dotyczy","Nie dotyczy","Nie dotyczy","Nie dotyczy","Tak",0.21,0.32,0.35,0.28999999999999998,0.28999999999999998,0.35,"konwencjonalny","K,S,B,R,P,A","artystyczna","Technik technologii odzieży","2015-07-19T04:00:42","Bez grupy","Nie","Przystąpienie samodzielne"]
["Student","Testowy 0","Mężczyzna","29 lat","Kolegium Jagiellońskie – Toruńska Szkoła Wyższa [do 2013-09-10 Toruńska Szkoła Wyższa]","miasto 100 - 500 tys. mieszkańców","szkoła policealna","kujawsko-pomorskie","Tak","Tak","Nie","Nie","Nie","Nie","Nie","Nie","Nie","Nie","Nie","Nie","Nie","Nie","Nie","Nie","Tak","Nie","Nie","Nie","Nie","Nie","Nie","Nie","Nie","Nie","Nie","Nie","Nie","Nie","Nie","Tak","Nie","Nie","Nie","Nie","Nie","Nie","Nie","Nie","Nie","Nie","Nie","Nie","Nie","Nie","Tak","Nie","Nie","Nie","Nie","Nie","Nie","Nie","Nie","Nie","Nie","Nie","Nie","Nie","Nie","Tak","Nie","Nie","Nie","Nie","Nie","Nie","Nie","Nie","Nie","Nie","Nie","Nie","Nie","Nie","Tak","Nie","Nie","Nie","Nie","Nie","Nie","Nie","Nie","5) przywódca stada / inspirujący lider","6) najchętniej bawiłam/-em się sam/-a","5) „Wielka Orkiestra Świątecznej Pomocy” - wystawa fotografii, relacje wolontariuszy","5) wykonywania zaprojektowanych przedmiotów","4) porządkując swój pokój lub mieszkanie","5) uporządkowana/-y i dobrze zorganizowana/-y","5) bezczynności i pozorowanych działań","5) wszystko musi być tak, jak sobie wcześniej ustaliłam/-em - nie pozwolę sobie na spóźnienie, stracił/a/bym w oczach innych","4) reprezentacyjny, robiący wrażenie","5) żyć z pracy rąk i dobrze sobie radzić w każdej sytuacji","6) rzetelnie przygotujesz uporządkowaną prezentację, przedstawiającą Twoje hobby","6) zapewnisz, że sam sobie świetnie da radę i trzymasz za niego kciuki, wzmocnisz jego wiarę w siebie","4) prace przy projekcie dotyczącym zagospodarowania terenów parku miejskiego (prace porządkowe, nasadzenia, prace elektryczne, mechaniczne itp.)","4) zaangażuję się dopiero wtedy, kiedy to, co będziemy robić będzie naprawdę ciekawe","4) nie mam swobody wyrażania siebie i swoich myśli","5) naturalne talenty, możliwości i umiejętności innych","5) zgranego efektywnego zespołu, który z entuzjazmem zrealizuje mój pomysł","6) przestrzegam reguł i zasad, przecież czemuś służą","5) realizację kreatywnych celów w zmotywowanym zespole","5) możliwość wyrażania siebie, wykorzystania swoich talentów","Tak","Tak","Tak","Nie","Nie","Nie dotyczy","Nie","Nie","Nie dotyczy","Nie","Nie","Nie","Nie","Nie","Nie dotyczy","Nie dotyczy",0.09,0.12,0.12,0.24,0.18,0.03,"przedsiębiorczy","P,R,B,K,A,S","usługowa","Technik telekomunikacji","2015-07-19T11:53:09","Grupa A","2015-07-19T10:29:43","Teodor Kowalski"]
["Marta","Szulc","Kobieta","20 lat","Katolicki Uniwersytet Lubelski Jana Pawła ii w Lublinie","miasto 50 - 100 tys. mieszkańców","liceum ogólnokształcące","lubelskie","Tak","Nie","Nie","Nie","Nie","Nie","Nie","Nie","Nie","Nie","Nie","Nie","Nie","Nie","Tak","Nie","Nie","Nie","Nie","Nie","Nie","Nie","Nie","Nie","Nie","Nie","Nie","Nie","Tak","Nie","Nie","Nie","Nie","Nie","Nie","Nie","Nie","Nie","Nie","Tak","Nie","Nie","Nie","Nie","Nie","Nie","Nie","Nie","Nie","Nie","Nie","Nie","Nie","Nie","Nie","Tak","Nie","Nie","Nie","Nie","Nie","Nie","Nie","Nie","Nie","Nie","Nie","Nie","Nie","Tak","Nie","Nie","Nie","Nie","Nie","Nie","Nie","Nie","Nie","Nie","Nie","Nie","Nie","Tak","Nie","6) skrupulatny wykonawca","6) najchętniej bawiłam/-em się sam/-a","6) „Prezentacja skutecznych metod organizacji pracy”","2) zarządzania działem sprzedaży lub sprzedażą","5) organizując różne ciekawe przedsięwzięcia","5) uporządkowana/-y i dobrze zorganizowana/-y","5) bezczynności i pozorowanych działań","5) wszystko musi być tak, jak sobie wcześniej ustaliłam/-em - nie pozwolę sobie na spóźnienie, stracił/a/bym w oczach innych","5) przytulny, w którym każdy czuje się dobrze","5) żyć z pracy rąk i dobrze sobie radzić w każdej sytuacji","5) przygotujesz inspirujące wystąpienie, pragnąc zarazić innych swoim \"bakcylem\"","5) powiesz mu, że jak dobrze zaplanuje i zorganizuje prace, to sobie z tym poradzi","5) pomoc ofiarom powodzi / osobom niepełnosprawnym","5) będę się również starał pomagać innym, gdyby mieli problemy","5) kiedy ludzie nie wiedzą czego konkretnie ode mnie chcą","5) naturalne talenty, możliwości i umiejętności innych","5) zgranego efektywnego zespołu, który z entuzjazmem zrealizuje mój pomysł","5) staram się je przestrzegać, wierzę że ustalono je dla dobra wszystkich","5) realizację kreatywnych celów w zmotywowanym zespole","5) możliwość wyrażania siebie, wykorzystania swoich talentów","Nie","Tak","Tak","Tak","Nie","Nie dotyczy","Nie","Nie","Nie dotyczy","Nie dotyczy","Nie","Nie","Nie","Nie","Nie dotyczy","Nie dotyczy",0.06,0.09,0.15,0.21,0.12,0.15,"konwencjonalny","R,K,A,B,S,P","porządkowa","Introligator","2015-07-20T13:44:58","Bez grupy","Nie","Przystąpienie samodzielne"]
["Marta","Szulc","Kobieta","20 lat","Katolicki Uniwersytet Lubelski Jana Pawła ii w Lublinie","miasto 50 - 100 tys. mieszkańców","liceum ogólnokształcące","lubelskie","Tak","Nie","Nie","Nie","Nie","Nie","Nie","Nie","Nie","Nie","Nie","Nie","Nie","Nie","Tak","Nie","Nie","Nie","Nie","Nie","Nie","Nie","Nie","Nie","Nie","Nie","Nie","Nie","Tak","Nie","Nie","Nie","Nie","Nie","Nie","Nie","Nie","Nie","Nie","Tak","Nie","Nie","Nie","Nie","Nie","Nie","Nie","Nie","Nie","Nie","Nie","Nie","Nie","Nie","Nie","Tak","Nie","Nie","Nie","Nie","Nie","Nie","Nie","Nie","Nie","Nie","Nie","Nie","Nie","Tak","Nie","Nie","Nie","Nie","Nie","Nie","Nie","Nie","Nie","Nie","Nie","Nie","Nie","Tak","Nie","6) skrupulatny wykonawca","6) najchętniej bawiłam/-em się sam/-a","6) „Prezentacja skutecznych metod organizacji pracy”","2) zarządzania działem sprzedaży lub sprzedażą","5) organizując różne ciekawe przedsięwzięcia","5) uporządkowana/-y i dobrze zorganizowana/-y","5) bezczynności i pozorowanych działań","5) wszystko musi być tak, jak sobie wcześniej ustaliłam/-em - nie pozwolę sobie na spóźnienie, stracił/a/bym w oczach innych","5) przytulny, w którym każdy czuje się dobrze","5) żyć z pracy rąk i dobrze sobie radzić w każdej sytuacji","5) przygotujesz inspirujące wystąpienie, pragnąc zarazić innych swoim \"bakcylem\"","5) powiesz mu, że jak dobrze zaplanuje i zorganizuje prace, to sobie z tym poradzi","5) pomoc ofiarom powodzi / osobom niepełnosprawnym","5) będę się również starał pomagać innym, gdyby mieli problemy","5) kiedy ludzie nie wiedzą czego konkretnie ode mnie chcą","5) naturalne talenty, możliwości i umiejętności innych","5) zgranego efektywnego zespołu, który z entuzjazmem zrealizuje mój pomysł","5) staram się je przestrzegać, wierzę że ustalono je dla dobra wszystkich","5) realizację kreatywnych celów w zmotywowanym zespole","5) możliwość wyrażania siebie, wykorzystania swoich talentów","Nie","Tak","Tak","Tak","Nie","Nie dotyczy","Nie","Nie","Nie dotyczy","Nie dotyczy","Nie","Nie","Nie","Nie","Nie dotyczy","Nie dotyczy",0.06,0.09,0.15,0.21,0.12,0.15,"konwencjonalny","R,K,A,B,S,P","porządkowa","Technik cyfrowych procesów graficznych","2015-07-20T13:45:24","Bez grupy","Nie","Przystąpienie samodzielne"]
["Katarzyna","Stokłosa","Kobieta","22 lat","Liceum Ogólnokształcące dla Dorosłych w Prywatnym Zespole Szkół Zawodowych, Zgorzelecka 18, Bolesławiec","miasto 50 - 100 tys. mieszkańców","liceum ogólnokształcące","dolnośląskie","Tak","Nie","Nie","Nie","Nie","Nie","Nie","Nie","Nie","Nie","Nie","Nie","Nie","Nie","Tak","Nie","Nie","Nie","Nie","Nie","Nie","Nie","Nie","Nie","Nie","Nie","Nie","Nie","Tak","Nie","Nie","Nie","Nie","Nie","Nie","Nie","Nie","Nie","Nie","Nie","Nie","Nie","Tak","Nie","Nie","Nie","Nie","Nie","Nie","Nie","Nie","Nie","Nie","Nie","Nie","Nie","Tak","Nie","Nie","Nie","Nie","Nie","Nie","Nie","Nie","Nie","Nie","Nie","Nie","Nie","Tak","Nie","Nie","Nie","Nie","Nie","Nie","Nie","Nie","Nie","Nie","Nie","Nie","Nie","Tak","6) skrupulatny wykonawca","6) najchętniej bawiłam/-em się sam/-a","6) „Prezentacja skutecznych metod organizacji pracy”","6) badania i analizy rynku","6) rozwiązując łamigłówki i problemy logiczne","6) niekonwencjonalna/-y, twórcza/-y","6) braku wyobraźni i wrażliwości","6) staram się zawsze zdążyć - nie chcę, żeby inni musieli na mnie czekać","6) przypominający pracownię naukowca","6) dążyć do doskonałości i perfekcji","6) rzetelnie przygotujesz uporządkowaną prezentację, przedstawiającą Twoje hobby","6) zapewnisz, że sam sobie świetnie da radę i trzymasz za niego kciuki, wzmocnisz jego wiarę w siebie","6) udział w projekcie mającym na celu wypromowanie regionu lub miasta, w którym mieszkasz","6) skoncentruję się głównie na działaniu i konkretach","6) kiedy nie mam dostępu do informacji i wiedzy, której w danym momencie potrzebuję","6) ukryte przesłania i symbole zawarte w dziełach sztuki","6) ściśle określonych reguł, zasad bądź procedur","6) przestrzegam reguł i zasad, przecież czemuś służą","6) systematyczne działania w uporządkowanym środowisku","6) poczucie, że to, co robię jest przydatne i praktyczne","Nie dotyczy","Nie dotyczy","Nie dotyczy","Nie dotyczy","Nie dotyczy","Nie dotyczy","Nie dotyczy","Nie dotyczy","Nie dotyczy","Nie dotyczy","Nie dotyczy","Nie dotyczy","Nie dotyczy","Nie dotyczy","Nie dotyczy","Nie dotyczy",0.09,0.18,0.18,0.12,0.12,0.09,"badawczy","K,B,R,P,A,S","informacyjna","Technik administracji","2015-07-21T07:54:09","Bez grupy","Nie","Przystąpienie samodzielne"]
["Katarzyna","Stokłosa","Kobieta","22 lat","Liceum Ogólnokształcące dla Dorosłych w Prywatnym Zespole Szkół Zawodowych, Zgorzelecka 18, Bolesławiec","miasto 50 - 100 tys. mieszkańców","liceum ogólnokształcące","dolnośląskie","Tak","Nie","Nie","Nie","Nie","Nie","Nie","Nie","Nie","Nie","Nie","Nie","Nie","Nie","Tak","Nie","Nie","Nie","Nie","Nie","Nie","Nie","Nie","Nie","Nie","Nie","Nie","Nie","Tak","Nie","Nie","Nie","Nie","Nie","Nie","Nie","Nie","Nie","Nie","Nie","Nie","Nie","Tak","Nie","Nie","Nie","Nie","Nie","Nie","Nie","Nie","Nie","Nie","Nie","Nie","Nie","Tak","Nie","Nie","Nie","Nie","Nie","Nie","Nie","Nie","Nie","Nie","Nie","Nie","Nie","Tak","Nie","Nie","Nie","Nie","Nie","Nie","Nie","Nie","Nie","Nie","Nie","Nie","Nie","Tak","6) skrupulatny wykonawca","6) najchętniej bawiłam/-em się sam/-a","6) „Prezentacja skutecznych metod organizacji pracy”","6) badania i analizy rynku","6) rozwiązując łamigłówki i problemy logiczne","6) niekonwencjonalna/-y, twórcza/-y","6) braku wyobraźni i wrażliwości","6) staram się zawsze zdążyć - nie chcę, żeby inni musieli na mnie czekać","6) przypominający pracownię naukowca","6) dążyć do doskonałości i perfekcji","6) rzetelnie przygotujesz uporządkowaną prezentację, przedstawiającą Twoje hobby","6) zapewnisz, że sam sobie świetnie da radę i trzymasz za niego kciuki, wzmocnisz jego wiarę w siebie","6) udział w projekcie mającym na celu wypromowanie regionu lub miasta, w którym mieszkasz","6) skoncentruję się głównie na działaniu i konkretach","6) kiedy nie mam dostępu do informacji i wiedzy, której w danym momencie potrzebuję","6) ukryte przesłania i symbole zawarte w dziełach sztuki","6) ściśle określonych reguł, zasad bądź procedur","6) przestrzegam reguł i zasad, przecież czemuś służą","6) systematyczne działania w uporządkowanym środowisku","6) poczucie, że to, co robię jest przydatne i praktyczne","Nie","Nie","Nie dotyczy","Nie dotyczy","Nie dotyczy","Nie dotyczy","Nie dotyczy","Nie dotyczy","Nie dotyczy","Nie dotyczy","Nie dotyczy","Nie","Tak","Tak","Nie","Nie dotyczy",0.09,0.18,0.18,0.12,0.12,0.09,"badawczy","K,B,R,P,A,S","poznawcza","Technik tyfloinformatyk","2015-07-21T07:55:08","Bez grupy","Nie","Przystąpienie samodzielne"]
["Teodor","Kowalski","Mężczyzna","15 lat","Zielona Nibylandia, Matejki 2, Bolesławiec","miasto ponad 500 tys. mieszkańców","szkoła policealna","dolnośląskie","Tak","Tak","Nie","Nie","Nie","Nie","Nie","Nie","Nie","Nie","Nie","Nie","Nie","Nie","Nie","Tak","Nie","Nie","Nie","Nie","Nie","Nie","Nie","Nie","Nie","Nie","Nie","Nie","Nie","Nie","Nie","Nie","Nie","Nie","Nie","Nie","Nie","Nie","Nie","Nie","Nie","Nie","Tak","Nie","Nie","Nie","Nie","Nie","Nie","Nie","Nie","Nie","Nie","Nie","Nie","Nie","Nie","Nie","Nie","Nie","Nie","Nie","Nie","Nie","Nie","Nie","Nie","Nie","Nie","Nie","Tak","Nie","Nie","Nie","Nie","Nie","Nie","Nie","Nie","Nie","Nie","Nie","Nie","Nie","Tak","6) skrupulatny wykonawca","6) najchętniej bawiłam/-em się sam/-a","6) „Prezentacja skutecznych metod organizacji pracy”","6) badania i analizy rynku","6) rozwiązując łamigłówki i problemy logiczne","6) niekonwencjonalna/-y, twórcza/-y","6) braku wyobraźni i wrażliwości","6) staram się zawsze zdążyć - nie chcę, żeby inni musieli na mnie czekać","6) przypominający pracownię naukowca","6) dążyć do doskonałości i perfekcji","6) rzetelnie przygotujesz uporządkowaną prezentację, przedstawiającą Twoje hobby","6) zapewnisz, że sam sobie świetnie da radę i trzymasz za niego kciuki, wzmocnisz jego wiarę w siebie","6) udział w projekcie mającym na celu wypromowanie regionu lub miasta, w którym mieszkasz","6) skoncentruję się głównie na działaniu i konkretach","6) kiedy nie mam dostępu do informacji i wiedzy, której w danym momencie potrzebuję","6) ukryte przesłania i symbole zawarte w dziełach sztuki","6) ściśle określonych reguł, zasad bądź procedur","6) przestrzegam reguł i zasad, przecież czemuś służą","6) systematyczne działania w uporządkowanym środowisku","6) poczucie, że to, co robię jest przydatne i praktyczne","Nie dotyczy","Nie dotyczy","Nie dotyczy","Nie dotyczy","Nie dotyczy","Nie dotyczy","Nie dotyczy","Nie dotyczy","Nie dotyczy","Nie dotyczy","Nie dotyczy","Nie dotyczy","Nie dotyczy","Nie dotyczy","Nie dotyczy","Nie dotyczy",0.09,0.15,0.18,0.15,0.12,0.06,"badawczy","K,B,P,R,A,S","informacyjna","Technik rachunkowości","2015-07-21T09:39:55","Bez grupy","Nie","Przystąpienie samodzielne"]

{"sheet":"Dic","index":6,"n_rows":2,"n_cols":1,"rows_kept":2,"cut":false,"hidden":true,"merged":[]}
["Bez grupy"]
["Grupa A"]

{"sheet":"6. Typ osobowosci zawodowej","index":7,"n_rows":7,"n_cols":6,"rows_kept":7,"cut":false,"hidden":false,"merged":[]}
[]
[]
[]
[]
[]
["Typ artystyczny","Typ badawczy","Typ konwencjonalny","Typ przedsiębiorczy","Typ realistyczny","Typ społeczny"]
[{"$f":"AVERAGE(Src!DZ:DZ)","v":0.18249999999999991},{"$f":"AVERAGE(Src!EA:EA)","v":0.22714285714285709},{"$f":"AVERAGE(Src!EB:EB)","v":0.22964285714285712},{"$f":"AVERAGE(Src!EC:EC)","v":0.22500000000000003},{"$f":"AVERAGE(Src!ED:ED)","v":0.23250000000000001},{"$f":"AVERAGE(Src!EE:EE)","v":0.2096428571428571}]

{"sheet":"7. Rekomendowane rodzaje prac","index":8,"n_rows":18,"n_cols":4,"rows_kept":18,"cut":false,"hidden":false,"merged":[]}
[]
[]
[]
[]
[]
[]
[]
[]
[null,null,"Wartości"]
[null,"Etykiety wierszy","Licznik z Rodzaj pracy","Procent rodzaje prac"]
[null,"artystyczna",4,0.23529411764705882]
[null,"organizacyjna",5,0.29411764705882354]
[null,"porządkowa",1,5.8823529411764705E-2]
[null,"poznawcza",1,5.8823529411764705E-2]
[null,"produkcyjna",2,0.11764705882352941]
[null,"usługowa",2,0.11764705882352941]
[null,"wychowawcza",2,0.11764705882352941]
[null,"Suma końcowa",17,1]

{"sheet":"10. Wybrane zawody","index":9,"n_rows":27,"n_cols":3,"rows_kept":27,"cut":false,"hidden":false,"merged":[]}
[]
[]
[]
[]
[]
[]
[]
[]
[]
[null,"Wartości"]
["Etykiety wierszy","Licznik z Zawód","procent"]
["Aktor scen muzycznych",1,5.8823529411764705E-2]
["Fotograf",2,0.11764705882352941]
["Kucharz",1,5.8823529411764705E-2]
["Muzyk",1,5.8823529411764705E-2]
["Operator maszyn leśnych",1,5.8823529411764705E-2]
["Opiekunka środowiskowa",1,5.8823529411764705E-2]
["Technik bezpieczeństwa i higieny pracy",1,5.8823529411764705E-2]
["Technik budowy fortepianów i pianin",1,5.8823529411764705E-2]
["Technik drogownictwa",2,0.11764705882352941]
["Technik księgarstwa",1,5.8823529411764705E-2]
["Technik logistyk",1,5.8823529411764705E-2]
["Technik realizacji dźwięku",1,5.8823529411764705E-2]
["Technik teleinformatyk",1,5.8823529411764705E-2]
["Technik transportu kolejowego",1,5.8823529411764705E-2]
["Technik żeglugi śródlądowej",1,5.8823529411764705E-2]
["Suma końcowa",17,1]